Workbook

Sheet Instructions
B2: Show summer times as | C2: BST
B49: Version Control: | C49: Ver | D49: Date | E49: Change | F49: Author / Contributor
C51: 1.00 | D51: 01/03/2010 | E51: Initial Release | F51: P.Orr
C52: 1.01 | D52: 26/04/2010 | E52: Add BST view option, and Liverpool and Dover times. | F52: P. Orr / N. Hackney
C53: 1.02 | D53: 12/01/2011 | E53: 2011 data inserted | F53: P.Orr
C54: 1.03 | D54: 29/10/2010 | E54: 2012 data inserted | F54: P.Orr
C55: 1.04 | D55: 09/03/2012 | E55: Victoria Dock gate operation times added | F55: P.Orr
C56: 1.05 | D56: 2012-02-03 | E56: 2013 data inserted REPLACED with 2014 data 09/02/2014 | F56: P. Orr

Sheet 4 day view
D1: 10 | E1: 11 | F1: 12 | G1: 13 | H1: 14 | I1: 15 | J1: 16 | K1: 17 | L1: 18 | M1: 19 | N1: 20 | O1: 21 | P1: 22 | Q1: 23 | R1: 24 | S1: 25
A2: =MATCH(B3,Tides!D11:D1420,0) -> 449 | B2: 9 | C2: 10 | D2: =$A$2+D1 -> 459 | E2: 460 | F2: 461 | G2: 462 | H2: 463 | I2: 464 | J2: 465 | K2: 466 | L2: 467 | M2: 468 | N2: 469 | O2: 470 | P2: 471 | Q2: 472 | R2: 473 | S2: 474
A3: 5 | B3: =TODAY()+(5-WEEKDAY(TODAY(),2))+C3-365 -> 2018-04-27 | C3: 1904-12-31 | D3: =INDIRECT("'Tides'!"&ADDRESS(D$2,$A3)) -> 2018-04-27 | E3: Fri | H3: 2018-04-28 | I3: Sat | L3: 2018-04-29 | M3: Sun | P3: 2018-04-30 | Q3: Mon
A4: 3 | D4: 2018-04-27T02:06:00 | E4: 2018-04-27T08:25:00 | F4: 2018-04-27T14:35:00 | G4: 2018-04-27T20:53:00 | H4: 2018-04-28T02:52:00 | I4: 2018-04-28T09:10:00 | J4: 2018-04-28T15:17:00 | K4: 2018-04-28T21:34:00 | L4: 2018-04-29T03:33:00 | M4: 2018-04-29T09:50:00 | N4: 2018-04-29T15:57:00 | O4: 2018-04-29T22:10:00 | P4: 2018-04-30T04:12:00 | Q4: 2018-04-30T10:27:00 | R4: 2018-04-30T16:34:00 | S4: 2018-04-30T22:46:00
A5: 13 | B5: =IF(Instructions!C2="BST","All Times Local","All Times UTC") -> All Times Local | C5: =INDIRECT("'Tides'!"&ADDRESS(C$2,$A5)) -> State | D5: LW | E5: HW | F5: LW | G5: HW | H5: LW | I5: HW | J5: LW | K5: HW | L5: LW | M5: HW | N5: LW | O5: HW | P5: LW | Q5: HW | R5: LW | S5: HW
A6: 11 | B6: =INDIRECT("'Tides'!"&ADDRESS(B$2,$A6)) -> HOLYHEAD | C6: Time | D6: 41755.12917 | E6: 41755.39236 | F6: 41755.64931 | G6: 41755.91181 | H6: 41756.16111 | I6: 41756.42361 | J6: 41756.67847 | K6: 41756.94028 | L6: 41757.18958 | M6: 41757.45139 | N6: 41757.70625 | O6: 41757.96528 | P6: 41758.21667 | Q6: 41758.47708 | R6: 41758.73194 | S6: 41758.99028
A7: 12 | B7: =INDIRECT("'Tides 2010'!"&ADDRESS(B$2,$A7)) ->  | C7: Ht | D7: 1.27 | E7: 5.35 | F7: 0.78 | G7: 5.33 | H7: 1 | I7: 5.52 | J7: 0.62 | K7: 5.46 | L7: 0.82 | M7: 5.61 | N7: 0.56 | O7: 5.53 | P7: 0.71 | Q7: 5.61 | R7: 0.59 | S7: 5.54
A8: 19 | B8: =INDIRECT("'Tides'!"&ADDRESS(B$2,$A8)) -> Beaumaris | C8: Time | D8: 41755.16065 | E8: 41755.4035 | F8: 41755.68191 | G8: 41755.92376 | H8: 41756.19437 | I8: 41756.43605 | J8: 41756.71269 | K8: 41756.95341 | L8: 41757.22442 | M8: 41757.46499 | N8: 41757.74201 | O8: 41757.97946 | P8: 41758.25301 | Q8: 41758.49175 | R8: 41758.76914 | S8: 41759.0055
A9: 20 | B9: =INDIRECT("'Tides 2010'!"&ADDRESS(B$2,$A9)) ->  | C9: Ht | D9: 1.526717557 | E9: 7.196521739 | F9: 0.8908396947 | G9: 7.168695652 | H9: 1.176335878 | I9: 7.433043478 | J9: 0.6832061069 | K9: 7.349565217 | L9: 0.9427480916 | M9: 7.55826087 | N9: 0.6053435115 | O9: 7.446956522 | P9: 0.8 | Q9: 7.55826087 | R9: 0.6442748092 | S9: 7.460869565
A10: 21 | B10: =INDIRECT("'Tides'!"&ADDRESS(B$2,$A10)) -> SLACK | C10: Time | D10: 41755.22662 | E10: 41755.46947 | F10: 41755.74788 | G10: 41755.98973 | H10: 41756.26034 | I10: 41756.50203 | J10: 41756.77867 | K10: 41757.01939 | L10: 41757.29039 | M10: 41757.53096 | N10: 41757.80799 | O10: 41758.04543 | P10: 41758.31898 | Q10: 41758.55773 | R10: 41758.83511 | S10: 41759.07147
A11: 22 | B11: =INDIRECT("'Tides'!"&ADDRESS(B$2,$A11)) -> Menai Bridge | C11: Time | D11: 41755.1445 | E11: 41755.4049 | F11: 41755.66324 | G11: 41755.92542 | H11: 41756.17423 | I11: 41756.43789 | J11: 41756.69038 | K11: 41756.95548 | L11: 41757.20072 | M11: 41757.46721 | N11: 41757.71623 | O11: 41757.98187 | P11: 41758.22593 | Q11: 41758.49433 | R11: 41758.74014 | S11: 41759.00826
A12: 23 | B12: =INDIRECT("'Tides 2010'!"&ADDRESS(B$2,$A12)) ->  | C12: Ht | D12: 1.383969466 | E12: 6.92173913 | F12: 0.7854961832 | G12: 6.895652174 | H12: 1.054198473 | I12: 7.143478261 | J12: 0.5900763359 | K12: 7.065217391 | L12: 0.834351145 | M12: 7.260869565 | N12: 0.5167938931 | O12: 7.156521739 | P12: 0.7 | Q12: 7.260869565 | R12: 0.5534351145 | S12: 7.169565217
A13: 24 | B13: =INDIRECT("'Tides'!"&ADDRESS(B$2,$A13)) -> Swellies SLACK | C13: Time | D13: =INDIRECT("'Tides'!"&ADDRESS(D$2,$A13)) -> 41755.0875 | E13: 41755.35069 | F13: 41755.60764 | G13: 41755.87014 | H13: 41756.11944 | I13: 41756.38194 | J13: 41756.63681 | K13: 41756.89861 | L13: 41757.14792 | M13: 41757.40972 | N13: 41757.66458 | O13: 41757.92361 | P13: 41758.175 | Q13: 41758.43542 | R13: 41758.69028 | S13: 41758.94861
A14: 25 | B14: =INDIRECT("'Tides'!"&ADDRESS(B$2,$A14)) -> P'dinorwic | C14: Time | D14: 41755.13993 | E14: 41755.3778 | F14: 41755.66175 | G14: 41755.89778 | H14: 41756.17454 | I14: 41756.40992 | J14: 41756.69334 | K14: 41756.92704 | L14: 41757.20538 | M14: 41757.43846 | N14: 41757.72344 | O14: 41757.95274 | P14: 41758.23472 | Q14: 41758.46487 | R14: 41758.75127 | S14: 41758.97843
A15: 26 | B15: =INDIRECT("'Tides 2010'!"&ADDRESS(B$2,$A15)) ->  | C15: Ht | D15: 1.312977099 | E15: 5.297391304 | F15: 0.8641221374 | G15: 5.276521739 | H15: 1.065648855 | I15: 5.474782609 | J15: 0.7175572519 | K15: 5.412173913 | L15: 0.9007633588 | M15: 5.568695652 | N15: 0.6625954198 | O15: 5.485217391 | P15: 0.8 | Q15: 5.568695652 | R15: 0.6900763359 | S15: 5.495652174
A16: 27 | B16: =INDIRECT("'Tides'!"&ADDRESS(B$2,$A16)) -> P.D. SLACK | C16: Time | D16: 41755.10799 | E16: 41755.36738 | F16: 41755.62645 | G16: 41755.88736 | H16: 41756.13727 | I16: 41756.3995 | J16: 41756.65318 | K16: 41756.91663 | L16: 41757.16337 | M16: 41757.42805 | N16: 41757.67865 | O16: 41757.94232 | P16: 41758.18819 | Q16: 41758.45446 | R16: 41758.7022 | S16: 41758.96802
A17: 28 | B17: =INDIRECT("'Tides'!"&ADDRESS(B$2,$A17)) -> Caern'fon | C17: Time | D17: 41755.13287 | E17: 41755.37153 | F17: 41755.65413 | G17: 41755.89097 | H17: 41756.16659 | I17: 41756.40278 | J17: 41756.68492 | K17: 41756.91944 | L17: 41757.19664 | M17: 41757.43056 | N17: 41757.71424 | O17: 41757.94444 | P17: 41758.22523 | Q17: 41758.45625 | R17: 41758.74136 | S17: 41758.96944
A18: 29 | B18: =INDIRECT("'Tides 2010'!"&ADDRESS(B$2,$A18)) ->  | C18: Ht | D18: 1.155725191 | E18: 4.897391304 | F18: 0.6694656489 | G18: 4.876521739 | H18: 0.8877862595 | I18: 5.074782609 | J18: 0.5106870229 | K18: 5.012173913 | L18: 0.7091603053 | M18: 5.168695652 | N18: 0.4511450382 | O18: 5.085217391 | P18: 0.6 | Q18: 5.168695652 | R18: 0.4809160305 | S18: 5.095652174
A19: 30 | B19: =INDIRECT("'Tides'!"&ADDRESS(B$2,$A19)) -> Victoria Dock Gt | C19: Gate | D19: =INDIRECT("'Tides'!"&ADDRESS(D$2,$A19)) -> Cls | E19: Opn | F19: Cls | G19: Opn | H19: Cls | I19: Opn | J19: Cls | K19: Opn | L19: Cls | M19: Opn | N19: Cls | O19: Opn | P19: Cls | Q19: Opn | R19: Cls | S19: Opn
A20: 31 | B20: =INDIRECT("'Tides 2010'!"&ADDRESS(B$2,$A20)) ->  | C20: =INDIRECT("'Tides'!"&ADDRESS(C$2,$A20)) -> Time | D20: 41754.97431 | E20: 41755.25694 | F20: 41755.48611 | G20: 41755.77639 | H20: 41756.00556 | I20: 41756.28819 | J20: 41756.51736 | K20: 41756.80486 | L20: 41757.03403 | M20: 41757.31597 | N20: 41757.54514 | O20: 41757.82986 | P20: 41758.05903 | Q20: 41758.34167 | R20: 41758.57083 | S20: 41758.85486
A21: 32 | B21: =INDIRECT("'Tides'!"&ADDRESS(B$2,$A21)) -> Ft Belan | C21: Time | D21: 41755.11852 | E21: 41755.37495 | F21: 41755.63754 | G21: 41755.89305 | H21: 41756.14869 | I21: 41756.40403 | J21: 41756.66508 | K21: 41756.91954 | L21: 41757.17558 | M21: 41757.42988 | N21: 41757.69132 | O21: 41757.9428 | P21: 41758.20116 | Q21: 41758.45379 | R21: 41758.71559 | S21: 41758.96607
A22: 33 | B22: =INDIRECT("'Tides 2010'!"&ADDRESS(B$2,$A22)) ->  | C22: Ht | D22: 1.112977099 | E22: 4.322608696 | F22: 0.6641221374 | G22: 4.303478261 | H22: 0.865648855 | I22: 4.485217391 | J22: 0.5175572519 | K22: 4.427826087 | L22: 0.7007633588 | M22: 4.571304348 | N22: 0.4625954198 | O22: 4.494782609 | P22: 0.6 | Q22: 4.571304348 | R22: 0.4900763359 | S22: 4.504347826
A23: 34 | B23: =INDIRECT("'Tides'!"&ADDRESS(B$2,$A23)) -> Llanddwyn | C23: Time | D23: 41755.11169 | E23: 41755.34857 | F23: 41755.63127 | G23: 41755.86694 | H23: 41756.14275 | I23: 41756.37809 | J23: 41756.65963 | K23: 41756.89383 | L23: 41757.17043 | M23: 41757.40432 | N23: 41757.68663 | O23: 41757.91744 | P23: 41758.19676 | Q23: 41758.42859 | R23: 41758.71161 | S23: 41758.94105
A24: 35 | B24: =INDIRECT("'Tides 2010'!"&ADDRESS(B$2,$A24)) ->  | C24: Ht | D24: 1.212977099 | E24: 4.647826087 | F24: 0.7641221374 | G24: 4.630434783 | H24: 0.965648855 | I24: 4.795652174 | J24: 0.6175572519 | K24: 4.743478261 | L24: 0.8007633588 | M24: 4.873913043 | N24: 0.5625954198 | O24: 4.804347826 | P24: 0.7 | Q24: 4.873913043 | R24: 0.5900763359 | S24: 4.813043478
A25: 36 | B25: =INDIRECT("'Tides'!"&ADDRESS(B$2,$A25)) -> Trwyn Dimnor | C25: Time | D25: 41755.15885 | E25: 41755.40557 | F25: 41755.67983 | G25: 41755.92556 | H25: 41756.19213 | I25: 41756.43769 | J25: 41756.71021 | K25: 41756.95482 | L25: 41757.22179 | M25: 41757.46624 | N25: 41757.73915 | O25: 41757.98052 | P25: 41758.25 | Q25: 41758.49265 | R25: 41758.76591 | S25: 41759.00621
A26: 37 | B26: =INDIRECT("'Tides 2010'!"&ADDRESS(B$2,$A26)) ->  | C26: Ht | D26: 1.583969466 | E26: 7.096521739 | F26: 0.9854961832 | G26: 7.068695652 | H26: 1.254198473 | I26: 7.333043478 | J26: 0.7900763359 | K26: 7.249565217 | L26: 1.034351145 | M26: 7.45826087 | N26: 0.7167938931 | O26: 7.346956522 | P26: 0.9 | Q26: 7.45826087 | R26: 0.7534351145 | S26: 7.360869565
A27: 38 | B27: =INDIRECT("'Tides'!"&ADDRESS(B$2,$A27)) -> Moelfre | C27: Time | D27: 41755.15885 | E27: 41755.40765 | F27: 41755.67983 | G27: 41755.92736 | H27: 41756.19213 | I27: 41756.43933 | J27: 41756.71021 | K27: 41756.95623 | L27: 41757.22179 | M27: 41757.4675 | N27: 41757.73915 | O27: 41757.98158 | P27: 41758.25 | Q27: 41758.49355 | R27: 41758.76591 | S27: 41759.00693
A28: 39 | B28: =INDIRECT("'Tides 2010'!"&ADDRESS(B$2,$A28)) ->  | C28: Ht | D28: 1.583969466 | E28: 7.071304348 | F28: 0.9854961832 | G28: 7.04173913 | H28: 1.254198473 | I28: 7.322608696 | J28: 0.7900763359 | K28: 7.233913043 | L28: 1.034351145 | M28: 7.455652174 | N28: 0.7167938931 | O28: 7.337391304 | P28: 0.9 | Q28: 7.455652174 | R28: 0.7534351145 | S28: 7.352173913
A29: 40 | B29: =INDIRECT("'Tides'!"&ADDRESS(B$2,$A29)) -> Amlwch | C29: Time | D29: 41755.15012 | E29: 41755.4021 | F29: 41755.67081 | G29: 41755.92209 | H29: 41756.18295 | I29: 41756.43422 | J29: 41756.70079 | K29: 41756.95135 | L29: 41757.21221 | M29: 41757.46277 | N29: 41757.72934 | O29: 41757.97704 | P29: 41758.24005 | Q29: 41758.48918 | R29: 41758.75575 | S29: 41759.00274
A30: 41 | B30: =INDIRECT("'Tides 2010'!"&ADDRESS(B$2,$A30)) ->  | C30: Ht | D30: 1.583969466 | E30: 6.82173913 | F30: 0.9854961832 | G30: 6.795652174 | H30: 1.254198473 | I30: 7.043478261 | J30: 0.7900763359 | K30: 6.965217391 | L30: 1.034351145 | M30: 7.160869565 | N30: 0.7167938931 | O30: 7.056521739 | P30: 0.9 | Q30: 7.160869565 | R30: 0.7534351145 | S30: 7.069565217
A31: 42 | B31: =INDIRECT("'Tides'!"&ADDRESS(B$2,$A31)) -> Cemaes | C31: Time | D31: 41755.15527 | E31: 41755.40832 | F31: 41755.67568 | G31: 41755.9275 | H31: 41756.18765 | I31: 41756.43914 | J31: 41756.70526 | K31: 41756.95557 | L31: 41757.21652 | M31: 41757.46653 | N31: 41757.73342 | O31: 41757.98023 | P31: 41758.24398 | Q31: 41758.49187 | R31: 41758.75947 | S31: 41759.00488
A32: 43 | B32: =INDIRECT("'Tides 2010'!"&ADDRESS(B$2,$A32)) ->  | C32: Ht | D32: 1.441221374 | E32: 6.22173913 | F32: 0.8801526718 | G32: 6.195652174 | H32: 1.132061069 | I32: 6.443478261 | J32: 0.6969465649 | K32: 6.365217391 | L32: 0.9259541985 | M32: 6.560869565 | N32: 0.6282442748 | O32: 6.456521739 | P32: 0.8 | Q32: 6.560869565 | R32: 0.6625954198 | S32: 6.469565217
A33: 44 | B33: =INDIRECT("'Tides'!"&ADDRESS(B$2,$A33)) -> Skrries SLACK | C33: Time | D33: 41755.11875 | E33: 41755.38194 | F33: 41755.63889 | G33: 41755.90139 | H33: 41756.15069 | I33: 41756.41319 | J33: 41756.66806 | K33: 41756.92986 | L33: 41757.17917 | M33: 41757.44097 | N33: 41757.69583 | O33: 41757.95486 | P33: 41758.20625 | Q33: 41758.46667 | R33: 41758.72153 | S33: 41758.97986
A34: 45 | B34: =INDIRECT("'Tides'!"&ADDRESS(B$2,$A34)) -> Sth.Stck SLACK | C34: Time | D34: 41755.14306 | E34: 41755.40278 | F34: 41755.66319 | G34: 41755.92222 | H34: 41756.175 | I34: 41756.43403 | J34: 41756.69236 | K34: 41756.95069 | L34: 41757.20347 | M34: 41757.46181 | N34: 41757.72014 | O34: 41757.97569 | P34: 41758.23056 | Q34: 41758.4875 | R34: 41758.74583 | S34: 41759.00069
A35: 46 | B35: =INDIRECT("'Tides'!"&ADDRESS(B$2,$A35)) -> Tr'ddr Bay | C35: Time | D35: 41755.11875 | E35: 41755.36941 | F35: 41755.63889 | G35: 41755.88777 | H35: 41756.15069 | I35: 41756.39892 | J35: 41756.66806 | K35: 41756.91466 | L35: 41757.17917 | M35: 41757.42515 | N35: 41757.69583 | O35: 41757.93827 | P35: 41758.20625 | Q35: 41758.44942 | R35: 41758.72153 | S35: =INDIRECT("'Tides'!"&ADDRESS(S$2,$A35)) -> 41758.96188
A36: 47 | B36: =INDIRECT("'Tides 2010'!"&ADDRESS(B$2,$A36)) ->  | C36: Ht | D36: 1.312977099 | E36: 4.897391304 | F36: 0.8641221374 | G36: 4.876521739 | H36: 1.065648855 | I36: 5.074782609 | J36: 0.7175572519 | K36: 5.012173913 | L36: 0.9007633588 | M36: 5.168695652 | N36: 0.6625954198 | O36: 5.085217391 | P36: 0.8 | Q36: 5.168695652 | R36: 0.6900763359 | S36: 5.095652174
A37: 48 | B37: =INDIRECT("'Tides'!"&ADDRESS(B$2,$A37)) -> Porth T'castell | C37: Time | D37: 41755.12234 | E37: 41755.36941 | F37: 41755.64304 | G37: 41755.88777 | H37: 41756.15517 | I37: 41756.39892 | J37: 41756.67301 | K37: 41756.91466 | L37: 41757.18443 | M37: 41757.42515 | N37: 41757.70156 | O37: 41757.93827 | P37: 41758.21227 | Q37: 41758.44942 | R37: 41758.72797 | S37: 41758.96188
A38: 49 | B38: =INDIRECT("'Tides 2010'!"&ADDRESS(B$2,$A38)) ->  | C38: Ht | D38: 1.255725191 | E38: 4.697391304 | F38: 0.7694656489 | G38: 4.676521739 | H38: 0.9877862595 | I38: 4.874782609 | J38: 0.6106870229 | K38: 4.812173913 | L38: 0.8091603053 | M38: 4.968695652 | N38: 0.5511450382 | O38: 4.885217391 | P38: 0.7 | Q38: 4.968695652 | R38: 0.5809160305 | S38: 4.895652174
A39: 50 | B39: =INDIRECT("'Tides'!"&ADDRESS(B$2,$A39)) -> Trefor | C39: Time | D39: 41755.11169 | E39: 41755.3465 | F39: 41755.63127 | G39: 41755.86513 | H39: 41756.14275 | I39: 41756.37645 | J39: 41756.65963 | K39: 41756.89242 | L39: 41757.17043 | M39: 41757.40307 | N39: 41757.68663 | O39: 41757.91638 | P39: 41758.19676 | Q39: 41758.42769 | R39: 41758.71161 | S39: 41758.94034
A40: 51 | B40: =INDIRECT("'Tides 2010'!"&ADDRESS(B$2,$A40)) ->  | C40: Ht | D40: 1.112977099 | E40: 4.472173913 | F40: 0.6641221374 | G40: 4.449565217 | H40: 0.865648855 | I40: 4.664347826 | J40: 0.5175572519 | K40: 4.596521739 | L40: 0.7007633588 | M40: 4.766086957 | N40: 0.4625954198 | O40: 4.675652174 | P40: 0.6 | Q40: 4.766086957 | R40: 0.4900763359 | S40: 4.686956522
A41: 52 | B41: =INDIRECT("'Tides'!"&ADDRESS(B$2,$A41)) -> Porth Dinllaen | C41: Time | D41: 41755.10822 | E41: 41755.34303 | F41: 41755.6278 | G41: 41755.86166 | H41: 41756.13927 | I41: 41756.37297 | J41: 41756.65615 | K41: 41756.88895 | L41: 41757.16696 | M41: 41757.39959 | N41: 41757.68316 | O41: 41757.91291 | P41: 41758.19329 | Q41: 41758.42422 | R41: 41758.70814 | S41: 41758.93686
A42: 53 | B42: =INDIRECT("'Tides 2010'!"&ADDRESS(B$2,$A42)) ->  | C42: Ht | D42: 1.055725191 | E42: 4.297391304 | F42: 0.5694656489 | G42: 4.276521739 | H42: 0.7877862595 | I42: 4.474782609 | J42: 0.4106870229 | K42: 4.412173913 | L42: 0.6091603053 | M42: 4.568695652 | N42: 0.3511450382 | O42: 4.485217391 | P42: 0.5 | Q42: 4.568695652 | R42: 0.3809160305 | S42: 4.495652174
A43: 54 | B43: =INDIRECT("'Tides'!"&ADDRESS(B$2,$A43)) -> Port Ysgaden | C43: Time | D43: 41755.10307 | E43: 41755.33955 | F43: 41755.62293 | G43: 41755.85819 | H43: 41756.13457 | I43: 41756.3695 | J43: 41756.65169 | K43: 41756.88547 | L43: 41757.16264 | M43: 41757.39612 | N43: 41757.67908 | O43: 41757.90943 | P43: 41758.18935 | Q43: 41758.42075 | R43: 41758.70442 | S43: 41758.93339
A44: 55 | B44: =INDIRECT("'Tides 2010'!"&ADDRESS(B$2,$A44)) ->  | C44: Ht | D44: 1.155725191 | E44: 4.222608696 | F44: 0.6694656489 | G44: 4.203478261 | H44: 0.8877862595 | I44: 4.385217391 | J44: 0.5106870229 | K44: 4.327826087 | L44: 0.7091603053 | M44: 4.471304348 | N44: 0.4511450382 | O44: 4.394782609 | P44: 0.6 | Q44: 4.471304348 | R44: 0.4809160305 | S44: 4.404347826
A45: 56 | B45: =INDIRECT("'Tides'!"&ADDRESS(B$2,$A45)) -> Bardsey Is | C45: Time | D45: 41755.05793 | E45: 41755.28684 | F45: 41755.57779 | G45: 41755.80737 | H45: 41756.08943 | I45: 41756.31983 | J45: 41756.60655 | K45: 41756.83742 | L45: 41757.11751 | M45: 41757.34915 | N45: 41757.63394 | O45: 41757.86381 | P45: 41758.14421 | Q45: 41758.37627 | R45: 41758.65928 | S45: 41758.8902
A46: 57 | B46: =INDIRECT("'Tides 2010'!"&ADDRESS(B$2,$A46)) ->  | C46: Ht | D46: 0.9847328244 | E46: 4.097391304 | F46: 0.6480916031 | G46: 4.076521739 | H46: 0.7992366412 | I46: 4.274782609 | J46: 0.5381679389 | K46: 4.212173913 | L46: 0.6755725191 | M46: 4.368695652 | N46: 0.4969465649 | O46: 4.285217391 | P46: 0.6 | Q46: 4.368695652 | R46: 0.5175572519 | S46: 4.295652174
A47: 58 | B47: =INDIRECT("'Tides'!"&ADDRESS(B$2,$A47)) -> Sound SLACK | C47: Time | D47: 41755.15347 | E47: 41755.38194 | F47: 41755.67361 | G47: 41755.90139 | H47: 41756.18542 | I47: 41756.41319 | J47: 41756.70278 | K47: 41756.92986 | L47: 41757.21389 | M47: 41757.44097 | N47: 41757.73056 | O47: 41757.95486 | P47: 41758.24097 | Q47: 41758.46667 | R47: 41758.75625 | S47: 41758.97986
A48: 3
A49: 60 | B49: =INDIRECT("'Tides'!"&ADDRESS(B$2,$A49)) -> L'pool (approx) | C49: Time | D49: 41755.17083 | E49: 41755.43403 | F49: 41755.69097 | G49: 41755.95347 | H49: 41756.20278 | I49: 41756.46528 | J49: 41756.72014 | K49: 41756.98194 | L49: 41757.23125 | M49: 41757.49306 | N49: 41757.74792 | O49: 41758.00694 | P49: 41758.25833 | Q49: 41758.51875 | R49: =INDIRECT("'Tides'!"&ADDRESS(R$2,$A49)) -> 41758.77361 | S49: =INDIRECT("'Tides'!"&ADDRESS(S$2,$A49)) -> 41759.03194
A50: 61 | B50: Dover (approx) | C50: Time | D50: 41755.16042 | E50: 41755.42361 | F50: 41755.68056 | G50: 41755.94306 | H50: 41756.19236 | I50: 41756.45486 | J50: 41756.70972 | K50: 41756.97153 | L50: 41757.22083 | M50: 41757.48264 | N50: 41757.7375 | O50: 41757.99653 | P50: 41758.24792 | Q50: 41758.50833 | R50: =INDIRECT("'Tides'!"&ADDRESS(R$2,$A50)) -> 41758.76319 | S50: =INDIRECT("'Tides'!"&ADDRESS(S$2,$A50)) -> 41759.02153

Sheet Tides
A1: Time | B1: Adjustment to apply | C1: Raw HOLYHEAD DateTime | G1: MHWS | K1: 5.64 | S1: 7.6 | V1: 7.3 | Y1: 5.6 | AB1: 5.2 | AF1: 4.6 | AH1: 4.9 | AJ1: 7.5 | AL1: 7.5 | AN1: 7.2 | AP1: 6.6 | AT1: 5.2 | AV1: 5 | AX1: 4.8 | AZ1: 4.6 | BB1: 4.5 | BD1: 4.4
G2: MHWN | K2: 4.49 | S2: 6 | V2: 5.8 | Y2: 4.4 | AB2: 4 | AF2: 3.5 | AH2: 3.9 | AJ2: 5.9 | AL2: 5.8 | AN2: 5.7 | AP2: 5.1 | AT2: 4 | AV2: 3.8 | AX2: 3.5 | AZ2: 3.4 | BB2: 3.4 | BD2: 3.2
A3: BST Offset | G3: MLWN | K3: 2.02 | S3: 2.5 | V3: 2.3 | Y3: 2 | AB3: 1.9 | AF3: 1.8 | AH3: 1.9 | AJ3: 2.5 | AL3: 2.5 | AN3: 2.5 | AP3: 2.3 | AT3: 2 | AV3: 2 | AX3: 1.8 | AZ3: 1.8 | BB3: 1.9 | BD3: 1.5
G4: MLWS | K4: 0.71 | S4: 0.8 | V4: 0.7 | Y4: 0.8 | AB4: 0.6 | AF4: 0.6 | AH4: 0.7 | AJ4: 0.9 | AL4: 0.9 | AN4: 0.9 | AP4: 0.8 | AT4: 0.8 | AV4: 0.7 | AX4: 0.6 | AZ4: 0.5 | BB4: 0.6 | BD4: 0.6
G5: T Diff HW Sp | K5: @ | L5: 00:00:00 | M5: 12:00:00 | S5: 00:25:00 | U5: 02:00:00 | V5: 00:30:00 | X5: -0.04166666667 | Y5: -0.01041666667 | AA5: -0.02083333333 | AB5: -0.02083333333 | AF5: -0.02777777778 | AH5: -0.05208333333 | AJ5: 00:25:00 | AL5: 00:25:00 | AN5: 00:20:00 | AP5: 00:20:00 | AR5: -0.01041666667 | AS5: 00:15:00 | AT5: -0.03125 | AV5: -0.03125 | AX5: -0.05208333333 | AZ5: -0.05555555556 | BB5: -0.05902777778 | BD5: -0.09722222222 | BF5: -0.01041666667 | BH5: 01:00:00 | BI5: 00:45:00
G6: T Diff HW Np | K6: @ | L6: 06:00:00 | M6: 18:00:00 | S6: 00:10:00 | U6: 01:45:00 | V6: 00:10:00 | X6: -0.04166666667 | Y6: -0.01736111111 | AA6: -0.02777777778 | AB6: -0.02083333333 | AF6: -0.01041666667 | AH6: -0.03819444444 | AJ6: 00:15:00 | AL6: 00:20:00 | AN6: 00:10:00 | AP6: 00:25:00 | AR6: -0.01041666667 | AS6: 00:15:00 | AT6: -0.01736111111 | AV6: -0.01736111111 | AX6: -0.04166666667 | AZ6: -0.04513888889 | BB6: -0.04861111111 | BD6: -0.1111111111 | BF6: -0.01041666667 | BH6: 01:00:00 | BI6: 00:45:00
G7: T Diff LW Sp | K7: @ | L7: 05:00:00 | M7: 17:00:00 | S7: 00:55:00 | U7: 02:30:00 | V7: 00:10:00 | X7: -0.04166666667 | Y7: 00:30:00 | AA7: -0.03125 | AB7: 00:15:00 | AD7: +/- HW | AF7: -0.01736111111 | AH7: -0.02083333333 | AJ7: 00:50:00 | AL7: 00:50:00 | AN7: 00:35:00 | AP7: 00:40:00 | AR7: -0.01041666667 | AS7: 00:20:00 | AT7: -0.01041666667 | AV7: -0.003472222222 | AX7: -0.02083333333 | AZ7: -0.02430555556 | BB7: -0.02777777778 | BD7: -0.07291666667 | BF7: 00:35:00 | BH7: 01:00:00 | BI7: 00:45:00
G8: T Diff LW Np | K8: @ | L8: 11:00:00 | M8: 23:00:00 | S8: 00:35:00 | U8: 02:10:00 | V8: 00:35:00 | X8: -0.04166666667 | Y8: 00:00:00 | AA8: -0.01041666667 | AB8: -0.003472222222 | AD8: 02:45:00 | AF8: -0.003472222222 | AH8: -0.01388888889 | AJ8: 00:35:00 | AL8: 00:35:00 | AN8: 00:25:00 | AP8: 00:35:00 | AR8: -0.01041666667 | AS8: 00:20:00 | AT8: -0.01041666667 | AV8: -0.01041666667 | AX8: -0.01388888889 | AZ8: -0.01736111111 | BB8: -0.02430555556 | BD8: -0.06944444444 | BF8: 00:35:00 | BH8: 01:00:00 | BI8: 00:45:00
G9: Place | K9: HOLYHEAD | S9: Beaumaris | U9: SLACK | V9: Menai Bridge | X9: Swellies SLACK | Y9: P'dinorwic | AA9: P.D. SLACK | AB9: Caern'fon | AD9: Victoria Dock Gt | AF9: Ft Belan | AH9: Llanddwyn | AJ9: Trwyn Dimnor | AL9: Moelfre | AN9: Amlwch | AP9: Cemaes | AR9: Skrries SLACK | AS9: Sth.Stck SLACK | AT9: Tr'ddr Bay | AV9: Porth T'castell | AX9: Trefor | AZ9: Porth Dinllaen | BB9: Port Ysgaden | BD9: Bardsey Is | BF9: Sound SLACK | BH9: L'pool (approx) | BI9: Dover (approx)
K10: Time | L10: Ht | M10: State | N10: %SpHt | O10: Time | P10: SpTm | Q10: NpTm | R10: %SpTm | S10: Time | T10: Ht | U10: Time | V10: Time | W10: Ht | X10: Time | Y10: Time | Z10: Ht | AA10: Time | AB10: Time | AC10: Ht | AD10: Gate | AE10: Time | AF10: Time | AG10: Ht | AH10: Time | AI10: Ht | AJ10: Time | AK10: Ht | AL10: Time | AM10: Ht | AN10: Time | AO10: Ht | AP10: Time | AQ10: Ht | AR10: Time | AS10: Time | AT10: Time | AU10: Ht | AV10: Time | AW10: Ht | AX10: Time | AY10: Ht | AZ10: Time | BA10: Ht | BB10: Time | BC10: Ht | BD10: Time | BE10: Ht | BF10: Time | BH10: Time | BI10: Time
A11: 0 | B11: =IF(Instructions!$C$2="BST",A11,0) -> 0 | C11: 2018-01-01T03:01:00 | D11: =DATE(YEAR(K11),MONTH(K11),DAY(K11)) -> 2018-01-01 | E11: =IF(D11=D10,IF(J10="","",J10),D11) -> 2018-01-01 | F11: =MONTH(D11) -> 1 | G11: =IF(H11="","",TEXT(F11*29,"mmm")) -> Jan | H11: =IF(I11=I10,"",DAY(K11)) -> 1 | I11: =WEEKDAY(K11,2) -> 1 | J11: =IF(I11=I10,"",TEXT(I11+2,"ddd")) -> Mon | K11: =C11+B11/24 -> 41639.12569 | L11: 0.87 | M11: LW | N11: =IF(M11="HW",(L11-K$2)/(K$1-K$2),(L11-K$3)/(K$4-K$3)) -> 0.8778625954 | O11: =C11-INT(C11) -> 03:01:00 | P11: =IF(M11="HW",IF(AND(O11>=L$5,O11<L$6),L$5,IF(AND(O11>=L$6,O11<M$5),M$5,IF(AND(O11>=M$5,O11<M$6),M$5,IF(O11>=M$6,L$5+1,L$5)))),IF(AND(O11>=L$7,O11<L$8),L$7,IF(AND(O11>=L$8,O11<M$7),M$7,IF(AND(O11>=M$7,O11<M$8),M$7,IF(O11>=M$8,L$7+1,L$7))))) -> 05:00:00 | Q11: =IF(M11="HW",IF(AND(O11>=L$5,O11<L$6),L$6,IF(AND(O11>=L$6,O11<M$5),L$6,IF(AND(O11>=M$5,O11<M$6),M$6,IF(O11>=M$6,M$6,M$6-1)))),IF(AND(O11>=L$7,O11<L$8),L$8,IF(AND(O11>=L$8,O11<M$7),L$8,IF(AND(O11>=M$7,O11<M$8),M$8,IF(O11>=M$8,M$8,M$8-1))))) -> -0.04166666667 | R11: =ABS((O11-Q11)/(P11-Q11)) -> 0.6694444445 | S11: =IF($M11="HW",$K11+S$6+(S$5-S$6)*$R11,$K11+S$8+(S$7-S$8)*$R11) -> 41639.1593 | T11: =IF($M11="HW",S$2+(S$1-S$2)*$N11,S$3+(S$4-S$3)*$N11) -> 1.007633588 | U11: 41639.22527 | V11: 41639.13838 | W11: =IF($M11="HW",V$2+(V$1-V$2)*$N11,V$3+(V$4-V$3)*$N11) -> 0.8954198473 | X11: =IF($M11="HW",$K11+X$6+(X$5-X$6)*$R11,$K11+X$8+(X$7-X$8)*$R11) -> 41639.08403 | Y11: 41639.13964 | Z11: =IF($M11="HW",Y$2+(Y$1-Y$2)*$N11,Y$3+(Y$4-Y$3)*$N11) -> 0.9465648855 | AA11: =IF($M11="HW",$K11+AA$6+(AA$5-AA$6)*$R11,$K11+AA$8+(AA$7-AA$8)*$R11) -> 41639.10133 | AB11: =IF($M11="HW",$K11+AB$6+(AB$5-AB$6)*$R11,$K11+AB$8+(AB$7-AB$8)*$R11) -> 41639.13152 | AC11: =IF($M11="HW",AB$2+(AB$1-AB$2)*$N11,AB$3+(AB$4-AB$3)*$N11) -> 0.758778626 | AD11: =IF($M11="HW","Opn","Cls") -> Cls | AE11: =IF($M11="HW",$AB11-AD$8,IF($AB10="HW",$AB11+AD$8,"?")) -> ? | AF11: =IF($M11="HW",$K11+AF$6+(AF$5-AF$6)*$R11,$K11+AF$8+(AF$7-AF$8)*$R11) -> 41639.11292 | AG11: =IF($M11="HW",AF$2+(AF$1-AF$2)*$N11,AF$3+(AF$4-AF$3)*$N11) -> 0.7465648855 | AH11: =IF($M11="HW",$K11+AH$6+(AH$5-AH$6)*$R11,$K11+AH$8+(AH$7-AH$8)*$R11) -> 41639.10716 | AI11: =IF($M11="HW",AH$2+(AH$1-AH$2)*$N11,AH$3+(AH$4-AH$3)*$N11) -> 0.8465648855 | AJ11: =IF($M11="HW",$K11+AJ$6+(AJ$5-AJ$6)*$R11,$K11+AJ$8+(AJ$7-AJ$8)*$R11) -> 41639.15697 | AK11: =IF($M11="HW",AJ$2+(AJ$1-AJ$2)*$N11,AJ$3+(AJ$4-AJ$3)*$N11) -> 1.095419847 | AL11: =IF($M11="HW",$K11+AL$6+(AL$5-AL$6)*$R11,$K11+AL$8+(AL$7-AL$8)*$R11) -> 41639.15697 | AM11: =IF($M11="HW",AL$2+(AL$1-AL$2)*$N11,AL$3+(AL$4-AL$3)*$N11) -> 1.095419847 | AN11: =IF($M11="HW",$K11+AN$6+(AN$5-AN$6)*$R11,$K11+AN$8+(AN$7-AN$8)*$R11) -> 41639.1477 | AO11: =IF($M11="HW",AN$2+(AN$1-AN$2)*$N11,AN$3+(AN$4-AN$3)*$N11) -> 1.095419847 | AP11: =IF($M11="HW",$K11+AP$6+(AP$5-AP$6)*$R11,$K11+AP$8+(AP$7-AP$8)*$R11) -> 41639.15232 | AQ11: =IF($M11="HW",AP$2+(AP$1-AP$2)*$N11,AP$3+(AP$4-AP$3)*$N11) -> 0.9832061069 | AR11: =IF($M11="HW",$K11+AR$6+(AR$5-AR$6)*$R11,$K11+AR$8+(AR$7-AR$8)*$R11) -> 41639.11528 | AS11: 41639.13958 | AT11: =IF($M11="HW",$K11+AT$6+(AT$5-AT$6)*$R11,$K11+AT$8+(AT$7-AT$8)*$R11) -> 41639.11528 | AU11: =IF($M11="HW",AT$2+(AT$1-AT$2)*$N11,AT$3+(AT$4-AT$3)*$N11) -> 0.9465648855 | AV11: =IF($M11="HW",$K11+AV$6+(AV$5-AV$6)*$R11,$K11+AV$8+(AV$7-AV$8)*$R11) -> 41639.11993 | AW11: =IF($M11="HW",AV$2+(AV$1-AV$2)*$N11,AV$3+(AV$4-AV$3)*$N11) -> 0.858778626 | AX11: =IF($M11="HW",$K11+AX$6+(AX$5-AX$6)*$R11,$K11+AX$8+(AX$7-AX$8)*$R11) -> 41639.10716 | AY11: =IF($M11="HW",AX$2+(AX$1-AX$2)*$N11,AX$3+(AX$4-AX$3)*$N11) -> 0.7465648855 | AZ11: =IF($M11="HW",$K11+AZ$6+(AZ$5-AZ$6)*$R11,$K11+AZ$8+(AZ$7-AZ$8)*$R11) -> 41639.10368 | BA11: =IF($M11="HW",AZ$2+(AZ$1-AZ$2)*$N11,AZ$3+(AZ$4-AZ$3)*$N11) -> 0.658778626 | BB11: =IF($M11="HW",$K11+BB$6+(BB$5-BB$6)*$R11,$K11+BB$8+(BB$7-BB$8)*$R11) -> 41639.09906 | BC11: =IF($M11="HW",BB$2+(BB$1-BB$2)*$N11,BB$3+(BB$4-BB$3)*$N11) -> 0.758778626 | BD11: =IF($M11="HW",$K11+BD$6+(BD$5-BD$6)*$R11,$K11+BD$8+(BD$7-BD$8)*$R11) -> 41639.05393 | BE11: =IF($M11="HW",BD$2+(BD$1-BD$2)*$N11,BD$3+(BD$4-BD$3)*$N11) -> 0.7099236641 | BF11: =IF($M11="HW",$K11+BF$6+(BF$5-BF$6)*$R11,$K11+BF$8+(BF$7-BF$8)*$R11) -> 41639.15 | BH11: 41639.16736 | BI11: 41639.15694
A12: 0 | B12: =IF(Instructions!$C$2="BST",A12,0) -> 0 | C12: 2018-01-01T09:21:00 | D12: =DATE(YEAR(K12),MONTH(K12),DAY(K12)) -> 2018-01-01 | E12: =IF(D12=D11,IF(J11="","",J11),D12) -> Mon | F12: 1 | G12: =IF(H12="","",TEXT(F12*29,"mmm")) ->  | H12: =IF(I12=I11,"",DAY(K12)) ->  | I12: 1 | J12: =IF(I12=I11,"",TEXT(I12+2,"ddd")) ->  | K12: 41639.38958 | L12: 5.71 | M12: HW | N12: =IF(M12="HW",(L12-K$2)/(K$1-K$2),(L12-K$3)/(K$4-K$3)) -> 1.060869565 | O12: 09:21:00 | P12: =IF(M12="HW",IF(AND(O12>=L$5,O12<L$6),L$5,IF(AND(O12>=L$6,O12<M$5),M$5,IF(AND(O12>=M$5,O12<M$6),M$5,IF(O12>=M$6,L$5+1,L$5)))),IF(AND(O12>=L$7,O12<L$8),L$7,IF(AND(O12>=L$8,O12<M$7),M$7,IF(AND(O12>=M$7,O12<M$8),M$7,IF(O12>=M$8,L$7+1,L$7))))) -> 12:00:00 | Q12: =IF(M12="HW",IF(AND(O12>=L$5,O12<L$6),L$6,IF(AND(O12>=L$6,O12<M$5),L$6,IF(AND(O12>=M$5,O12<M$6),M$6,IF(O12>=M$6,M$6,M$6-1)))),IF(AND(O12>=L$7,O12<L$8),L$8,IF(AND(O12>=L$8,O12<M$7),L$8,IF(AND(O12>=M$7,O12<M$8),M$8,IF(O12>=M$8,M$8,M$8-1))))) -> 06:00:00 | R12: 0.5583333333 | S12: 41639.40234 | T12: 7.697391304 | U12: 41639.46832 | V12: 41639.40428 | W12: 7.391304348 | X12: 41639.34792 | Y12: 41639.3761 | Z12: =IF($M12="HW",Y$2+(Y$1-Y$2)*$N12,Y$3+(Y$4-Y$3)*$N12) -> 5.673043478 | AA12: 41639.36568 | AB12: 41639.36875 | AC12: =IF($M12="HW",AB$2+(AB$1-AB$2)*$N12,AB$3+(AB$4-AB$3)*$N12) -> 5.273043478 | AD12: Opn | AE12: =IF($M12="HW",$AB12-AD$8,$AB11+AD$8) -> 41639.25417 | AF12: 41639.36947 | AG12: =IF($M12="HW",AF$2+(AF$1-AF$2)*$N12,AF$3+(AF$4-AF$3)*$N12) -> 4.666956522 | AH12: 41639.34363 | AI12: =IF($M12="HW",AH$2+(AH$1-AH$2)*$N12,AH$3+(AH$4-AH$3)*$N12) -> 4.960869565 | AJ12: 41639.40388 | AK12: =IF($M12="HW",AJ$2+(AJ$1-AJ$2)*$N12,AJ$3+(AJ$4-AJ$3)*$N12) -> 7.597391304 | AL12: 41639.40541 | AM12: =IF($M12="HW",AL$2+(AL$1-AL$2)*$N12,AL$3+(AL$4-AL$3)*$N12) -> 7.603478261 | AN12: 41639.40041 | AO12: =IF($M12="HW",AN$2+(AN$1-AN$2)*$N12,AN$3+(AN$4-AN$3)*$N12) -> 7.291304348 | AP12: 41639.40501 | AQ12: =IF($M12="HW",AP$2+(AP$1-AP$2)*$N12,AP$3+(AP$4-AP$3)*$N12) -> 6.691304348 | AR12: 41639.37917 | AS12: 41639.4 | AT12: 41639.36447 | AU12: =IF($M12="HW",AT$2+(AT$1-AT$2)*$N12,AT$3+(AT$4-AT$3)*$N12) -> 5.273043478 | AV12: 41639.36447 | AW12: =IF($M12="HW",AV$2+(AV$1-AV$2)*$N12,AV$3+(AV$4-AV$3)*$N12) -> 5.073043478 | AX12: 41639.3421 | AY12: =IF($M12="HW",AX$2+(AX$1-AX$2)*$N12,AX$3+(AX$4-AX$3)*$N12) -> 4.879130435 | AZ12: 41639.33863 | BA12: =IF($M12="HW",AZ$2+(AZ$1-AZ$2)*$N12,AZ$3+(AZ$4-AZ$3)*$N12) -> 4.673043478 | BB12: 41639.33516 | BC12: =IF($M12="HW",BB$2+(BB$1-BB$2)*$N12,BB$3+(BB$4-BB$3)*$N12) -> 4.566956522 | BD12: 41639.28623 | BE12: =IF($M12="HW",BD$2+(BD$1-BD$2)*$N12,BD$3+(BD$4-BD$3)*$N12) -> 4.473043478 | BF12: 41639.37917 | BH12: 41639.43125 | BI12: 41639.42083
A13: 0 | B13: =IF(Instructions!$C$2="BST",A13,0) -> 0 | C13: 2018-01-01T15:29:00 | D13: =DATE(YEAR(K13),MONTH(K13),DAY(K13)) -> 2018-01-01 | F13: 1 | I13: 1 | K13: 41639.64514 | L13: 0.8 | M13: LW | N13: 0.9312977099 | O13: 15:29:00 | P13: 17:00:00 | Q13: 11:00:00 | R13: 0.7472222222 | S13: 41639.67982 | T13: 0.9167938931 | U13: 41639.74579 | V13: 41639.65647 | W13: 0.8099236641 | X13: 41639.60347 | Y13: 41639.66071 | Z13: 0.8824427481 | AA13: 41639.61916 | AB13: 41639.65204 | AC13: 0.6893129771 | AD13: Cls | AE13: 41639.48333 | AF13: 41639.63129 | AG13: 0.6824427481 | AH13: 41639.62606 | AI13: 0.7824427481 | AJ13: 41639.67723 | AK13: 1.009923664 | AL13: 41639.67723 | AM13: 1.009923664 | AN13: 41639.66769 | AO13: 1.009923664 | AP13: 41639.67204 | AQ13: 0.9030534351 | AR13: 41639.63472 | AS13: 41639.65903 | AT13: 41639.63472 | AU13: 0.8824427481 | AV13: 41639.63991 | AW13: 0.7893129771 | AX13: 41639.62606 | AY13: 0.6824427481 | AZ13: 41639.62259 | BA13: 0.5893129771 | BB13: 41639.61824 | BC13: 0.6893129771 | BD13: 41639.5731 | BE13: 0.6618320611 | BF13: 41639.66944 | BH13: 41639.68681 | BI13: 41639.67639
A14: 0 | B14: =IF(Instructions!$C$2="BST",A14,0) -> 0 | C14: 2018-01-01T21:44:00 | D14: 2018-01-01 | F14: 1 | I14: 1 | K14: 41639.90556 | L14: 5.81 | M14: HW | N14: =IF(M14="HW",(L14-K$2)/(K$1-K$2),(L14-K$3)/(K$4-K$3)) -> 1.147826087 | O14: 21:44:00 | P14: =IF(M14="HW",IF(AND(O14>=L$5,O14<L$6),L$5,IF(AND(O14>=L$6,O14<M$5),M$5,IF(AND(O14>=M$5,O14<M$6),M$5,IF(O14>=M$6,L$5+1,L$5)))),IF(AND(O14>=L$7,O14<L$8),L$7,IF(AND(O14>=L$8,O14<M$7),M$7,IF(AND(O14>=M$7,O14<M$8),M$7,IF(O14>=M$8,L$7+1,L$7))))) -> 1 | Q14: =IF(M14="HW",IF(AND(O14>=L$5,O14<L$6),L$6,IF(AND(O14>=L$6,O14<M$5),L$6,IF(AND(O14>=M$5,O14<M$6),M$6,IF(O14>=M$6,M$6,M$6-1)))),IF(AND(O14>=L$7,O14<L$8),L$8,IF(AND(O14>=L$8,O14<M$7),L$8,IF(AND(O14>=M$7,O14<M$8),M$8,IF(O14>=M$8,M$8,M$8-1))))) -> 18:00:00 | R14: 0.6222222222 | S14: 41639.91898 | T14: 7.836521739 | U14: 41639.98495 | V14: 41639.92114 | W14: 7.52173913 | X14: 41639.86389 | Y14: 41639.89252 | Z14: =IF($M14="HW",Y$2+(Y$1-Y$2)*$N14,Y$3+(Y$4-Y$3)*$N14) -> 5.777391304 | AA14: 41639.8821 | AB14: 41639.88472 | AC14: =IF($M14="HW",AB$2+(AB$1-AB$2)*$N14,AB$3+(AB$4-AB$3)*$N14) -> 5.377391304 | AD14: Opn | AE14: 41639.77014 | AF14: 41639.88434 | AG14: =IF($M14="HW",AF$2+(AF$1-AF$2)*$N14,AF$3+(AF$4-AF$3)*$N14) -> 4.762608696 | AH14: 41639.85872 | AI14: =IF($M14="HW",AH$2+(AH$1-AH$2)*$N14,AH$3+(AH$4-AH$3)*$N14) -> 5.047826087 | AJ14: 41639.92029 | AK14: =IF($M14="HW",AJ$2+(AJ$1-AJ$2)*$N14,AJ$3+(AJ$4-AJ$3)*$N14) -> 7.736521739 | AL14: 41639.9216 | AM14: =IF($M14="HW",AL$2+(AL$1-AL$2)*$N14,AL$3+(AL$4-AL$3)*$N14) -> 7.751304348 | AN14: 41639.91682 | AO14: =IF($M14="HW",AN$2+(AN$1-AN$2)*$N14,AN$3+(AN$4-AN$3)*$N14) -> 7.42173913 | AP14: 41639.92076 | AQ14: =IF($M14="HW",AP$2+(AP$1-AP$2)*$N14,AP$3+(AP$4-AP$3)*$N14) -> 6.82173913 | AR14: 41639.89514 | AS14: 41639.91597 | AT14: 41639.87955 | AU14: =IF($M14="HW",AT$2+(AT$1-AT$2)*$N14,AT$3+(AT$4-AT$3)*$N14) -> 5.377391304 | AV14: 41639.87955 | AW14: =IF($M14="HW",AV$2+(AV$1-AV$2)*$N14,AV$3+(AV$4-AV$3)*$N14) -> 5.177391304 | AX14: 41639.85741 | AY14: =IF($M14="HW",AX$2+(AX$1-AX$2)*$N14,AX$3+(AX$4-AX$3)*$N14) -> 4.992173913 | AZ14: 41639.85394 | BA14: =IF($M14="HW",AZ$2+(AZ$1-AZ$2)*$N14,AZ$3+(AZ$4-AZ$3)*$N14) -> 4.777391304 | BB14: 41639.85046 | BC14: =IF($M14="HW",BB$2+(BB$1-BB$2)*$N14,BB$3+(BB$4-BB$3)*$N14) -> 4.662608696 | BD14: 41639.80309 | BE14: =IF($M14="HW",BD$2+(BD$1-BD$2)*$N14,BD$3+(BD$4-BD$3)*$N14) -> 4.577391304 | BF14: 41639.89514 | BH14: 41639.94722 | BI14: 41639.93681
A15: 0 | B15: =IF(Instructions!$C$2="BST",A15,0) -> 0 | C15: 2018-01-02T03:50:00 | D15: 2018-01-02 | E15: 2018-01-02 | F15: 1 | G15: =IF(H15="","",TEXT(F15*29,"mmm")) -> Jan | H15: =IF(I15=I14,"",DAY(K15)) -> 2 | I15: =WEEKDAY(K15,2) -> 2 | J15: =IF(I15=I14,"",TEXT(I15+2,"ddd")) -> Tue | K15: 41640.15972 | L15: 0.69 | M15: LW | N15: 1.015267176 | O15: 03:50:00 | P15: 05:00:00 | Q15: -0.04166666667 | R15: 0.8055555555 | S15: 41640.19522 | T15: 0.7740458015 | U15: 41640.26119 | V15: 41640.17004 | W15: 0.6755725191 | X15: 41640.11806 | Y15: 41640.1765 | Z15: 0.7816793893 | AA15: 41640.13252 | AB15: 41640.16744 | AC15: 0.5801526718 | AD15: Cls | AE15: 41639.99931 | AF15: 41640.14506 | AG15: 0.5816793893 | AH15: 41640.14024 | AI15: 0.6816793893 | AJ15: 41640.19242 | AK15: 0.8755725191 | AL15: 41640.19242 | AM15: 0.8755725191 | AN15: 41640.18268 | AO15: 0.8755725191 | AP15: 41640.18682 | AQ15: 0.7770992366 | AR15: 41640.14931 | AS15: 41640.17361 | AT15: 41640.14931 | AU15: 0.7816793893 | AV15: 41640.1549 | AW15: 0.6801526718 | AX15: 41640.14024 | AY15: 0.5816793893 | AZ15: 41640.13677 | BA15: 0.4801526718 | BB15: 41640.13262 | BC15: 0.5801526718 | BD15: 41640.08748 | BE15: 0.586259542 | BF15: 41640.18403 | BH15: 41640.20139 | BI15: 41640.19097
A16: 0 | B16: =IF(Instructions!$C$2="BST",A16,0) -> 0 | C16: 2018-01-02T10:09:00 | D16: 2018-01-02 | E16: Tue | F16: 1 | G16: =IF(H16="","",TEXT(F16*29,"mmm")) ->  | H16: =IF(I16=I15,"",DAY(K16)) ->  | I16: 2 | J16: =IF(I16=I15,"",TEXT(I16+2,"ddd")) ->  | K16: 41640.42292 | L16: 5.93 | M16: HW | N16: 1.252173913 | O16: 10:09:00 | P16: 12:00:00 | Q16: 06:00:00 | R16: 0.6916666667 | S16: 41640.43707 | T16: 8.003478261 | U16: 41640.50304 | V16: 41640.43947 | W16: 7.67826087 | X16: 41640.38125 | Y16: 41640.41036 | Z16: 5.902608696 | AA16: 41640.39994 | AB16: 41640.40208 | AC16: 5.502608696 | AD16: Opn | AE16: 41640.2875 | AF16: 41640.40049 | AG16: 4.877391304 | AH16: 41640.37512 | AI16: 5.152173913 | AJ16: 41640.43814 | AK16: 7.903478261 | AL16: 41640.43921 | AM16: 7.928695652 | AN16: 41640.43466 | AO16: 7.57826087 | AP16: 41640.43788 | AQ16: 6.97826087 | AR16: 41640.4125 | AS16: 41640.43333 | AT16: 41640.39595 | AU16: 5.502608696 | AV16: 41640.39595 | AW16: 5.302608696 | AX16: 41640.37405 | AY16: 5.127826087 | AZ16: 41640.37057 | BA16: 4.902608696 | BB16: 41640.3671 | BC16: 4.777391304 | BD16: 41640.32141 | BE16: 4.702608696 | BF16: 41640.4125 | BH16: 41640.46458 | BI16: 41640.45417
A17: 0 | B17: =IF(Instructions!$C$2="BST",A17,0) -> 0 | C17: 2018-01-02T16:19:00 | D17: 2018-01-02 | E17: =IF(D17=D16,IF(J16="","",J16),D17) ->  | F17: 1 | I17: 2 | K17: 41640.67986 | L17: 0.56 | M17: LW | N17: 1.114503817 | O17: 16:19:00 | P17: 17:00:00 | Q17: 11:00:00 | R17: 0.8861111111 | S17: 41640.71647 | T17: 0.6053435115 | U17: 41640.78245 | V17: 41640.68878 | W17: 0.5167938931 | X17: 41640.63819 | Y17: 41640.69832 | Z17: 0.6625954198 | AA17: 41640.65098 | AB17: 41640.6887 | AC17: 0.4511450382 | AD17: Cls | AE17: 41640.51667 | AF17: 41640.66408 | AG17: 0.4625954198 | AH17: 41640.65982 | AI17: 0.5625954198 | AJ17: 41640.7134 | AK17: 0.7167938931 | AL17: 41640.7134 | AM17: 0.7167938931 | AN17: 41640.70338 | AO17: 0.7167938931 | AP17: 41640.70724 | AQ17: 0.6282442748 | AR17: 41640.66944 | AS17: 41640.69375 | AT17: 41640.66944 | AU17: 0.6625954198 | AV17: 41640.6756 | AW17: 0.5511450382 | AX17: 41640.65982 | AY17: 0.4625954198 | AZ17: 41640.65635 | BA17: 0.3511450382 | BB17: 41640.65248 | BC17: 0.4511450382 | BD17: 41640.60734 | BE17: 0.4969465649 | BF17: 41640.70417 | BH17: 41640.72153 | BI17: 41640.71111
A18: 0 | B18: =IF(Instructions!$C$2="BST",A18,0) -> 0 | C18: 2018-01-02T22:34:00 | D18: 2018-01-02 | F18: 1 | I18: 2 | K18: 41640.94028 | L18: 5.92 | M18: HW | N18: =IF(M18="HW",(L18-K$2)/(K$1-K$2),(L18-K$3)/(K$4-K$3)) -> 1.243478261 | O18: 22:34:00 | P18: =IF(M18="HW",IF(AND(O18>=L$5,O18<L$6),L$5,IF(AND(O18>=L$6,O18<M$5),M$5,IF(AND(O18>=M$5,O18<M$6),M$5,IF(O18>=M$6,L$5+1,L$5)))),IF(AND(O18>=L$7,O18<L$8),L$7,IF(AND(O18>=L$8,O18<M$7),M$7,IF(AND(O18>=M$7,O18<M$8),M$7,IF(O18>=M$8,L$7+1,L$7))))) -> 1 | Q18: =IF(M18="HW",IF(AND(O18>=L$5,O18<L$6),L$6,IF(AND(O18>=L$6,O18<M$5),L$6,IF(AND(O18>=M$5,O18<M$6),M$6,IF(O18>=M$6,M$6,M$6-1)))),IF(AND(O18>=L$7,O18<L$8),L$8,IF(AND(O18>=L$8,O18<M$7),L$8,IF(AND(O18>=M$7,O18<M$8),M$8,IF(O18>=M$8,M$8,M$8-1))))) -> 18:00:00 | R18: 0.7611111111 | S18: 41640.95515 | T18: 7.989565217 | U18: 41641.02112 | V18: 41640.95779 | W18: 7.665217391 | X18: 41640.89861 | Y18: 41640.9282 | Z18: =IF($M18="HW",Y$2+(Y$1-Y$2)*$N18,Y$3+(Y$4-Y$3)*$N18) -> 5.892173913 | AA18: 41640.91779 | AB18: 41640.91944 | AC18: =IF($M18="HW",AB$2+(AB$1-AB$2)*$N18,AB$3+(AB$4-AB$3)*$N18) -> 5.492173913 | AD18: Opn | AE18: 41640.80486 | AF18: 41640.91665 | AG18: =IF($M18="HW",AF$2+(AF$1-AF$2)*$N18,AF$3+(AF$4-AF$3)*$N18) -> 4.867826087 | AH18: 41640.89151 | AI18: =IF($M18="HW",AH$2+(AH$1-AH$2)*$N18,AH$3+(AH$4-AH$3)*$N18) -> 5.143478261 | AJ18: 41640.95598 | AK18: =IF($M18="HW",AJ$2+(AJ$1-AJ$2)*$N18,AJ$3+(AJ$4-AJ$3)*$N18) -> 7.889565217 | AL18: 41640.95681 | AM18: =IF($M18="HW",AL$2+(AL$1-AL$2)*$N18,AL$3+(AL$4-AL$3)*$N18) -> 7.913913043 | AN18: 41640.95251 | AO18: =IF($M18="HW",AN$2+(AN$1-AN$2)*$N18,AN$3+(AN$4-AN$3)*$N18) -> 7.565217391 | AP18: 41640.955 | AQ18: =IF($M18="HW",AP$2+(AP$1-AP$2)*$N18,AP$3+(AP$4-AP$3)*$N18) -> 6.965217391 | AR18: 41640.92986 | AS18: 41640.95069 | AT18: 41640.91235 | AU18: =IF($M18="HW",AT$2+(AT$1-AT$2)*$N18,AT$3+(AT$4-AT$3)*$N18) -> 5.492173913 | AV18: 41640.91235 | AW18: =IF($M18="HW",AV$2+(AV$1-AV$2)*$N18,AV$3+(AV$4-AV$3)*$N18) -> 5.292173913 | AX18: 41640.89068 | AY18: =IF($M18="HW",AX$2+(AX$1-AX$2)*$N18,AX$3+(AX$4-AX$3)*$N18) -> 5.116521739 | AZ18: 41640.88721 | BA18: =IF($M18="HW",AZ$2+(AZ$1-AZ$2)*$N18,AZ$3+(AZ$4-AZ$3)*$N18) -> 4.892173913 | BB18: 41640.88374 | BC18: =IF($M18="HW",BB$2+(BB$1-BB$2)*$N18,BB$3+(BB$4-BB$3)*$N18) -> 4.767826087 | BD18: 41640.83974 | BE18: =IF($M18="HW",BD$2+(BD$1-BD$2)*$N18,BD$3+(BD$4-BD$3)*$N18) -> 4.692173913 | BF18: 41640.92986 | BH18: 41640.98194 | BI18: 41640.97153
A19: 0 | B19: =IF(Instructions!$C$2="BST",A19,0) -> 0 | C19: 2018-01-03T04:38:00 | D19: 2018-01-03 | E19: =IF(D19=D18,IF(J18="","",J18),D19) -> 2018-01-03 | F19: 1 | G19: =IF(H19="","",TEXT(F19*29,"mmm")) -> Jan | H19: =IF(I19=I18,"",DAY(K19)) -> 3 | I19: 3 | J19: =IF(I19=I18,"",TEXT(I19+2,"ddd")) -> Wed | K19: 41641.19306 | L19: 0.6 | M19: LW | N19: 1.083969466 | O19: 04:38:00 | P19: 05:00:00 | Q19: -0.04166666667 | R19: 0.9388888889 | S19: 41641.2304 | T19: 0.6572519084 | U19: 41641.29637 | V19: 41641.20106 | W19: 0.565648855 | X19: 41641.15139 | Y19: 41641.21262 | Z19: 0.6992366412 | AA19: 41641.16308 | AB19: 41641.20262 | AC19: 0.4908396947 | AD19: Cls | AE19: 41641.03403 | AF19: 41641.17654 | AG19: 0.4992366412 | AH19: 41641.17265 | AI19: 0.5992366412 | AJ19: 41641.22714 | AK19: 0.765648855 | AL19: 41641.22714 | AM19: 0.765648855 | AN19: 41641.21694 | AO19: 0.765648855 | AP19: 41641.22062 | AQ19: 0.6740458015 | AR19: 41641.18264 | AS19: 41641.20694 | AT19: 41641.18264 | AU19: 0.6992366412 | AV19: 41641.18916 | AW19: 0.5908396947 | AX19: 41641.17265 | AY19: 0.4992366412 | AZ19: 41641.16917 | BA19: 0.3908396947 | BB19: 41641.16549 | BC19: 0.4908396947 | BD19: 41641.12035 | BE19: 0.5244274809 | BF19: 41641.21736 | BH19: 41641.23472 | BI19: 41641.22431
A20: 0 | B20: =IF(Instructions!$C$2="BST",A20,0) -> 0 | C20: 2018-01-03T10:56:00 | D20: 2018-01-03 | E20: Wed | F20: 1 | G20: =IF(H20="","",TEXT(F20*29,"mmm")) ->  | H20: =IF(I20=I19,"",DAY(K20)) ->  | I20: 3 | J20: =IF(I20=I19,"",TEXT(I20+2,"ddd")) ->  | K20: 41641.45556 | L20: 6.06 | M20: HW | N20: 1.365217391 | O20: 10:56:00 | P20: 12:00:00 | Q20: 06:00:00 | R20: 0.8222222222 | S20: 41641.47106 | T20: 8.184347826 | U20: 41641.53704 | V20: 41641.47392 | W20: 7.847826087 | X20: 41641.41389 | Y20: 41641.4439 | Z20: 6.03826087 | AA20: 41641.43349 | AB20: 41641.43472 | AC20: 5.63826087 | AD20: Opn | AE20: 41641.32014 | AF20: 41641.43086 | AG20: 5.00173913 | AH20: 41641.40594 | AI20: 5.265217391 | AJ20: 41641.47168 | AK20: 8.084347826 | AL20: 41641.4723 | AM20: 8.120869565 | AN20: 41641.46821 | AO20: 7.747826087 | AP20: 41641.47006 | AQ20: 7.147826087 | AR20: 41641.44514 | AS20: 41641.46597 | AT20: 41641.42677 | AU20: 5.63826087 | AV20: 41641.42677 | AW20: 5.43826087 | AX20: 41641.40532 | AY20: 5.274782609 | AZ20: 41641.40185 | BA20: 5.03826087 | BB20: 41641.39838 | BC20: 4.90173913 | BD20: 41641.35586 | BE20: 4.83826087 | BF20: 41641.44514 | BH20: 41641.49722 | BI20: 41641.48681
A21: 0 | B21: =IF(Instructions!$C$2="BST",A21,0) -> 0 | C21: 2018-01-03T17:08:00 | D21: 2018-01-03 | F21: 1 | I21: 3 | K21: 41641.71389 | L21: 0.43 | M21: LW | N21: 1.213740458 | O21: 17:08:00 | P21: 17:00:00 | Q21: 23:00:00 | R21: 0.9777777778 | S21: 41641.75177 | T21: 0.4366412214 | U21: 41641.81775 | V21: 41641.72122 | W21: 0.3580152672 | X21: 41641.67222 | Y21: 41641.73426 | Z21: 0.5435114504 | AA21: 41641.6831 | AB21: 41641.724 | AC21: 0.3221374046 | AD21: Cls | AE21: 41641.54931 | AF21: 41641.69684 | AG21: 0.3435114504 | AH21: 41641.69321 | AI21: 0.4435114504 | AJ21: 41641.74838 | AK21: 0.5580152672 | AL21: 41641.74838 | AM21: 0.5580152672 | AN21: 41641.73804 | AO21: 0.5580152672 | AP21: 41641.74159 | AQ21: 0.479389313 | AR21: 41641.70347 | AS21: 41641.72778 | AT21: 41641.70347 | AU21: 0.5435114504 | AV21: 41641.71026 | AW21: 0.4221374046 | AX21: 41641.69321 | AY21: 0.3435114504 | AZ21: 41641.68974 | BA21: 0.2221374046 | BB21: 41641.68619 | BC21: 0.3221374046 | BD21: 41641.64105 | BE21: 0.4076335878 | BF21: 41641.73819 | BH21: 41641.75556 | BI21: 41641.74514
A22: 0 | B22: =IF(Instructions!$C$2="BST",A22,0) -> 0 | C22: 2018-01-03T23:23:00 | D22: 2018-01-03 | F22: 1 | I22: 3 | K22: 41641.97431 | L22: 5.91 | M22: HW | N22: 1.234782609 | O22: 23:23:00 | P22: 1 | Q22: 18:00:00 | R22: 0.8972222222 | S22: 41641.9906 | T22: 7.975652174 | U22: 41642.05657 | V22: 41641.99371 | W22: 7.652173913 | X22: 41641.93264 | Y22: 41641.96318 | Z22: 5.88173913 | AA22: 41641.95276 | AB22: 41641.95347 | AC22: 5.48173913 | AD22: Opn | AE22: 41641.83889 | AF22: 41641.94831 | AG22: 4.85826087 | AH22: 41641.92365 | AI22: 5.134782609 | AJ22: 41641.99095 | AK22: 7.875652174 | AL22: 41641.99131 | AM22: 7.899130435 | AN22: 41641.98748 | AO22: 7.552173913 | AP22: 41641.98855 | AQ22: 6.952173913 | AR22: 41641.96389 | AS22: 41641.98472 | AT22: 41641.94448 | AU22: 5.48173913 | AV22: 41641.94448 | AW22: 5.28173913 | AX22: 41641.92329 | AY22: 5.105217391 | AZ22: 41641.91982 | BA22: 4.88173913 | BB22: 41641.91635 | BC22: 4.75826087 | BD22: 41641.87566 | BE22: 4.68173913 | BF22: 41641.96389 | BH22: 41642.01597 | BI22: 41642.00556
A23: 0 | B23: =IF(Instructions!$C$2="BST",A23,0) -> 0 | C23: 2018-01-04T05:26:00 | D23: 2018-01-04 | E23: 2018-01-04 | F23: 1 | G23: =IF(H23="","",TEXT(F23*29,"mmm")) -> Jan | H23: =IF(I23=I22,"",DAY(K23)) -> 4 | I23: =WEEKDAY(K23,2) -> 4 | J23: =IF(I23=I22,"",TEXT(I23+2,"ddd")) -> Thu | K23: 41642.22639 | L23: 0.62 | M23: LW | N23: 1.06870229 | O23: 05:26:00 | P23: 05:00:00 | Q23: 11:00:00 | R23: 0.9277777778 | S23: 41642.26358 | T23: 0.6832061069 | U23: 41642.32955 | V23: 41642.23459 | W23: 0.5900763359 | X23: 41642.18472 | Y23: 41642.24572 | Z23: 0.7175572519 | AA23: 41642.19664 | AB23: 41642.2358 | AC23: 0.5106870229 | AD23: Cls | AE23: 41642.06806 | AF23: 41642.21003 | AG23: 0.5175572519 | AH23: 41642.20606 | AI23: 0.6175572519 | AJ23: 41642.26036 | AK23: 0.7900763359 | AL23: 41642.26036 | AM23: 0.7900763359 | AN23: 41642.25019 | AO23: 0.7900763359 | AP23: 41642.25392 | AQ23: 0.6969465649 | AR23: 41642.21597 | AS23: 41642.24028 | AT23: 41642.21597 | AU23: 0.7175572519 | AV23: 41642.22242 | AW23: 0.6106870229 | AX23: 41642.20606 | AY23: 0.5175572519 | AZ23: 41642.20258 | BA23: 0.4106870229 | BB23: 41642.19886 | BC23: 0.5106870229 | BD23: 41642.15372 | BE23: 0.5381679389 | BF23: 41642.25069 | BH23: 41642.26806 | BI23: 41642.25764
A24: 0 | B24: =IF(Instructions!$C$2="BST",A24,0) -> 0 | C24: 2018-01-04T11:44:00 | D24: 2018-01-04 | E24: Thu | F24: 1 | G24: =IF(H24="","",TEXT(F24*29,"mmm")) ->  | H24: =IF(I24=I23,"",DAY(K24)) ->  | I24: 4 | J24: =IF(I24=I23,"",TEXT(I24+2,"ddd")) ->  | K24: 41642.48889 | L24: 6.07 | M24: HW | N24: 1.373913043 | O24: 11:44:00 | P24: 12:00:00 | Q24: 06:00:00 | R24: 0.9555555556 | S24: 41642.50579 | T24: 8.19826087 | U24: 41642.57176 | V24: 41642.5091 | W24: 7.860869565 | X24: 41642.44722 | Y24: 41642.47816 | Z24: 6.048695652 | AA24: 41642.46775 | AB24: 41642.46806 | AC24: 5.648695652 | AD24: Opn | AE24: 41642.35347 | AF24: 41642.46188 | AG24: 5.011304348 | AH24: 41642.43742 | AI24: 5.273913043 | AJ24: 41642.50594 | AK24: 8.09826087 | AL24: 41642.5061 | AM24: 8.135652174 | AN24: 41642.50247 | AO24: 7.760869565 | AP24: 41642.50293 | AQ24: 7.160869565 | AR24: 41642.47847 | AS24: 41642.49931 | AT24: 41642.45826 | AU24: 5.648695652 | AV24: 41642.45826 | AW24: 5.448695652 | AX24: 41642.43727 | AY24: 5.286086957 | AZ24: 41642.4338 | BA24: 5.048695652 | BB24: 41642.43032 | BC24: 4.911304348 | BD24: 41642.39105 | BE24: 4.848695652 | BF24: 41642.47847 | BH24: 41642.53056 | BI24: 41642.52014
A25: 0 | B25: =IF(Instructions!$C$2="BST",A25,0) -> 0 | C25: 2018-01-04T17:58:00 | D25: 2018-01-04 | E25: =IF(D25=D24,IF(J24="","",J24),D25) ->  | F25: 1 | I25: 4 | K25: 41642.74861 | L25: 0.43 | M25: LW | N25: 1.213740458 | O25: 17:58:00 | P25: 17:00:00 | Q25: 23:00:00 | R25: 0.8388888889 | S25: 41642.78457 | T25: 0.4366412214 | U25: 41642.85054 | V25: 41642.75835 | W25: 0.3580152672 | X25: 41642.70694 | Y25: 41642.76609 | Z25: 0.5435114504 | AA25: 41642.72072 | AB25: 41642.75679 | AC25: 0.3221374046 | AD25: Cls | AE25: 41642.58264 | AF25: 41642.73349 | AG25: 0.3435114504 | AH25: 41642.7289 | AI25: 0.4435114504 | AJ25: 41642.78166 | AK25: 0.5580152672 | AL25: 41642.78166 | AM25: 0.5580152672 | AN25: 41642.7718 | AO25: 0.5580152672 | AP25: 41642.77583 | AQ25: 0.479389313 | AR25: 41642.73819 | AS25: 41642.7625 | AT25: 41642.73819 | AU25: 0.5435114504 | AV25: 41642.74402 | AW25: 0.4221374046 | AX25: 41642.7289 | AY25: 0.3435114504 | AZ25: 41642.72542 | BA25: 0.2221374046 | BB25: 41642.72139 | BC25: 0.3221374046 | BD25: 41642.67625 | BE25: 0.4076335878 | BF25: 41642.77292 | BH25: 41642.79028 | BI25: 41642.77986
A26: 0 | B26: =IF(Instructions!$C$2="BST",A26,0) -> 0 | C26: 2018-01-05T00:13:00 | D26: 2018-01-05 | E26: 2018-01-05 | F26: 1 | G26: Jan | H26: 5 | I26: 5 | J26: Fri | K26: 41643.00903 | L26: 5.8 | M26: HW | N26: =IF(M26="HW",(L26-K$2)/(K$1-K$2),(L26-K$3)/(K$4-K$3)) -> 1.139130435 | O26: 00:13:00 | P26: =IF(M26="HW",IF(AND(O26>=L$5,O26<L$6),L$5,IF(AND(O26>=L$6,O26<M$5),M$5,IF(AND(O26>=M$5,O26<M$6),M$5,IF(O26>=M$6,L$5+1,L$5)))),IF(AND(O26>=L$7,O26<L$8),L$7,IF(AND(O26>=L$8,O26<M$7),M$7,IF(AND(O26>=M$7,O26<M$8),M$7,IF(O26>=M$8,L$7+1,L$7))))) -> 00:00:00 | Q26: =IF(M26="HW",IF(AND(O26>=L$5,O26<L$6),L$6,IF(AND(O26>=L$6,O26<M$5),L$6,IF(AND(O26>=M$5,O26<M$6),M$6,IF(O26>=M$6,M$6,M$6-1)))),IF(AND(O26>=L$7,O26<L$8),L$8,IF(AND(O26>=L$8,O26<M$7),L$8,IF(AND(O26>=M$7,O26<M$8),M$8,IF(O26>=M$8,M$8,M$8-1))))) -> 06:00:00 | R26: 0.9638888889 | S26: 41643.02601 | T26: 7.822608696 | U26: 41643.09198 | V26: 41643.02936 | W26: 7.508695652 | X26: 41642.96736 | Y26: 41642.99836 | Z26: =IF($M26="HW",Y$2+(Y$1-Y$2)*$N26,Y$3+(Y$4-Y$3)*$N26) -> 5.766956522 | AA26: 41642.98794 | AB26: 41642.98819 | AC26: =IF($M26="HW",AB$2+(AB$1-AB$2)*$N26,AB$3+(AB$4-AB$3)*$N26) -> 5.366956522 | AD26: Opn | AE26: 41642.87361 | AF26: 41642.98188 | AG26: =IF($M26="HW",AF$2+(AF$1-AF$2)*$N26,AF$3+(AF$4-AF$3)*$N26) -> 4.753043478 | AH26: 41642.95745 | AI26: =IF($M26="HW",AH$2+(AH$1-AH$2)*$N26,AH$3+(AH$4-AH$3)*$N26) -> 5.039130435 | AJ26: 41643.02614 | AK26: =IF($M26="HW",AJ$2+(AJ$1-AJ$2)*$N26,AJ$3+(AJ$4-AJ$3)*$N26) -> 7.722608696 | AL26: 41643.02626 | AM26: =IF($M26="HW",AL$2+(AL$1-AL$2)*$N26,AL$3+(AL$4-AL$3)*$N26) -> 7.736521739 | AN26: 41643.02267 | AO26: =IF($M26="HW",AN$2+(AN$1-AN$2)*$N26,AN$3+(AN$4-AN$3)*$N26) -> 7.408695652 | AP26: 41643.02304 | AQ26: =IF($M26="HW",AP$2+(AP$1-AP$2)*$N26,AP$3+(AP$4-AP$3)*$N26) -> 6.808695652 | AR26: 41642.99861 | AS26: 41643.01944 | AT26: 41642.97828 | AU26: =IF($M26="HW",AT$2+(AT$1-AT$2)*$N26,AT$3+(AT$4-AT$3)*$N26) -> 5.366956522 | AV26: 41642.97828 | AW26: =IF($M26="HW",AV$2+(AV$1-AV$2)*$N26,AV$3+(AV$4-AV$3)*$N26) -> 5.166956522 | AX26: 41642.95732 | AY26: =IF($M26="HW",AX$2+(AX$1-AX$2)*$N26,AX$3+(AX$4-AX$3)*$N26) -> 4.980869565 | AZ26: 41642.95385 | BA26: =IF($M26="HW",AZ$2+(AZ$1-AZ$2)*$N26,AZ$3+(AZ$4-AZ$3)*$N26) -> 4.766956522 | BB26: 41642.95038 | BC26: =IF($M26="HW",BB$2+(BB$1-BB$2)*$N26,BB$3+(BB$4-BB$3)*$N26) -> 4.653043478 | BD26: 41642.9113 | BE26: =IF($M26="HW",BD$2+(BD$1-BD$2)*$N26,BD$3+(BD$4-BD$3)*$N26) -> 4.566956522 | BF26: 41642.99861 | BH26: 41643.05069 | BI26: 41643.04028
A27: 0 | B27: =IF(Instructions!$C$2="BST",A27,0) -> 0 | C27: 2018-01-05T06:15:00 | D27: 2018-01-05 | E27: =IF(D27=D26,IF(J26="","",J26),D27) -> Fri | F27: 1 | G27: =IF(H27="","",TEXT(F27*29,"mmm")) ->  | H27: =IF(I27=I26,"",DAY(K27)) ->  | I27: 5 | J27: =IF(I27=I26,"",TEXT(I27+2,"ddd")) ->  | K27: 41643.26042 | L27: 0.76 | M27: LW | N27: 0.9618320611 | O27: 06:15:00 | P27: 05:00:00 | Q27: 11:00:00 | R27: 0.7916666667 | S27: 41643.29572 | T27: 0.8648854962 | U27: 41643.36169 | V27: 41643.27098 | W27: 0.7610687023 | X27: 41643.21875 | Y27: 41643.27691 | Z27: 0.8458015267 | AA27: 41643.23351 | AB27: 41643.26794 | AC27: 0.6496183206 | AD27: Cls | AE27: 41643.10278 | AF27: 41643.24595 | AG27: 0.6458015267 | AH27: 41643.24103 | AI27: 0.7458015267 | AJ27: 41643.29297 | AK27: 0.9610687023 | AL27: 41643.29297 | AM27: 0.9610687023 | AN27: 41643.28328 | AO27: 0.9610687023 | AP27: 41643.28747 | AQ27: 0.8572519084 | AR27: 41643.25 | AS27: 41643.27431 | AT27: 41643.25 | AU27: 0.8458015267 | AV27: 41643.2555 | AW27: 0.7496183206 | AX27: 41643.24103 | AY27: 0.6458015267 | AZ27: 41643.23756 | BA27: 0.5496183206 | BB27: 41643.23336 | BC27: 0.6496183206 | BD27: 41643.18822 | BE27: 0.634351145 | BF27: 41643.28472 | BH27: 41643.30208 | BI27: 41643.29167
A28: 0 | B28: =IF(Instructions!$C$2="BST",A28,0) -> 0 | C28: 2018-01-05T12:33:00 | D28: 2018-01-05 | F28: 1 | G28: =IF(H28="","",TEXT(F28*29,"mmm")) ->  | H28: =IF(I28=I27,"",DAY(K28)) ->  | I28: 5 | J28: =IF(I28=I27,"",TEXT(I28+2,"ddd")) ->  | K28: 41643.52292 | L28: 5.98 | M28: HW | N28: 1.295652174 | O28: 12:33:00 | P28: 12:00:00 | Q28: 18:00:00 | R28: 0.9083333333 | S28: =IF($M28="HW",$K28+S$6+(S$5-S$6)*$R28,$K28+S$8+(S$7-S$8)*$R28) -> 41643.53932 | T28: 8.073043478 | U28: 41643.6053 | V28: 41643.54248 | W28: 7.743478261 | X28: =IF($M28="HW",$K28+X$6+(X$5-X$6)*$R28,$K28+X$8+(X$7-X$8)*$R28) -> 41643.48125 | Y28: 41643.51186 | Z28: 5.954782609 | AA28: 41643.50145 | AB28: 41643.50208 | AC28: 5.554782609 | AD28: Opn | AE28: 41643.3875 | AF28: 41643.49673 | AG28: 4.925217391 | AH28: 41643.47211 | AI28: 5.195652174 | AJ28: 41643.53964 | AK28: 7.973043478 | AL28: 41643.53996 | AM28: 8.002608696 | AN28: 41643.53617 | AO28: 7.643478261 | AP28: 41643.53712 | AQ28: 7.043478261 | AR28: =IF($M28="HW",$K28+AR$6+(AR$5-AR$6)*$R28,$K28+AR$8+(AR$7-AR$8)*$R28) -> 41643.5125 | AS28: 41643.53333 | AT28: 41643.49294 | AU28: 5.554782609 | AV28: 41643.49294 | AW28: 5.354782609 | AX28: 41643.47179 | AY28: 5.184347826 | AZ28: 41643.46832 | BA28: 4.954782609 | BB28: 41643.46484 | BC28: 4.825217391 | BD28: 41643.42442 | BE28: 4.754782609 | BF28: =IF($M28="HW",$K28+BF$6+(BF$5-BF$6)*$R28,$K28+BF$8+(BF$7-BF$8)*$R28) -> 41643.5125 | BH28: 41643.56458 | BI28: 41643.55417
A29: 0 | B29: =IF(Instructions!$C$2="BST",A29,0) -> 0 | C29: 2018-01-05T18:48:00 | D29: 2018-01-05 | F29: 1 | I29: 5 | K29: 41643.78333 | L29: 0.56 | M29: LW | N29: 1.114503817 | O29: 18:48:00 | P29: 17:00:00 | Q29: 23:00:00 | R29: 0.7 | S29: 41643.81736 | T29: 0.6053435115 | U29: 41643.88333 | V29: 41643.79549 | W29: 0.5167938931 | X29: 41643.74167 | Y29: 41643.79792 | Z29: 0.6625954198 | AA29: 41643.75833 | AB29: 41643.78958 | AC29: 0.4511450382 | AD29: Cls | AE29: 41643.61667 | AF29: 41643.77014 | AG29: 0.4625954198 | AH29: 41643.76458 | AI29: 0.5625954198 | AJ29: 41643.81493 | AK29: 0.7167938931 | AL29: 41643.81493 | AM29: 0.7167938931 | AN29: 41643.80556 | AO29: 0.7167938931 | AP29: 41643.81007 | AQ29: 0.6282442748 | AR29: 41643.77292 | AS29: 41643.79722 | AT29: 41643.77292 | AU29: 0.6625954198 | AV29: 41643.77778 | AW29: 0.5511450382 | AX29: 41643.76458 | AY29: 0.4625954198 | AZ29: 41643.76111 | BA29: 0.3511450382 | BB29: 41643.7566 | BC29: 0.4511450382 | BD29: 41643.71146 | BE29: 0.4969465649 | BF29: 41643.80764 | BH29: 41643.825 | BI29: 41643.81458
A30: 0 | B30: =IF(Instructions!$C$2="BST",A30,0) -> 0 | C30: 2018-01-06T01:04:00 | D30: 2018-01-06 | E30: 2018-01-06 | F30: 1 | G30: Jan | H30: 6 | I30: 6 | J30: Sat | K30: 41644.04444 | L30: 5.59 | M30: HW | N30: 0.9565217391 | O30: 01:04:00 | P30: 00:00:00 | Q30: 06:00:00 | R30: 0.8222222222 | S30: 41644.05995 | T30: 7.530434783 | U30: 41644.12593 | V30: 41644.06281 | W30: 7.234782609 | X30: 41644.00278 | Y30: 41644.03279 | Z30: 5.547826087 | AA30: 41644.02238 | AB30: 41644.02361 | AC30: 5.147826087 | AD30: Opn | AE30: 41643.90903 | AF30: 41644.01975 | AG30: 4.552173913 | AH30: 41643.99483 | AI30: 4.856521739 | AJ30: 41644.06057 | AK30: 7.430434783 | AL30: 41644.06119 | AM30: 7.426086957 | AN30: 41644.0571 | AO30: 7.134782609 | AP30: 41644.05895 | AQ30: 6.534782609 | AR30: 41644.03403 | AS30: 41644.05486 | AT30: 41644.01566 | AU30: 5.147826087 | AV30: 41644.01566 | AW30: 4.947826087 | AX30: 41643.99421 | AY30: 4.743478261 | AZ30: 41643.99074 | BA30: 4.547826087 | BB30: 41643.98727 | BC30: 4.452173913 | BD30: 41643.94475 | BE30: 4.347826087 | BF30: 41644.03403 | BH30: 41644.08611 | BI30: 41644.07569
A31: 0 | B31: =IF(Instructions!$C$2="BST",A31,0) -> 0 | C31: 2018-01-06T07:04:00 | D31: 2018-01-06 | E31: Sat | F31: 1 | G31: =IF(H31="","",TEXT(F31*29,"mmm")) ->  | H31: =IF(I31=I30,"",DAY(K31)) ->  | I31: 6 | J31: =IF(I31=I30,"",TEXT(I31+2,"ddd")) ->  | K31: 41644.29444 | L31: 0.98 | M31: LW | N31: 0.7938931298 | O31: 07:04:00 | P31: 05:00:00 | Q31: 11:00:00 | R31: 0.6555555556 | S31: 41644.32785 | T31: 1.150381679 | U31: 41644.39383 | V31: 41644.30737 | W31: 1.029770992 | X31: 41644.25278 | Y31: 41644.3081 | Z31: 1.047328244 | AA31: 41644.27037 | AB31: 41644.30008 | AC31: 0.8679389313 | AD31: Cls | AE31: 41644.13819 | AF31: 41644.28187 | AG31: 0.8473282443 | AH31: 41644.276 | AI31: 0.9473282443 | AJ31: 41644.32558 | AK31: 1.229770992 | AL31: 41644.32558 | AM31: 1.229770992 | AN31: 41644.31636 | AO31: 1.229770992 | AP31: 41644.32103 | AQ31: 1.109160305 | AR31: 41644.28403 | AS31: 41644.30833 | AT31: 41644.28403 | AU31: 1.047328244 | AV31: 41644.28858 | AW31: 0.9679389313 | AX31: 41644.276 | AY31: 0.8473282443 | AZ31: 41644.27253 | BA31: 0.7679389313 | BB31: 41644.26786 | BC31: 0.8679389313 | BD31: 41644.22272 | BE31: 0.7854961832 | BF31: 41644.31875 | BH31: 41644.33611 | BI31: 41644.32569
A32: 0 | B32: =IF(Instructions!$C$2="BST",A32,0) -> 0 | C32: 2018-01-06T13:22:00 | D32: 2018-01-06 | F32: 1 | G32: =IF(H32="","",TEXT(F32*29,"mmm")) ->  | H32: =IF(I32=I31,"",DAY(K32)) ->  | I32: 6 | J32: =IF(I32=I31,"",TEXT(I32+2,"ddd")) ->  | K32: 41644.55694 | L32: 5.79 | M32: HW | N32: 1.130434783 | O32: 13:22:00 | P32: 12:00:00 | Q32: 18:00:00 | R32: 0.7722222222 | S32: 41644.57193 | T32: 7.808695652 | U32: 41644.63791 | V32: 41644.57461 | W32: 7.495652174 | X32: 41644.51528 | Y32: 41644.54495 | Z32: 5.756521739 | AA32: 41644.53453 | AB32: 41644.53611 | AC32: 5.356521739 | AD32: Opn | AE32: 41644.42153 | AF32: 41644.53312 | AG32: 4.743478261 | AH32: 41644.50802 | AI32: 5.030434783 | AJ32: 41644.57272 | AK32: 7.708695652 | AL32: 41644.57351 | AM32: 7.72173913 | AN32: 41644.56925 | AO32: 7.395652174 | AP32: 41644.57162 | AQ32: 6.795652174 | AR32: 41644.54653 | AS32: 41644.56736 | AT32: 41644.52886 | AU32: 5.356521739 | AV32: 41644.52886 | AW32: 5.156521739 | AX32: 41644.50723 | AY32: 4.969565217 | AZ32: 41644.50376 | BA32: 4.756521739 | BB32: 41644.50029 | BC32: 4.643478261 | BD32: 41644.45656 | BE32: 4.556521739 | BF32: 41644.54653 | BH32: 41644.59861 | BI32: 41644.58819
A33: 0 | B33: =IF(Instructions!$C$2="BST",A33,0) -> 0 | C33: 2018-01-06T19:40:00 | D33: 2018-01-06 | E33: =IF(D33=D32,IF(J32="","",J32),D33) ->  | F33: 1 | I33: 6 | K33: 41644.81944 | L33: 0.79 | M33: LW | N33: 0.9389312977 | O33: 19:40:00 | P33: 17:00:00 | Q33: 23:00:00 | R33: 0.5555555556 | S33: 41644.85147 | T33: 0.9038167939 | U33: 41644.91744 | V33: 41644.8341 | W33: 0.7977099237 | X33: 41644.77778 | Y33: 41644.83102 | Z33: 0.8732824427 | AA33: 41644.79745 | AB33: 41644.82369 | AC33: 0.679389313 | AD33: Cls | AE33: 41644.65069 | AF33: 41644.80826 | AG33: 0.6732824427 | AH33: 41644.8017 | AI33: 0.7732824427 | AJ33: 41644.84954 | AK33: 0.9977099237 | AL33: 41644.84954 | AM33: 0.9977099237 | AN33: 41644.84066 | AO33: 0.9977099237 | AP33: 41644.84568 | AQ33: 0.8916030534 | AR33: 41644.80903 | AS33: 41644.83333 | AT33: 41644.80903 | AU33: 0.8732824427 | AV33: 41644.81289 | AW33: 0.779389313 | AX33: 41644.8017 | AY33: 0.6732824427 | AZ33: 41644.79823 | BA33: 0.579389313 | BB33: 41644.79321 | BC33: 0.679389313 | BD33: 41644.74807 | BE33: 0.6549618321 | BF33: 41644.84375 | BH33: 41644.86111 | BI33: 41644.85069
A34: 0 | B34: =IF(Instructions!$C$2="BST",A34,0) -> 0 | C34: 2018-01-07T01:55:00 | D34: 2018-01-07 | E34: 2018-01-07 | F34: 1 | G34: Jan | H34: 7 | I34: 7 | J34: Sun | K34: 41645.07986 | L34: 5.32 | M34: HW | N34: 0.7217391304 | O34: 01:55:00 | P34: 00:00:00 | Q34: 06:00:00 | R34: 0.6805555556 | S34: 41645.09389 | T34: 7.154782609 | U34: 41645.15987 | V34: 41645.09626 | W34: 6.882608696 | X34: 41645.03819 | Y34: 41645.06723 | Z34: 5.266086957 | AA34: 41645.05681 | AB34: 41645.05903 | AC34: 4.866086957 | AD34: Opn | AE34: 41644.94444 | AF34: 41645.05763 | AG34: 4.293913043 | AH34: 41645.03221 | AI34: 4.62173913 | AJ34: 41645.095 | AK34: 7.054782609 | AL34: 41645.09611 | AM34: 7.026956522 | AN34: 41645.09153 | AO34: 6.782608696 | AP34: 41645.09486 | AQ34: 6.182608696 | AR34: 41645.06944 | AS34: 41645.09028 | AT34: 41645.05305 | AU34: 4.866086957 | AV34: 41645.05305 | AW34: 4.666086957 | AX34: 41645.03111 | AY34: 4.43826087 | AZ34: 41645.02763 | BA34: 4.266086957 | BB34: 41645.02416 | BC34: 4.193913043 | BD34: 41644.9782 | BE34: 4.066086957 | BF34: 41645.06944 | BH34: 41645.12153 | BI34: 41645.11111
A35: 0 | B35: =IF(Instructions!$C$2="BST",A35,0) -> 0 | C35: 2018-01-07T07:55:00 | D35: 2018-01-07 | E35: =IF(D35=D34,IF(J34="","",J34),D35) -> Sun | F35: 1 | G35: =IF(H35="","",TEXT(F35*29,"mmm")) ->  | H35: =IF(I35=I34,"",DAY(K35)) ->  | I35: 7 | J35: =IF(I35=I34,"",TEXT(I35+2,"ddd")) ->  | K35: 41645.32986 | L35: 1.26 | M35: LW | N35: 0.5801526718 | O35: 07:55:00 | P35: 05:00:00 | Q35: 11:00:00 | R35: 0.5138888889 | S35: 41645.3613 | T35: 1.513740458 | U35: 41645.42728 | V35: 41645.34524 | W35: 1.371755725 | X35: 41645.28819 | Y35: 41645.34057 | Z35: 1.303816794 | AA35: 41645.30874 | AB35: 41645.33353 | AC35: 1.145801527 | AD35: Cls | AE35: 41645.17361 | AF35: 41645.31925 | AG35: 1.103816794 | AH35: 41645.3124 | AI35: 1.203816794 | AJ35: 41645.35952 | AK35: 1.571755725 | AL35: 41645.35952 | AM35: 1.571755725 | AN35: 41645.35079 | AO35: 1.571755725 | AP35: 41645.35595 | AQ35: 1.429770992 | AR35: 41645.31944 | AS35: 41645.34375 | AT35: 41645.31944 | AU35: 1.303816794 | AV35: 41645.32301 | AW35: 1.245801527 | AX35: 41645.3124 | AY35: 1.103816794 | AZ35: 41645.30893 | BA35: 1.045801527 | BB35: 41645.30377 | BC35: 1.145801527 | BD35: 41645.25863 | BE35: 0.9778625954 | BF35: 41645.35417 | BH35: 41645.37153 | BI35: 41645.36111
A36: 0 | B36: =IF(Instructions!$C$2="BST",A36,0) -> 0 | C36: 2018-01-07T14:13:00 | D36: 2018-01-07 | F36: 1 | G36: =IF(H36="","",TEXT(F36*29,"mmm")) ->  | H36: =IF(I36=I35,"",DAY(K36)) ->  | I36: 7 | J36: =IF(I36=I35,"",TEXT(I36+2,"ddd")) ->  | K36: 41645.59236 | L36: 5.53 | M36: HW | N36: 0.9043478261 | O36: 14:13:00 | P36: 12:00:00 | Q36: 18:00:00 | R36: 0.6305555555 | S36: 41645.60587 | T36: 7.446956522 | U36: 41645.67185 | V36: 41645.60806 | W36: 7.156521739 | X36: 41645.55069 | Y36: 41645.57938 | Z36: 5.485217391 | AA36: 41645.56896 | AB36: 41645.57153 | AC36: 5.085217391 | AD36: Opn | AE36: 41645.45694 | AF36: 41645.571 | AG36: 4.494782609 | AH36: 41645.54541 | AI36: 4.804347826 | AJ36: 41645.60716 | AK36: 7.346956522 | AL36: 41645.60844 | AM36: 7.337391304 | AN36: 41645.60368 | AO36: 7.056521739 | AP36: 41645.60753 | AQ36: 6.456521739 | AR36: 41645.58194 | AS36: 41645.60278 | AT36: 41645.56624 | AU36: 5.085217391 | AV36: 41645.56624 | AW36: 4.885217391 | AX36: 41645.54413 | AY36: 4.675652174 | AZ36: 41645.54065 | BA36: 4.485217391 | BB36: 41645.53718 | BC36: 4.394782609 | BD36: 41645.49001 | BE36: 4.285217391 | BF36: 41645.58194 | BH36: 41645.63403 | BI36: 41645.62361
A37: 0 | B37: =IF(Instructions!$C$2="BST",A37,0) -> 0 | C37: 2018-01-07T20:34:00 | D37: 2018-01-07 | F37: 1 | I37: 7 | K37: 41645.85694 | L37: 1.09 | M37: LW | N37: 0.7099236641 | O37: 20:34:00 | P37: 17:00:00 | Q37: 23:00:00 | R37: 0.4055555556 | S37: 41645.88688 | T37: 1.293129771 | U37: 41645.95285 | V37: 41645.87421 | W37: 1.164122137 | X37: 41645.81528 | Y37: 41645.86539 | Z37: 1.148091603 | AA37: 41645.83808 | AB37: 41645.8591 | AC37: 0.9770992366 | AD37: Cls | AE37: 41645.68611 | AF37: 41645.84784 | AG37: 0.9480916031 | AH37: 41645.84024 | AI37: 1.048091603 | AJ37: 41645.88547 | AK37: 1.364122137 | AL37: 41645.88547 | AM37: 1.364122137 | AN37: 41645.87712 | AO37: 1.364122137 | AP37: 41645.88266 | AQ37: 1.235114504 | AR37: 41645.84653 | AS37: 41645.87083 | AT37: 41645.84653 | AU37: 1.148091603 | AV37: 41645.84934 | AW37: 1.077099237 | AX37: 41645.84024 | AY37: 0.9480916031 | AZ37: 41645.83677 | BA37: 0.8770992366 | BB37: 41645.83123 | BC37: 0.9770992366 | BD37: 41645.78609 | BE37: 0.8610687023 | BF37: 41645.88125 | BH37: 41645.89861 | BI37: 41645.88819
A38: 0 | B38: =IF(Instructions!$C$2="BST",A38,0) -> 0 | C38: 2018-01-08T02:49:00 | D38: 2018-01-08 | E38: 2018-01-08 | F38: 1 | G38: Jan | H38: 8 | I38: 1 | J38: Mon | K38: 41646.11736 | L38: 5.04 | M38: HW | N38: 0.4782608696 | O38: 02:49:00 | P38: 00:00:00 | Q38: 06:00:00 | R38: 0.5305555556 | S38: 41646.12983 | T38: 6.765217391 | U38: 41646.1958 | V38: 41646.13167 | W38: 6.517391304 | X38: 41646.07569 | Y38: 41646.10368 | Z38: 4.973913043 | AA38: 41646.09327 | AB38: 41646.09653 | AC38: 4.573913043 | AD38: Opn | AE38: 41645.98194 | AF38: 41646.09773 | AG38: 4.026086957 | AH38: 41646.0718 | AI38: 4.37826087 | AJ38: 41646.13146 | AK38: 6.665217391 | AL38: 41646.13309 | AM38: 6.613043478 | AN38: 41646.12799 | AO38: 6.417391304 | AP38: 41646.13288 | AQ38: 5.817391304 | AR38: 41646.10694 | AS38: 41646.12778 | AT38: 41646.09263 | AU38: 4.573913043 | AV38: 41646.09263 | AW38: 4.373913043 | AX38: 41646.07017 | AY38: 4.12173913 | AZ38: 41646.0667 | BA38: 3.973913043 | BB38: 41646.06322 | BC38: 3.926086957 | BD38: 41646.01362 | BE38: 3.773913043 | BF38: 41646.10694 | BH38: 41646.15903 | BI38: 41646.14861
A39: 0 | B39: =IF(Instructions!$C$2="BST",A39,0) -> 0 | C39: 2018-01-08T08:49:00 | D39: 2018-01-08 | E39: Mon | F39: 1 | G39: =IF(H39="","",TEXT(F39*29,"mmm")) ->  | H39: =IF(I39=I38,"",DAY(K39)) ->  | I39: =WEEKDAY(K39,2) -> 1 | J39: =IF(I39=I38,"",TEXT(I39+2,"ddd")) ->  | K39: 41646.36736 | L39: 1.57 | M39: LW | N39: 0.3435114504 | O39: 08:49:00 | P39: 05:00:00 | Q39: 11:00:00 | R39: 0.3638888889 | S39: 41646.39672 | T39: 1.916030534 | U39: 41646.46269 | V39: 41646.38535 | W39: 1.750381679 | X39: 41646.32569 | Y39: 41646.37494 | Z39: 1.58778626 | AA39: 41646.34936 | AB39: 41646.36894 | AC39: 1.453435115 | AD39: Cls | AE39: 41646.21111 | AF39: 41646.35883 | AG39: 1.38778626 | AH39: 41646.35095 | AI39: 1.48778626 | AJ39: 41646.39546 | AK39: 1.950381679 | AL39: 41646.39546 | AM39: 1.950381679 | AN39: 41646.38725 | AO39: 1.950381679 | AP39: 41646.39293 | AQ39: 1.784732824 | AR39: 41646.35694 | AS39: 41646.38125 | AT39: 41646.35694 | AU39: 1.58778626 | AV39: 41646.35947 | AW39: 1.553435115 | AX39: 41646.35095 | AY39: 1.38778626 | AZ39: 41646.34747 | BA39: 1.353435115 | BB39: 41646.34179 | BC39: 1.453435115 | BD39: 41646.29665 | BE39: 1.190839695 | BF39: 41646.39167 | BH39: 41646.40903 | BI39: 41646.39861
A40: 0 | B40: =IF(Instructions!$C$2="BST",A40,0) -> 0 | C40: 2018-01-08T15:08:00 | D40: 2018-01-08 | F40: 1 | G40: =IF(H40="","",TEXT(F40*29,"mmm")) ->  | H40: =IF(I40=I39,"",DAY(K40)) ->  | I40: 1 | J40: =IF(I40=I39,"",TEXT(I40+2,"ddd")) ->  | K40: 41646.63056 | L40: 5.24 | M40: HW | N40: 0.652173913 | O40: 15:08:00 | P40: 12:00:00 | Q40: 18:00:00 | R40: 0.4777777778 | S40: 41646.64248 | T40: 7.043478261 | U40: 41646.70845 | V40: 41646.64414 | W40: 6.77826087 | X40: 41646.58889 | Y40: 41646.61651 | Z40: 5.182608696 | AA40: 41646.6061 | AB40: 41646.60972 | AC40: 4.782608696 | AD40: Opn | AE40: 41646.49514 | AF40: 41646.61184 | AG40: 4.217391304 | AH40: 41646.58573 | AI40: 4.552173913 | AJ40: 41646.64429 | AK40: 6.943478261 | AL40: 41646.6461 | AM40: 6.908695652 | AN40: 41646.64082 | AO40: 6.67826087 | AP40: 41646.64626 | AQ40: 6.07826087 | AR40: 41646.62014 | AS40: 41646.64097 | AT40: 41646.60656 | AU40: 4.782608696 | AV40: 41646.60656 | AW40: 4.582608696 | AX40: 41646.58391 | AY40: 4.347826087 | AZ40: 41646.58044 | BA40: 4.182608696 | BB40: 41646.57697 | BC40: 4.117391304 | BD40: 41646.52608 | BE40: 3.982608696 | BF40: 41646.62014 | BH40: 41646.67222 | BI40: 41646.66181
A41: 0 | B41: =IF(Instructions!$C$2="BST",A41,0) -> 0 | C41: 2018-01-08T21:32:00 | D41: 2018-01-08 | E41: =IF(D41=D40,IF(J40="","",J40),D41) ->  | F41: 1 | I41: 1 | K41: 41646.89722 | L41: 1.4 | M41: LW | N41: 0.4732824427 | O41: 21:32:00 | P41: 17:00:00 | Q41: 23:00:00 | R41: 0.2444444444 | S41: 41646.92492 | T41: 1.695419847 | U41: 41646.9909 | V41: 41646.91728 | W41: 1.542748092 | X41: 41646.85556 | Y41: 41646.90231 | Z41: 1.432061069 | AA41: 41646.88171 | AB41: 41646.89715 | AC41: 1.284732824 | AD41: Cls | AE41: 41646.72431 | AF41: 41646.89035 | AG41: 1.232061069 | AH41: 41646.88164 | AI41: 1.332061069 | AJ41: 41646.92407 | AK41: 1.742748092 | AL41: 41646.92407 | AM41: 1.742748092 | AN41: 41646.91628 | AO41: 1.742748092 | AP41: 41646.92238 | AQ41: 1.590076336 | AR41: 41646.88681 | AS41: 41646.91111 | AT41: 41646.88681 | AU41: 1.432061069 | AV41: 41646.8885 | AW41: 1.384732824 | AX41: 41646.88164 | AY41: 1.232061069 | AZ41: 41646.87816 | BA41: 1.184732824 | BB41: 41646.87207 | BC41: 1.284732824 | BD41: 41646.82693 | BE41: 1.074045802 | BF41: 41646.92153 | BH41: 41646.93889 | BI41: 41646.92847
A42: 0 | B42: =IF(Instructions!$C$2="BST",A42,0) -> 0 | C42: 2018-01-09T03:48:00 | D42: 2018-01-09 | E42: 2018-01-09 | F42: 1 | G42: Jan | H42: 9 | I42: 2 | J42: Tue | K42: 41647.15833 | L42: 4.78 | M42: HW | N42: =IF(M42="HW",(L42-K$2)/(K$1-K$2),(L42-K$3)/(K$4-K$3)) -> 0.252173913 | O42: 03:48:00 | P42: =IF(M42="HW",IF(AND(O42>=L$5,O42<L$6),L$5,IF(AND(O42>=L$6,O42<M$5),M$5,IF(AND(O42>=M$5,O42<M$6),M$5,IF(O42>=M$6,L$5+1,L$5)))),IF(AND(O42>=L$7,O42<L$8),L$7,IF(AND(O42>=L$8,O42<M$7),M$7,IF(AND(O42>=M$7,O42<M$8),M$7,IF(O42>=M$8,L$7+1,L$7))))) -> 00:00:00 | Q42: =IF(M42="HW",IF(AND(O42>=L$5,O42<L$6),L$6,IF(AND(O42>=L$6,O42<M$5),L$6,IF(AND(O42>=M$5,O42<M$6),M$6,IF(O42>=M$6,M$6,M$6-1)))),IF(AND(O42>=L$7,O42<L$8),L$8,IF(AND(O42>=L$8,O42<M$7),L$8,IF(AND(O42>=M$7,O42<M$8),M$8,IF(O42>=M$8,M$8,M$8-1))))) -> 06:00:00 | R42: 0.3666666667 | S42: 41647.1691 | T42: 6.403478261 | U42: 41647.23507 | V42: 41647.17037 | W42: 6.17826087 | X42: 41647.11667 | Y42: 41647.14352 | Z42: =IF($M42="HW",Y$2+(Y$1-Y$2)*$N42,Y$3+(Y$4-Y$3)*$N42) -> 4.702608696 | AA42: 41647.1331 | AB42: 41647.1375 | AC42: =IF($M42="HW",AB$2+(AB$1-AB$2)*$N42,AB$3+(AB$4-AB$3)*$N42) -> 4.302608696 | AD42: Opn | AE42: 41647.02292 | AF42: 41647.14155 | AG42: =IF($M42="HW",AF$2+(AF$1-AF$2)*$N42,AF$3+(AF$4-AF$3)*$N42) -> 3.777391304 | AH42: 41647.11505 | AI42: =IF($M42="HW",AH$2+(AH$1-AH$2)*$N42,AH$3+(AH$4-AH$3)*$N42) -> 4.152173913 | AJ42: 41647.1713 | AK42: =IF($M42="HW",AJ$2+(AJ$1-AJ$2)*$N42,AJ$3+(AJ$4-AJ$3)*$N42) -> 6.303478261 | AL42: 41647.1735 | AM42: =IF($M42="HW",AL$2+(AL$1-AL$2)*$N42,AL$3+(AL$4-AL$3)*$N42) -> 6.228695652 | AN42: 41647.16782 | AO42: =IF($M42="HW",AN$2+(AN$1-AN$2)*$N42,AN$3+(AN$4-AN$3)*$N42) -> 6.07826087 | AP42: 41647.17442 | AQ42: =IF($M42="HW",AP$2+(AP$1-AP$2)*$N42,AP$3+(AP$4-AP$3)*$N42) -> 5.47826087 | AR42: 41647.14792 | AS42: 41647.16875 | AT42: 41647.13588 | AU42: =IF($M42="HW",AT$2+(AT$1-AT$2)*$N42,AT$3+(AT$4-AT$3)*$N42) -> 4.302608696 | AV42: 41647.13588 | AW42: =IF($M42="HW",AV$2+(AV$1-AV$2)*$N42,AV$3+(AV$4-AV$3)*$N42) -> 4.102608696 | AX42: 41647.11285 | AY42: =IF($M42="HW",AX$2+(AX$1-AX$2)*$N42,AX$3+(AX$4-AX$3)*$N42) -> 3.827826087 | AZ42: 41647.10938 | BA42: =IF($M42="HW",AZ$2+(AZ$1-AZ$2)*$N42,AZ$3+(AZ$4-AZ$3)*$N42) -> 3.702608696 | BB42: 41647.1059 | BC42: =IF($M42="HW",BB$2+(BB$1-BB$2)*$N42,BB$3+(BB$4-BB$3)*$N42) -> 3.677391304 | BD42: 41647.05231 | BE42: =IF($M42="HW",BD$2+(BD$1-BD$2)*$N42,BD$3+(BD$4-BD$3)*$N42) -> 3.502608696 | BF42: 41647.14792 | BH42: 41647.2 | BI42: 41647.18958
A43: 0 | B43: =IF(Instructions!$C$2="BST",A43,0) -> 0 | C43: 2018-01-09T09:49:00 | D43: 2018-01-09 | E43: =IF(D43=D42,IF(J42="","",J42),D43) -> Tue | F43: 1 | G43: =IF(H43="","",TEXT(F43*29,"mmm")) ->  | H43: =IF(I43=I42,"",DAY(K43)) ->  | I43: 2 | J43: =IF(I43=I42,"",TEXT(I43+2,"ddd")) ->  | K43: 41647.40903 | L43: 1.85 | M43: LW | N43: 0.1297709924 | O43: 09:49:00 | P43: 05:00:00 | Q43: 11:00:00 | R43: 0.1972222222 | S43: 41647.43607 | T43: 2.279389313 | U43: 41647.50204 | V43: 41647.42991 | W43: 2.092366412 | X43: 41647.36736 | Y43: 41647.41314 | Z43: 1.844274809 | AA43: 41647.3945 | AB43: 41647.40829 | AC43: 1.73129771 | AD43: Cls | AE43: 41647.25208 | AF43: 41647.40282 | AG43: 1.644274809 | AH43: 41647.39377 | AI43: 1.744274809 | AJ43: 41647.43539 | AK43: 2.292366412 | AL43: 41647.43539 | AM43: 2.292366412 | AN43: 41647.42776 | AO43: 2.292366412 | AP43: 41647.43402 | AQ43: 2.105343511 | AR43: 41647.39861 | AS43: 41647.42292 | AT43: 41647.39861 | AU43: 1.844274809 | AV43: 41647.39998 | AW43: 1.83129771 | AX43: 41647.39377 | AY43: 1.644274809 | AZ43: 41647.3903 | BA43: 1.63129771 | BB43: 41647.38404 | BC43: 1.73129771 | BD43: 41647.3389 | BE43: 1.383206107 | BF43: 41647.43333 | BH43: 41647.45069 | BI43: 41647.44028
A44: 0 | B44: =IF(Instructions!$C$2="BST",A44,0) -> 0 | C44: 2018-01-09T16:10:00 | D44: 2018-01-09 | F44: 1 | G44: =IF(H44="","",TEXT(F44*29,"mmm")) ->  | H44: =IF(I44=I43,"",DAY(K44)) ->  | I44: 2 | J44: =IF(I44=I43,"",TEXT(I44+2,"ddd")) ->  | K44: 41647.67361 | L44: 4.97 | M44: HW | N44: 0.4173913043 | O44: 16:10:00 | P44: 12:00:00 | Q44: 18:00:00 | R44: 0.3055555556 | S44: =IF($M44="HW",$K44+S$6+(S$5-S$6)*$R44,$K44+S$8+(S$7-S$8)*$R44) -> 41647.68374 | T44: 6.667826087 | U44: 41647.74971 | V44: 41647.6848 | W44: 6.426086957 | X44: =IF($M44="HW",$K44+X$6+(X$5-X$6)*$R44,$K44+X$8+(X$7-X$8)*$R44) -> 41647.63194 | Y44: 41647.65837 | Z44: 4.900869565 | AA44: 41647.64796 | AB44: 41647.65278 | AC44: 4.500869565 | AD44: Opn | AE44: 41647.53819 | AF44: 41647.65789 | AG44: 3.959130435 | AH44: 41647.63117 | AI44: 4.317391304 | AJ44: 41647.68615 | AK44: 6.567826087 | AL44: 41647.68856 | AM44: 6.509565217 | AN44: 41647.68268 | AO44: 6.326086957 | AP44: 41647.68991 | AQ44: 5.726086957 | AR44: =IF($M44="HW",$K44+AR$6+(AR$5-AR$6)*$R44,$K44+AR$8+(AR$7-AR$8)*$R44) -> 41647.66319 | AS44: 41647.68403 | AT44: 41647.65201 | AU44: 4.500869565 | AV44: 41647.65201 | AW44: 4.300869565 | AX44: 41647.62876 | AY44: 4.042608696 | AZ44: 41647.62529 | BA44: 3.900869565 | BB44: 41647.62182 | BC44: 3.859130435 | BD44: 41647.56674 | BE44: 3.700869565 | BF44: =IF($M44="HW",$K44+BF$6+(BF$5-BF$6)*$R44,$K44+BF$8+(BF$7-BF$8)*$R44) -> 41647.66319 | BH44: 41647.71528 | BI44: 41647.70486
A45: 0 | B45: =IF(Instructions!$C$2="BST",A45,0) -> 0 | C45: 2018-01-09T22:37:00 | D45: 2018-01-09 | F45: 1 | I45: 2 | K45: 41647.94236 | L45: 1.65 | M45: LW | N45: 0.2824427481 | O45: 22:37:00 | P45: 17:00:00 | Q45: 23:00:00 | R45: 0.06388888888 | S45: 41647.96755 | T45: 2.019847328 | U45: 41648.03353 | V45: 41647.96556 | W45: 1.848091603 | X45: 41647.90069 | Y45: 41647.94369 | Z45: 1.661068702 | AA45: 41647.93061 | AB45: 41647.93978 | AC45: 1.532824427 | AD45: Cls | AE45: 41647.76736 | AF45: 41647.938 | AG45: 1.461068702 | AH45: 41647.92803 | AI45: 1.561068702 | AJ45: 41647.96733 | AK45: 2.048091603 | AL45: 41647.96733 | AM45: 2.048091603 | AN45: 41647.96017 | AO45: 2.048091603 | AP45: 41647.96689 | AQ45: 1.876335878 | AR45: 41647.93194 | AS45: 41647.95625 | AT45: 41647.93194 | AU45: 1.661068702 | AV45: 41647.93239 | AW45: 1.632824427 | AX45: 41647.92803 | AY45: 1.461068702 | AZ45: 41647.92456 | BA45: 1.432824427 | BB45: 41647.91783 | BC45: 1.532824427 | BD45: 41647.87269 | BE45: 1.245801527 | BF45: 41647.96667 | BH45: 41647.98403 | BI45: 41647.97361
A46: 0 | B46: =IF(Instructions!$C$2="BST",A46,0) -> 0 | C46: 2018-01-10T04:55:00 | D46: 2018-01-10 | E46: 2018-01-10 | F46: 1 | G46: Jan | H46: 10 | I46: 3 | J46: Wed | K46: 41648.20486 | L46: 4.62 | M46: HW | N46: 0.1130434783 | O46: 04:55:00 | P46: 00:00:00 | Q46: 06:00:00 | R46: 0.1805555556 | S46: 41648.21369 | T46: 6.180869565 | U46: 41648.27966 | V46: 41648.21431 | W46: 5.969565217 | X46: 41648.16319 | Y46: 41648.18875 | Z46: 4.535652174 | AA46: 41648.17834 | AB46: 41648.18403 | AC46: 4.135652174 | AD46: Opn | AE46: 41648.06944 | AF46: 41648.19131 | AG46: 3.624347826 | AH46: 41648.16416 | AI46: 4.013043478 | AJ46: 41648.21653 | AK46: 6.080869565 | AL46: 41648.21938 | AM46: 5.992173913 | AN46: 41648.21306 | AO46: 5.869565217 | AP46: 41648.2216 | AQ46: 5.269565217 | AR46: 41648.19444 | AS46: 41648.21528 | AT46: 41648.18499 | AU46: 4.135652174 | AV46: 41648.18499 | AW46: 3.935652174 | AX46: 41648.16131 | AY46: 3.646956522 | AZ46: 41648.15784 | BA46: 3.535652174 | BB46: 41648.15437 | BC46: 3.524347826 | BD46: 41648.09626 | BE46: 3.335652174 | BF46: 41648.19444 | BH46: 41648.24653 | BI46: 41648.23611
A47: 0 | B47: =IF(Instructions!$C$2="BST",A47,0) -> 0 | C47: 2018-01-10T10:57:00 | D47: 2018-01-10 | E47: Wed | F47: 1 | G47: =IF(H47="","",TEXT(F47*29,"mmm")) ->  | H47: =IF(I47=I46,"",DAY(K47)) ->  | I47: 3 | J47: =IF(I47=I46,"",TEXT(I47+2,"ddd")) ->  | K47: 41648.45625 | L47: 2.04 | M47: LW | N47: -0.01526717557 | O47: 10:57:00 | P47: 05:00:00 | Q47: 11:00:00 | R47: 0.008333333322 | S47: 41648.48067 | T47: 2.525954198 | U47: 41648.54664 | V47: 41648.48041 | W47: 2.324427481 | X47: 41648.41458 | Y47: 41648.45642 | Z47: 2.018320611 | AA47: 41648.44566 | AB47: 41648.45289 | AC47: 1.919847328 | AD47: Cls | AE47: 41648.29861 | AF47: 41648.45266 | AG47: 1.818320611 | AH47: 41648.4423 | AI47: 1.918320611 | AJ47: 41648.48064 | AK47: 2.524427481 | AL47: 41648.48064 | AM47: 2.524427481 | AN47: 41648.47367 | AO47: 2.524427481 | AP47: 41648.48058 | AQ47: 2.322900763 | AR47: 41648.44583 | AS47: 41648.47014 | AT47: 41648.44583 | AU47: 2.018320611 | AV47: 41648.44589 | AW47: 2.019847328 | AX47: 41648.4423 | AY47: 1.818320611 | AZ47: 41648.43883 | BA47: 1.819847328 | BB47: 41648.43192 | BC47: 1.919847328 | BD47: 41648.38678 | BE47: 1.513740458 | BF47: 41648.48056 | BH47: 41648.49792 | BI47: 41648.4875
A48: 0 | B48: =IF(Instructions!$C$2="BST",A48,0) -> 0 | C48: 2018-01-10T17:21:00 | D48: 2018-01-10 | F48: 1 | G48: =IF(H48="","",TEXT(F48*29,"mmm")) ->  | H48: =IF(I48=I47,"",DAY(K48)) ->  | I48: 3 | J48: =IF(I48=I47,"",TEXT(I48+2,"ddd")) ->  | K48: 41648.72292 | L48: 4.79 | M48: HW | N48: 0.2608695652 | O48: 17:21:00 | P48: 12:00:00 | Q48: 18:00:00 | R48: 0.1083333333 | S48: 41648.73099 | T48: 6.417391304 | U48: 41648.79696 | V48: 41648.73137 | W48: 6.191304348 | X48: 41648.68125 | Y48: 41648.70631 | Z48: 4.713043478 | AA48: 41648.69589 | AB48: 41648.70208 | AC48: 4.313043478 | AD48: Opn | AE48: 41648.5875 | AF48: 41648.71062 | AG48: 3.786956522 | AH48: 41648.68322 | AI48: 4.160869565 | AJ48: 41648.73409 | AK48: 6.317391304 | AL48: 41648.73718 | AM48: 6.243478261 | AN48: 41648.73061 | AO48: 6.091304348 | AP48: 41648.7399 | AQ48: 5.491304348 | AR48: 41648.7125 | AS48: 41648.73333 | AT48: 41648.70405 | AU48: 4.313043478 | AV48: 41648.70405 | AW48: 4.113043478 | AX48: 41648.68012 | AY48: 3.839130435 | AZ48: 41648.67665 | BA48: 3.713043478 | BB48: 41648.67318 | BC48: 3.686956522 | BD48: 41648.61331 | BE48: 3.513043478 | BF48: 41648.7125 | BH48: 41648.76458 | BI48: 41648.75417
A49: 0 | B49: =IF(Instructions!$C$2="BST",A49,0) -> 0 | C49: 2018-01-10T23:46:00 | D49: 2018-01-10 | E49: =IF(D49=D48,IF(J48="","",J48),D49) ->  | F49: 1 | I49: 3 | K49: 41648.99028 | L49: 1.8 | M49: LW | N49: 0.1679389313 | O49: 23:46:00 | P49: 1.208333333 | Q49: 23:00:00 | R49: 0.1277777778 | S49: 41649.01636 | T49: 2.214503817 | U49: 41649.08233 | V49: 41649.01236 | W49: 2.03129771 | X49: 41648.94861 | Y49: 41648.99294 | Z49: 1.798473282 | AA49: 41648.9772 | AB49: 41648.98858 | AC49: 1.681679389 | AD49: Cls | AE49: 41648.81667 | AF49: 41648.98503 | AG49: 1.598473282 | AH49: 41648.9755 | AI49: 1.698473282 | AJ49: 41649.01591 | AK49: 2.23129771 | AL49: 41649.01591 | AM49: 2.23129771 | AN49: 41649.00853 | AO49: 2.23129771 | AP49: 41649.01503 | AQ49: 2.048091603 | AR49: 41648.97986 | AS49: 41649.00417 | AT49: 41648.97986 | AU49: 1.798473282 | AV49: 41648.98075 | AW49: 1.781679389 | AX49: 41648.9755 | AY49: 1.598473282 | AZ49: 41648.97203 | BA49: 1.581679389 | BB49: 41648.96553 | BC49: 1.681679389 | BD49: 41648.92039 | BE49: 1.348854962 | BF49: 41649.01458 | BH49: 41649.03194 | BI49: 41649.02153
A50: 0 | B50: =IF(Instructions!$C$2="BST",A50,0) -> 0 | C50: 2018-01-11T06:07:00 | D50: 2018-01-11 | E50: 2018-01-11 | F50: 1 | G50: Jan | H50: 11 | I50: 4 | J50: Thu | K50: 41649.25486 | L50: 4.59 | M50: HW | N50: 0.08695652174 | O50: 06:07:00 | P50: 12:00:00 | Q50: 06:00:00 | R50: 0.01944444445 | S50: 41649.26201 | T50: 6.139130435 | U50: 41649.32798 | V50: 41649.26208 | W50: 5.930434783 | X50: 41649.21319 | Y50: 41649.23764 | Z50: 4.504347826 | AA50: 41649.22722 | AB50: 41649.23403 | AC50: 4.104347826 | AD50: Opn | AE50: 41649.11944 | AF50: 41649.24411 | AG50: 3.595652174 | AH50: 41649.2164 | AI50: 3.986956522 | AJ50: 41649.26541 | AK50: 6.039130435 | AL50: 41649.26882 | AM50: 5.947826087 | AN50: 41649.26194 | AO50: 5.830434783 | AP50: 41649.27215 | AQ50: 5.230434783 | AR50: 41649.24444 | AS50: 41649.26528 | AT50: 41649.23723 | AU50: 4.104347826 | AV50: 41649.23723 | AW50: 3.904347826 | AX50: 41649.21299 | AY50: 3.613043478 | AZ50: 41649.20952 | BA50: 3.504347826 | BB50: 41649.20605 | BC50: 3.495652174 | BD50: 41649.14402 | BE50: 3.304347826 | BF50: 41649.24444 | BH50: 41649.29653 | BI50: 41649.28611
A51: 0 | B51: =IF(Instructions!$C$2="BST",A51,0) -> 0 | C51: 2018-01-11T12:10:00 | D51: 2018-01-11 | E51: =IF(D51=D50,IF(J50="","",J50),D51) -> Thu | F51: 1 | G51: =IF(H51="","",TEXT(F51*29,"mmm")) ->  | H51: =IF(I51=I50,"",DAY(K51)) ->  | I51: 4 | J51: =IF(I51=I50,"",TEXT(I51+2,"ddd")) ->  | K51: 41649.50694 | L51: 2.09 | M51: LW | N51: -0.0534351145 | O51: 12:10:00 | P51: 17:00:00 | Q51: 11:00:00 | R51: 0.1944444444 | S51: 41649.53395 | T51: 2.590839695 | U51: 41649.59992 | V51: 41649.52787 | W51: 2.385496183 | X51: 41649.46528 | Y51: 41649.511 | Z51: 2.064122137 | AA51: 41649.49248 | AB51: 41649.50617 | AC51: 1.969465649 | AD51: Cls | AE51: 41649.34861 | AF51: 41649.50077 | AG51: 1.864122137 | AH51: 41649.49171 | AI51: 1.964122137 | AJ51: 41649.53328 | AK51: 2.585496183 | AL51: 41649.53328 | AM51: 2.585496183 | AN51: 41649.52566 | AO51: 2.585496183 | AP51: 41649.53193 | AQ51: 2.380152672 | AR51: 41649.49653 | AS51: 41649.52083 | AT51: 41649.49653 | AU51: 2.064122137 | AV51: 41649.49788 | AW51: 2.069465649 | AX51: 41649.49171 | AY51: 1.864122137 | AZ51: 41649.48823 | BA51: 1.869465649 | BB51: 41649.48196 | BC51: 1.969465649 | BD51: 41649.43682 | BE51: 1.548091603 | BF51: 41649.53125 | BH51: 41649.54861 | BI51: 41649.53819
A52: 0 | B52: =IF(Instructions!$C$2="BST",A52,0) -> 0 | C52: 2018-01-11T18:34:00 | D52: 2018-01-11 | F52: 1 | G52: =IF(H52="","",TEXT(F52*29,"mmm")) ->  | H52: =IF(I52=I51,"",DAY(K52)) ->  | I52: 4 | J52: =IF(I52=I51,"",TEXT(I52+2,"ddd")) ->  | K52: 41649.77361 | L52: 4.73 | M52: HW | N52: 0.2086956522 | O52: 18:34:00 | P52: 1 | Q52: 18:00:00 | R52: 0.09444444443 | S52: 41649.78154 | T52: 6.333913043 | U52: 41649.84751 | V52: 41649.78187 | W52: 6.113043478 | X52: 41649.73194 | Y52: 41649.75691 | Z52: 4.650434783 | AA52: 41649.74649 | AB52: 41649.75278 | AC52: 4.250434783 | AD52: Opn | AE52: 41649.63819 | AF52: 41649.76155 | AG52: 3.729565217 | AH52: 41649.7341 | AI52: 4.108695652 | AJ52: 41649.78468 | AK52: 6.233913043 | AL52: 41649.78783 | AM52: 6.154782609 | AN52: 41649.78121 | AO52: 6.013043478 | AP52: 41649.79064 | AQ52: 5.413043478 | AR52: 41649.76319 | AS52: 41649.78403 | AT52: 41649.75494 | AU52: 4.250434783 | AV52: 41649.75494 | AW52: 4.050434783 | AX52: 41649.73096 | AY52: 3.771304348 | AZ52: 41649.72749 | BA52: 3.650434783 | BB52: 41649.72402 | BC52: 3.629565217 | BD52: 41649.66381 | BE52: 3.450434783 | BF52: 41649.76319 | BH52: 41649.81528 | BI52: 41649.80486
A53: 0 | B53: =IF(Instructions!$C$2="BST",A53,0) -> 0 | C53: 2018-01-12T00:51:00 | D53: 2018-01-12 | E53: 2018-01-12 | F53: 1 | G53: Jan | H53: 12 | I53: 5 | J53: Fri | K53: 41650.03542 | L53: 1.82 | M53: LW | N53: 0.1526717557 | O53: 00:51:00 | P53: 05:00:00 | Q53: -0.04166666667 | R53: 0.3083333333 | S53: 41650.064 | T53: 2.240458015 | U53: 41650.12998 | V53: 41650.05437 | W53: 2.055725191 | X53: 41649.99375 | Y53: 41650.04184 | Z53: 1.816793893 | AA53: 41650.01858 | AB53: 41650.03623 | AC53: 1.701526718 | AD53: Cls | AE53: 41649.86736 | AF53: 41650.02766 | AG53: 1.616793893 | AH53: 41650.01939 | AI53: 1.716793893 | AJ53: 41650.06293 | AK53: 2.255725191 | AL53: 41650.06293 | AM53: 2.255725191 | AN53: 41650.05492 | AO53: 2.255725191 | AP53: 41650.06079 | AQ53: 2.070992366 | AR53: 41650.025 | AS53: 41650.04931 | AT53: 41650.025 | AU53: 1.816793893 | AV53: 41650.02714 | AW53: 1.801526718 | AX53: 41650.01939 | AY53: 1.616793893 | AZ53: 41650.01591 | BA53: 1.601526718 | BB53: 41650.01004 | BC53: 1.701526718 | BD53: 41649.9649 | BE53: 1.36259542 | BF53: 41650.05972 | BH53: 41650.07708 | BI53: 41650.06667
A54: 0 | B54: =IF(Instructions!$C$2="BST",A54,0) -> 0 | C54: 2018-01-12T07:12:00 | D54: 2018-01-12 | E54: Fri | F54: 1 | I54: 5 | K54: 41650.3 | L54: 4.69 | M54: HW | N54: 0.1739130435 | O54: 07:12:00 | P54: 12:00:00 | Q54: 06:00:00 | R54: 0.2 | S54: 41650.30903 | T54: 6.27826087 | U54: 41650.375 | V54: 41650.30972 | W54: 6.060869565 | X54: 41650.25833 | Y54: 41650.28403 | Z54: 4.608695652 | AA54: 41650.27361 | AB54: 41650.27917 | AC54: 4.208695652 | AD54: Opn | AE54: 41650.16458 | AF54: 41650.28611 | AG54: 3.691304348 | AH54: 41650.25903 | AI54: 4.073913043 | AJ54: 41650.31181 | AK54: 6.17826087 | AL54: 41650.31458 | AM54: 6.095652174 | AN54: 41650.30833 | AO54: 5.960869565 | AP54: 41650.31667 | AQ54: 5.360869565 | AR54: 41650.28958 | AS54: 41650.31042 | AT54: 41650.27986 | AU54: 4.208695652 | AV54: 41650.27986 | AW54: 4.008695652 | AX54: 41650.25625 | AY54: 3.726086957 | AZ54: 41650.25278 | BA54: 3.608695652 | BB54: 41650.24931 | BC54: 3.591304348 | BD54: 41650.19167 | BE54: 3.408695652 | BF54: 41650.28958 | BH54: 41650.34167 | BI54: 41650.33125
A55: 0 | B55: =IF(Instructions!$C$2="BST",A55,0) -> 0 | C55: 2018-01-12T13:16:00 | D55: 2018-01-12 | F55: 1 | G55: =IF(H55="","",TEXT(F55*29,"mmm")) ->  | H55: =IF(I55=I54,"",DAY(K55)) ->  | I55: 5 | J55: =IF(I55=I54,"",TEXT(I55+2,"ddd")) ->  | K55: 41650.55278 | L55: 2.01 | M55: LW | N55: 0.007633587786 | O55: 13:16:00 | P55: 17:00:00 | Q55: 11:00:00 | R55: 0.3777777778 | S55: 41650.58233 | T55: 2.487022901 | U55: 41650.6483 | V55: 41650.57052 | W55: 2.28778626 | X55: 41650.51111 | Y55: 41650.56065 | Z55: 1.990839695 | AA55: 41650.53449 | AB55: 41650.55455 | AC55: 1.890076336 | AD55: Cls | AE55: 41650.39375 | AF55: 41650.54406 | AG55: 1.790839695 | AH55: 41650.53627 | AI55: 1.890839695 | AJ55: 41650.58102 | AK55: 2.48778626 | AL55: 41650.58102 | AM55: 2.48778626 | AN55: 41650.57276 | AO55: 2.48778626 | AP55: 41650.5784 | AQ55: 2.288549618 | AR55: 41650.54236 | AS55: 41650.56667 | AT55: 41650.54236 | AU55: 1.990839695 | AV55: 41650.54498 | AW55: 1.990076336 | AX55: 41650.53627 | AY55: 1.790839695 | AZ55: 41650.53279 | BA55: 1.790076336 | BB55: 41650.52716 | BC55: 1.890076336 | BD55: 41650.48202 | BE55: 1.493129771 | BF55: 41650.57708 | BH55: 41650.59444 | BI55: 41650.58403
A56: 0 | B56: =IF(Instructions!$C$2="BST",A56,0) -> 0 | C56: 2018-01-12T19:37:00 | D56: 2018-01-12 | F56: 1 | G56: =IF(H56="","",TEXT(F56*29,"mmm")) ->  | H56: =IF(I56=I55,"",DAY(K56)) ->  | I56: 5 | J56: =IF(I56=I55,"",TEXT(I56+2,"ddd")) ->  | K56: 41650.81736 | L56: 4.79 | M56: HW | N56: 0.2608695652 | O56: 19:37:00 | P56: 1 | Q56: 18:00:00 | R56: 0.2694444444 | S56: 41650.82711 | T56: 6.417391304 | U56: 41650.89308 | V56: 41650.82805 | W56: 6.191304348 | X56: 41650.77569 | Y56: 41650.80187 | Z56: 4.713043478 | AA56: 41650.79145 | AB56: 41650.79653 | AC56: 4.313043478 | AD56: Opn | AE56: 41650.68194 | AF56: 41650.80227 | AG56: 3.786956522 | AH56: 41650.77542 | AI56: 4.160869565 | AJ56: 41650.82965 | AK56: 6.317391304 | AL56: 41650.83219 | AM56: 6.243478261 | AN56: 41650.82618 | AO56: 6.091304348 | AP56: 41650.83379 | AQ56: 5.491304348 | AR56: 41650.80694 | AS56: 41650.82778 | AT56: 41650.79626 | AU56: 4.313043478 | AV56: 41650.79626 | AW56: 4.113043478 | AX56: 41650.77289 | AY56: 3.839130435 | AZ56: 41650.76942 | BA56: 3.713043478 | BB56: 41650.76594 | BC56: 3.686956522 | BD56: 41650.70999 | BE56: 3.513043478 | BF56: 41650.80694 | BH56: 41650.85903 | BI56: 41650.84861
A57: 0 | B57: =IF(Instructions!$C$2="BST",A57,0) -> 0 | C57: 2018-01-13T01:46:00 | D57: 2018-01-13 | E57: =IF(D57=D56,IF(J56="","",J56),D57) -> 2018-01-13 | F57: 1 | G57: Jan | H57: 13 | I57: 6 | J57: Sat | K57: 41651.07361 | L57: 1.76 | M57: LW | N57: 0.1984732824 | O57: 01:46:00 | P57: 05:00:00 | Q57: -0.04166666667 | R57: 0.4611111111 | S57: 41651.10432 | T57: 2.16259542 | U57: 41651.17029 | V57: 41651.08991 | W57: 1.982442748 | X57: 41651.03194 | Y57: 41651.08322 | Z57: 1.761832061 | AA57: 41651.05359 | AB57: 41651.07654 | AC57: 1.641984733 | AD57: Cls | AE57: 41650.91111 | AF57: 41651.06373 | AG57: 1.561832061 | AH57: 41651.05652 | AI57: 1.661832061 | AJ57: 41651.10272 | AK57: 2.182442748 | AL57: 41651.10272 | AM57: 2.182442748 | AN57: 41651.09417 | AO57: 2.182442748 | AP57: 41651.09952 | AQ57: 2.002290076 | AR57: 41651.06319 | AS57: 41651.0875 | AT57: 41651.06319 | AU57: 1.761832061 | AV57: 41651.0664 | AW57: 1.741984733 | AX57: 41651.05652 | AY57: 1.561832061 | AZ57: 41651.05305 | BA57: 1.541984733 | BB57: 41651.0477 | BC57: 1.641984733 | BD57: 41651.00257 | BE57: 1.321374046 | BF57: 41651.09792 | BH57: 41651.11528 | BI57: 41651.10486
A58: 0 | B58: =IF(Instructions!$C$2="BST",A58,0) -> 0 | C58: 2018-01-13T08:05:00 | D58: 2018-01-13 | E58: Sat | F58: 1 | I58: 6 | K58: 41651.33681 | L58: 4.86 | M58: HW | N58: 0.3217391304 | O58: 08:05:00 | P58: 12:00:00 | Q58: 06:00:00 | R58: 0.3472222222 | S58: 41651.34737 | T58: 6.514782609 | U58: 41651.41334 | V58: 41651.34857 | W58: 6.282608696 | X58: 41651.29514 | Y58: 41651.32186 | Z58: 4.786086957 | AA58: 41651.31144 | AB58: 41651.31597 | AC58: 4.386086957 | AD58: Opn | AE58: 41651.20139 | AF58: 41651.32036 | AG58: 3.853913043 | AH58: 41651.29379 | AI58: 4.22173913 | AJ58: 41651.34963 | AK58: 6.414782609 | AL58: 41651.3519 | AM58: 6.346956522 | AN58: 41651.34616 | AO58: 6.182608696 | AP58: 41651.35296 | AQ58: 5.582608696 | AR58: 41651.32639 | AS58: 41651.34722 | AT58: 41651.31462 | AU58: 4.386086957 | AV58: 41651.31462 | AW58: 4.186086957 | AX58: 41651.29152 | AY58: 3.91826087 | AZ58: 41651.28805 | BA58: 3.786086957 | BB58: 41651.28458 | BC58: 3.753913043 | BD58: 41651.23052 | BE58: 3.586086957 | BF58: 41651.32639 | BH58: 41651.37847 | BI58: 41651.36806
A59: 0 | B59: =IF(Instructions!$C$2="BST",A59,0) -> 0 | C59: 2018-01-13T14:09:00 | D59: 2018-01-13 | E59: =IF(D59=D58,IF(J58="","",J58),D59) ->  | F59: 1 | G59: =IF(H59="","",TEXT(F59*29,"mmm")) ->  | H59: =IF(I59=I58,"",DAY(K59)) ->  | I59: 6 | J59: =IF(I59=I58,"",TEXT(I59+2,"ddd")) ->  | K59: 41651.58958 | L59: 1.85 | M59: LW | N59: 0.1297709924 | O59: 14:09:00 | P59: 17:00:00 | Q59: 11:00:00 | R59: 0.525 | S59: 41651.62118 | T59: 2.279389313 | U59: 41651.68715 | V59: 41651.60477 | W59: 2.092366412 | X59: 41651.54792 | Y59: 41651.60052 | Z59: 1.844274809 | AA59: 41651.56823 | AB59: 41651.5934 | AC59: 1.73129771 | AD59: Cls | AE59: 41651.43056 | AF59: 41651.57882 | AG59: 1.644274809 | AH59: 41651.57205 | AI59: 1.744274809 | AJ59: 41651.61936 | AK59: 2.292366412 | AL59: 41651.61936 | AM59: 2.292366412 | AN59: 41651.61059 | AO59: 2.292366412 | AP59: 41651.61571 | AQ59: 2.105343511 | AR59: 41651.57917 | AS59: 41651.60347 | AT59: 41651.57917 | AU59: 1.844274809 | AV59: 41651.58281 | AW59: 1.83129771 | AX59: 41651.57205 | AY59: 1.644274809 | AZ59: 41651.56858 | BA59: 1.63129771 | BB59: 41651.56345 | BC59: 1.73129771 | BD59: 41651.51832 | BE59: 1.383206107 | BF59: 41651.61389 | BH59: 41651.63125 | BI59: 41651.62083
A60: 0 | B60: =IF(Instructions!$C$2="BST",A60,0) -> 0 | C60: 2018-01-13T20:27:00 | D60: 2018-01-13 | F60: 1 | G60: =IF(H60="","",TEXT(F60*29,"mmm")) ->  | H60: =IF(I60=I59,"",DAY(K60)) ->  | I60: 6 | J60: =IF(I60=I59,"",TEXT(I60+2,"ddd")) ->  | K60: 41651.85208 | L60: 4.9 | M60: HW | N60: 0.3565217391 | O60: 20:27:00 | P60: 1 | Q60: 18:00:00 | R60: 0.4083333333 | S60: 41651.86328 | T60: 6.570434783 | U60: 41651.92925 | V60: 41651.8647 | W60: 6.334782609 | X60: 41651.81042 | Y60: 41651.83756 | Z60: 4.827826087 | AA60: 41651.82714 | AB60: 41651.83125 | AC60: 4.427826087 | AD60: Opn | AE60: 41651.71667 | AF60: 41651.83458 | AG60: 3.892173913 | AH60: 41651.80822 | AI60: 4.256521739 | AJ60: 41651.86534 | AK60: 6.470434783 | AL60: 41651.86739 | AM60: 6.406086957 | AN60: 41651.86186 | AO60: 6.234782609 | AP60: 41651.86803 | AQ60: 5.634782609 | AR60: 41651.84167 | AS60: 41651.8625 | AT60: 41651.82905 | AU60: 4.427826087 | AV60: 41651.82905 | AW60: 4.227826087 | AX60: 41651.80616 | AY60: 3.963478261 | AZ60: 41651.80269 | BA60: 3.827826087 | BB60: 41651.79922 | BC60: 3.792173913 | BD60: 41651.74664 | BE60: 3.627826087 | BF60: 41651.84167 | BH60: 41651.89375 | BI60: 41651.88333
A61: 0 | B61: =IF(Instructions!$C$2="BST",A61,0) -> 0 | C61: 2018-01-14T02:32:00 | D61: 2018-01-14 | E61: 2018-01-14 | F61: 1 | G61: Jan | H61: 14 | I61: 7 | J61: Sun | K61: 41652.10556 | L61: 1.65 | M61: LW | N61: 0.2824427481 | O61: 02:32:00 | P61: 05:00:00 | Q61: -0.04166666667 | R61: 0.5888888889 | S61: =IF($M61="HW",$K61+S$6+(S$5-S$6)*$R61,$K61+S$8+(S$7-S$8)*$R61) -> 41652.13804 | T61: 2.019847328 | U61: 41652.20401 | V61: 41652.11964 | W61: 1.848091603 | X61: =IF($M61="HW",$K61+X$6+(X$5-X$6)*$R61,$K61+X$8+(X$7-X$8)*$R61) -> 41652.06389 | Y61: 41652.11782 | Z61: 1.661068702 | AA61: 41652.08287 | AB61: 41652.11026 | AC61: 1.532824427 | AD61: Cls | AE61: 41651.94583 | AF61: 41652.0939 | AG61: 1.461068702 | AH61: 41652.08758 | AI61: 1.561068702 | AJ61: 41652.136 | AK61: 2.048091603 | AL61: 41652.136 | AM61: 2.048091603 | AN61: 41652.12701 | AO61: 2.048091603 | AP61: 41652.13191 | AQ61: 1.876335878 | AR61: =IF($M61="HW",$K61+AR$6+(AR$5-AR$6)*$R61,$K61+AR$8+(AR$7-AR$8)*$R61) -> 41652.09514 | AS61: 41652.11944 | AT61: 41652.09514 | AU61: 1.661068702 | AV61: 41652.09923 | AW61: 1.632824427 | AX61: 41652.08758 | AY61: 1.461068702 | AZ61: 41652.0841 | BA61: 1.432824427 | BB61: 41652.07921 | BC61: 1.532824427 | BD61: 41652.03407 | BE61: 1.245801527 | BF61: =IF($M61="HW",$K61+BF$6+(BF$5-BF$6)*$R61,$K61+BF$8+(BF$7-BF$8)*$R61) -> 41652.12986 | BH61: 41652.14722 | BI61: 41652.13681
A62: 0 | B62: =IF(Instructions!$C$2="BST",A62,0) -> 0 | C62: 2018-01-14T08:49:00 | D62: 2018-01-14 | E62: Sun | F62: 1 | I62: 7 | K62: 41652.36736 | L62: 5.07 | M62: HW | N62: 0.5043478261 | O62: 08:49:00 | P62: 12:00:00 | Q62: 06:00:00 | R62: 0.4694444444 | S62: 41652.3792 | T62: 6.806956522 | U62: 41652.44517 | V62: 41652.38083 | W62: 6.556521739 | X62: 41652.32569 | Y62: 41652.35326 | Z62: 5.005217391 | AA62: 41652.34284 | AB62: 41652.34653 | AC62: 4.605217391 | AD62: Opn | AE62: 41652.23194 | AF62: 41652.34879 | AG62: 4.054782609 | AH62: 41652.32265 | AI62: 4.404347826 | AJ62: 41652.38104 | AK62: 6.706956522 | AL62: 41652.38288 | AM62: 6.657391304 | AN62: 41652.37757 | AO62: 6.456521739 | AP62: 41652.38309 | AQ62: 5.856521739 | AR62: 41652.35694 | AS62: 41652.37778 | AT62: 41652.34348 | AU62: 4.605217391 | AV62: 41652.34348 | AW62: 4.405217391 | AX62: 41652.3208 | AY62: 4.155652174 | AZ62: 41652.31733 | BA62: 4.005217391 | BB62: 41652.31386 | BC62: 3.954782609 | BD62: 41652.26277 | BE62: 3.805217391 | BF62: 41652.35694 | BH62: 41652.40903 | BI62: 41652.39861
A63: 0 | B63: =IF(Instructions!$C$2="BST",A63,0) -> 0 | C63: 2018-01-14T14:54:00 | D63: 2018-01-14 | F63: 1 | G63: =IF(H63="","",TEXT(F63*29,"mmm")) ->  | H63: =IF(I63=I62,"",DAY(K63)) ->  | I63: 7 | J63: =IF(I63=I62,"",TEXT(I63+2,"ddd")) ->  | K63: 41652.62083 | L63: 1.67 | M63: LW | N63: 0.2671755725 | O63: 14:54:00 | P63: 17:00:00 | Q63: 11:00:00 | R63: 0.65 | S63: 41652.65417 | T63: 2.045801527 | U63: 41652.72014 | V63: 41652.63385 | W63: 1.872519084 | X63: 41652.57917 | Y63: 41652.63438 | Z63: 1.679389313 | AA63: 41652.59688 | AB63: 41652.62639 | AC63: 1.552671756 | AD63: Cls | AE63: 41652.46111 | AF63: 41652.60833 | AG63: 1.479389313 | AH63: 41652.60243 | AI63: 1.579389313 | AJ63: 41652.65191 | AK63: 2.072519084 | AL63: 41652.65191 | AM63: 2.072519084 | AN63: 41652.64271 | AO63: 2.072519084 | AP63: 41652.6474 | AQ63: 1.899236641 | AR63: 41652.61042 | AS63: 41652.63472 | AT63: 41652.61042 | AU63: 1.679389313 | AV63: 41652.61493 | AW63: 1.652671756 | AX63: 41652.60243 | AY63: 1.479389313 | AZ63: 41652.59896 | BA63: 1.452671756 | BB63: 41652.59427 | BC63: 1.552671756 | BD63: 41652.54913 | BE63: 1.259541985 | BF63: 41652.64514 | BH63: 41652.6625 | BI63: 41652.65208
A64: 0 | B64: =IF(Instructions!$C$2="BST",A64,0) -> 0 | C64: 2018-01-14T21:09:00 | D64: 2018-01-14 | F64: 1 | G64: =IF(H64="","",TEXT(F64*29,"mmm")) ->  | H64: =IF(I64=I63,"",DAY(K64)) ->  | I64: 7 | J64: =IF(I64=I63,"",TEXT(I64+2,"ddd")) ->  | K64: 41652.88125 | L64: 5.02 | M64: HW | N64: 0.4608695652 | O64: 21:09:00 | P64: 1 | Q64: 18:00:00 | R64: 0.525 | S64: 41652.89366 | T64: 6.737391304 | U64: 41652.95964 | V64: 41652.89549 | W64: 6.491304348 | X64: 41652.83958 | Y64: 41652.86753 | Z64: 4.953043478 | AA64: 41652.85712 | AB64: 41652.86042 | AC64: 4.553043478 | AD64: Opn | AE64: 41652.74583 | AF64: 41652.86172 | AG64: 4.006956522 | AH64: 41652.83576 | AI64: 4.360869565 | AJ64: 41652.89531 | AK64: 6.637391304 | AL64: 41652.89696 | AM64: 6.583478261 | AN64: 41652.89184 | AO64: 6.391304348 | AP64: 41652.89679 | AQ64: 5.791304348 | AR64: 41652.87083 | AS64: 41652.89167 | AT64: 41652.8566 | AU64: 4.553043478 | AV64: 41652.8566 | AW64: 4.353043478 | AX64: 41652.83411 | AY64: 4.099130435 | AZ64: 41652.83064 | BA64: 3.953043478 | BB64: 41652.82717 | BC64: 3.906956522 | BD64: 41652.77743 | BE64: 3.753043478 | BF64: 41652.87083 | BH64: 41652.92292 | BI64: 41652.9125
A65: 0 | B65: =IF(Instructions!$C$2="BST",A65,0) -> 0 | C65: 2018-01-15T03:12:00 | D65: 2018-01-15 | E65: =IF(D65=D64,IF(J64="","",J64),D65) -> 2018-01-15 | F65: 1 | G65: Jan | H65: 15 | I65: 1 | J65: Mon | K65: 41653.13333 | L65: 1.53 | M65: LW | N65: 0.3740458015 | O65: 03:12:00 | P65: 05:00:00 | Q65: -0.04166666667 | R65: 0.7 | S65: 41653.16736 | T65: 1.864122137 | U65: 41653.23333 | V65: 41653.14549 | W65: 1.701526718 | X65: 41653.09167 | Y65: 41653.14792 | Z65: 1.551145038 | AA65: 41653.10833 | AB65: 41653.13958 | AC65: 1.413740458 | AD65: Cls | AE65: 41652.975 | AF65: 41653.12014 | AG65: 1.351145038 | AH65: 41653.11458 | AI65: 1.451145038 | AJ65: 41653.16493 | AK65: 1.901526718 | AL65: 41653.16493 | AM65: 1.901526718 | AN65: 41653.15556 | AO65: 1.901526718 | AP65: 41653.16007 | AQ65: 1.738931298 | AR65: 41653.12292 | AS65: 41653.14722 | AT65: 41653.12292 | AU65: 1.551145038 | AV65: 41653.12778 | AW65: 1.513740458 | AX65: 41653.11458 | AY65: 1.351145038 | AZ65: 41653.11111 | BA65: 1.313740458 | BB65: 41653.1066 | BC65: 1.413740458 | BD65: 41653.06146 | BE65: 1.163358779 | BF65: 41653.15764 | BH65: 41653.175 | BI65: 41653.16458
A66: 0 | B66: =IF(Instructions!$C$2="BST",A66,0) -> 0 | C66: 2018-01-15T09:26:00 | D66: 2018-01-15 | E66: Mon | F66: 1 | I66: 1 | K66: 41653.39306 | L66: 5.26 | M66: HW | N66: 0.6695652174 | O66: 09:26:00 | P66: 12:00:00 | Q66: 06:00:00 | R66: 0.5722222222 | S66: 41653.40596 | T66: 7.071304348 | U66: 41653.47193 | V66: 41653.40795 | W66: 6.804347826 | X66: 41653.35139 | Y66: 41653.37967 | Z66: 5.203478261 | AA66: 41653.36925 | AB66: 41653.37222 | AC66: 4.803478261 | AD66: Opn | AE66: 41653.25764 | AF66: 41653.3727 | AG66: 4.236521739 | AH66: 41653.34691 | AI66: 4.569565217 | AJ66: 41653.40745 | AK66: 6.971304348 | AL66: 41653.40893 | AM66: 6.93826087 | AN66: 41653.40397 | AO66: 6.704347826 | AP66: 41653.40843 | AQ66: 6.104347826 | AR66: 41653.38264 | AS66: 41653.40347 | AT66: 41653.36775 | AU66: 4.803478261 | AV66: 41653.36775 | AW66: 4.603478261 | AX66: 41653.34543 | AY66: 4.370434783 | AZ66: 41653.34196 | BA66: 4.203478261 | BB66: 41653.33848 | BC66: 4.136521739 | BD66: 41653.28989 | BE66: 4.003478261 | BF66: 41653.38264 | BH66: 41653.43472 | BI66: 41653.42431
A67: 0 | B67: =IF(Instructions!$C$2="BST",A67,0) -> 0 | C67: 2018-01-15T15:32:00 | D67: 2018-01-15 | E67: =IF(D67=D66,IF(J66="","",J66),D67) ->  | F67: 1 | G67: =IF(H67="","",TEXT(F67*29,"mmm")) ->  | H67: =IF(I67=I66,"",DAY(K67)) ->  | I67: 1 | J67: =IF(I67=I66,"",TEXT(I67+2,"ddd")) ->  | K67: 41653.64722 | L67: 1.5 | M67: LW | N67: 0.3969465649 | O67: 15:32:00 | P67: 17:00:00 | Q67: 11:00:00 | R67: 0.7555555556 | S67: 41653.68202 | T67: 1.82519084 | U67: 41653.74799 | V67: 41653.65841 | W67: 1.664885496 | X67: 41653.60556 | Y67: 41653.66296 | Z67: 1.523664122 | AA67: 41653.62106 | AB67: 41653.65424 | AC67: 1.383969466 | AD67: Cls | AE67: 41653.48681 | AF67: 41653.63326 | AG67: 1.323664122 | AH67: 41653.62809 | AI67: 1.423664122 | AJ67: 41653.6794 | AK67: 1.864885496 | AL67: 41653.6794 | AM67: 1.864885496 | AN67: 41653.66983 | AO67: 1.864885496 | AP67: 41653.67415 | AQ67: 1.704580153 | AR67: 41653.63681 | AS67: 41653.66111 | AT67: 41653.63681 | AU67: 1.523664122 | AV67: 41653.64205 | AW67: 1.483969466 | AX67: 41653.62809 | AY67: 1.323664122 | AZ67: 41653.62461 | BA67: 1.283969466 | BB67: 41653.62029 | BC67: 1.383969466 | BD67: 41653.57515 | BE67: 1.142748092 | BF67: 41653.67153 | BH67: 41653.68889 | BI67: 41653.67847
A68: 0 | B68: =IF(Instructions!$C$2="BST",A68,0) -> 0 | C68: 2018-01-15T21:46:00 | D68: 2018-01-15 | F68: 1 | G68: =IF(H68="","",TEXT(F68*29,"mmm")) ->  | H68: =IF(I68=I67,"",DAY(K68)) ->  | I68: 1 | J68: =IF(I68=I67,"",TEXT(I68+2,"ddd")) ->  | K68: 41653.90694 | L68: 5.14 | M68: HW | N68: 0.5652173913 | O68: 21:46:00 | P68: 1 | Q68: 18:00:00 | R68: 0.6277777778 | S68: 41653.92043 | T68: 6.904347826 | U68: 41653.9864 | V68: 41653.92261 | W68: 6.647826087 | X68: 41653.86528 | Y68: 41653.89394 | Z68: 5.07826087 | AA68: 41653.88353 | AB68: 41653.88611 | AC68: 4.67826087 | AD68: Opn | AE68: 41653.77153 | AF68: 41653.88563 | AG68: 4.12173913 | AH68: 41653.86003 | AI68: 4.465217391 | AJ68: 41653.92172 | AK68: 6.804347826 | AL68: 41653.92301 | AM68: 6.760869565 | AN68: 41653.91825 | AO68: 6.547826087 | AP68: 41653.92213 | AQ68: 5.947826087 | AR68: 41653.89653 | AS68: 41653.91736 | AT68: 41653.88086 | AU68: 4.67826087 | AV68: 41653.88086 | AW68: 4.47826087 | AX68: 41653.85874 | AY68: 4.234782609 | AZ68: 41653.85527 | BA68: 4.07826087 | BB68: 41653.85179 | BC68: 4.02173913 | BD68: 41653.80455 | BE68: 3.87826087 | BF68: 41653.89653 | BH68: 41653.94861 | BI68: 41653.93819
A69: 0 | B69: =IF(Instructions!$C$2="BST",A69,0) -> 0 | C69: 2018-01-16T03:47:00 | D69: 2018-01-16 | E69: 2018-01-16 | F69: 1 | G69: Jan | H69: 16 | I69: 2 | J69: Tue | K69: 41654.15764 | L69: 1.41 | M69: LW | N69: 0.465648855 | O69: 03:47:00 | P69: 05:00:00 | Q69: -0.04166666667 | R69: 0.7972222222 | S69: 41654.19302 | T69: 1.708396947 | U69: 41654.25899 | V69: 41654.1681 | W69: 1.554961832 | X69: 41654.11597 | Y69: 41654.17425 | Z69: 1.441221374 | AA69: 41654.13061 | AB69: 41654.16524 | AC69: 1.294656489 | AD69: Cls | AE69: 41654.00069 | AF69: 41654.14309 | AG69: 1.241221374 | AH69: 41654.13821 | AI69: 1.341221374 | AJ69: 41654.19025 | AK69: 1.754961832 | AL69: 41654.19025 | AM69: 1.754961832 | AN69: 41654.18054 | AO69: 1.754961832 | AP69: 41654.18471 | AQ69: 1.601526718 | AR69: 41654.14722 | AS69: 41654.17153 | AT69: 41654.14722 | AU69: 1.441221374 | AV69: 41654.15276 | AW69: 1.394656489 | AX69: 41654.13821 | AY69: 1.241221374 | AZ69: 41654.13474 | BA69: 1.194656489 | BB69: 41654.13057 | BC69: 1.294656489 | BD69: 41654.08543 | BE69: 1.080916031 | BF69: 41654.18194 | BH69: 41654.19931 | BI69: 41654.18889
A70: 0 | B70: =IF(Instructions!$C$2="BST",A70,0) -> 0 | C70: 2018-01-16T10:01:00 | D70: 2018-01-16 | E70: Tue | F70: 1 | I70: 2 | K70: 41654.41736 | L70: 5.43 | M70: HW | N70: 0.8173913043 | O70: 10:01:00 | P70: 12:00:00 | Q70: 06:00:00 | R70: 0.6694444444 | S70: 41654.43128 | T70: 7.307826087 | U70: 41654.49725 | V70: 41654.4336 | W70: 7.026086957 | X70: 41654.37569 | Y70: 41654.40465 | Z70: 5.380869565 | AA70: 41654.39423 | AB70: 41654.39653 | AC70: 4.980869565 | AD70: Opn | AE70: 41654.28194 | AF70: 41654.39532 | AG70: 4.399130435 | AH70: 41654.36987 | AI70: 4.717391304 | AJ70: 41654.43243 | AK70: 7.207826087 | AL70: 41654.43357 | AM70: 7.189565217 | AN70: 41654.42895 | AO70: 6.926086957 | AP70: 41654.4324 | AQ70: 6.326086957 | AR70: 41654.40694 | AS70: 41654.42778 | AT70: 41654.3907 | AU70: 4.980869565 | AV70: 41654.3907 | AW70: 4.780869565 | AX70: 41654.36872 | AY70: 4.562608696 | AZ70: 41654.36525 | BA70: 4.380869565 | BB70: 41654.36178 | BC70: 4.299130435 | BD70: 41654.31555 | BE70: 4.180869565 | BF70: 41654.40694 | BH70: 41654.45903 | BI70: 41654.44861
A71: 0 | B71: =IF(Instructions!$C$2="BST",A71,0) -> 0 | C71: 2018-01-16T16:08:00 | D71: 2018-01-16 | F71: 1 | G71: =IF(H71="","",TEXT(F71*29,"mmm")) ->  | H71: =IF(I71=I70,"",DAY(K71)) ->  | I71: =WEEKDAY(K71,2) -> 2 | J71: =IF(I71=I70,"",TEXT(I71+2,"ddd")) ->  | K71: 41654.67222 | L71: 1.35 | M71: LW | N71: 0.5114503817 | O71: 16:08:00 | P71: 17:00:00 | Q71: 11:00:00 | R71: 0.8555555556 | S71: 41654.70841 | T71: 1.630534351 | U71: 41654.77438 | V71: 41654.68167 | W71: 1.481679389 | X71: 41654.63056 | Y71: 41654.69005 | Z71: 1.386259542 | AA71: 41654.64398 | AB71: 41654.68063 | AC71: 1.235114504 | AD71: Cls | AE71: 41654.51111 | AF71: 41654.65687 | AG71: 1.186259542 | AH71: 41654.65239 | AI71: 1.286259542 | AJ71: 41654.70544 | AK71: 1.681679389 | AL71: 41654.70544 | AM71: 1.681679389 | AN71: 41654.69552 | AO71: 1.681679389 | AP71: 41654.6995 | AQ71: 1.532824427 | AR71: 41654.66181 | AS71: 41654.68611 | AT71: 41654.66181 | AU71: 1.386259542 | AV71: 41654.66775 | AW71: 1.335114504 | AX71: 41654.65239 | AY71: 1.186259542 | AZ71: 41654.64892 | BA71: 1.135114504 | BB71: 41654.64495 | BC71: 1.235114504 | BD71: 41654.59981 | BE71: 1.039694656 | BF71: 41654.69653 | BH71: 41654.71389 | BI71: 41654.70347
A72: 0 | B72: =IF(Instructions!$C$2="BST",A72,0) -> 0 | C72: 2018-01-16T22:20:00 | D72: 2018-01-16 | F72: 1 | G72: =IF(H72="","",TEXT(F72*29,"mmm")) ->  | H72: =IF(I72=I71,"",DAY(K72)) ->  | I72: 2 | J72: =IF(I72=I71,"",TEXT(I72+2,"ddd")) ->  | K72: 41654.93056 | L72: 5.23 | M72: HW | N72: 0.6434782609 | O72: 22:20:00 | P72: 1 | Q72: 18:00:00 | R72: 0.7222222222 | S72: 41654.94502 | T72: 7.029565217 | U72: 41655.011 | V72: 41654.94753 | W72: 6.765217391 | X72: 41654.88889 | Y72: 41654.91821 | Z72: 5.172173913 | AA72: 41654.90779 | AB72: 41654.90972 | AC72: 4.772173913 | AD72: Opn | AE72: 41654.79514 | AF72: 41654.9076 | AG72: 4.207826087 | AH72: 41654.88233 | AI72: 4.543478261 | AJ72: 41654.94599 | AK72: 6.929565217 | AL72: 41654.94695 | AM72: 6.893913043 | AN72: 41654.94252 | AO72: 6.665217391 | AP72: 41654.94541 | AQ72: 6.065217391 | AR72: 41654.92014 | AS72: 41654.94097 | AT72: 41654.90316 | AU72: 4.772173913 | AV72: 41654.90316 | AW72: 4.572173913 | AX72: 41654.88137 | AY72: 4.336521739 | AZ72: 41654.87789 | BA72: 4.172173913 | BB72: 41654.87442 | BC72: 4.107826087 | BD72: 41654.82948 | BE72: 3.972173913 | BF72: 41654.92014 | BH72: 41654.97222 | BI72: 41654.96181
A73: 0 | B73: =IF(Instructions!$C$2="BST",A73,0) -> 0 | C73: 2018-01-17T04:21:00 | D73: 2018-01-17 | E73: =IF(D73=D72,IF(J72="","",J72),D73) -> 2018-01-17 | F73: 1 | G73: Jan | H73: 17 | I73: 3 | J73: Wed | K73: 41655.18125 | L73: 1.31 | M73: LW | N73: 0.5419847328 | O73: 04:21:00 | P73: 05:00:00 | Q73: -0.04166666667 | R73: 0.8916666667 | S73: 41655.21794 | T73: 1.578625954 | U73: 41655.28391 | V73: 41655.19008 | W73: 1.432824427 | X73: 41655.13958 | Y73: 41655.19983 | Z73: 1.349618321 | AA73: 41655.15226 | AB73: 41655.19016 | AC73: 1.195419847 | AD73: Cls | AE73: 41655.02431 | AF73: 41655.16539 | AG73: 1.149618321 | AH73: 41655.16117 | AI73: 1.249618321 | AJ73: 41655.21484 | AK73: 1.632824427 | AL73: 41655.21484 | AM73: 1.632824427 | AN73: 41655.2048 | AO73: 1.632824427 | AP73: 41655.20865 | AQ73: 1.487022901 | AR73: 41655.17083 | AS73: 41655.19514 | AT73: 41655.17083 | AU73: 1.349618321 | AV73: 41655.17703 | AW73: 1.295419847 | AX73: 41655.16117 | AY73: 1.149618321 | AZ73: 41655.1577 | BA73: 1.095419847 | BB73: 41655.15385 | BC73: 1.195419847 | BD73: 41655.10871 | BE73: 1.01221374 | BF73: 41655.20556 | BH73: 41655.22292 | BI73: 41655.2125
A74: 0 | B74: =IF(Instructions!$C$2="BST",A74,0) -> 0 | C74: 2018-01-17T10:34:00 | D74: 2018-01-17 | E74: Wed | F74: 1 | I74: 3 | K74: 41655.44028 | L74: 5.55 | M74: HW | N74: =IF(M74="HW",(L74-K$2)/(K$1-K$2),(L74-K$3)/(K$4-K$3)) -> 0.9217391304 | O74: 10:34:00 | P74: =IF(M74="HW",IF(AND(O74>=L$5,O74<L$6),L$5,IF(AND(O74>=L$6,O74<M$5),M$5,IF(AND(O74>=M$5,O74<M$6),M$5,IF(O74>=M$6,L$5+1,L$5)))),IF(AND(O74>=L$7,O74<L$8),L$7,IF(AND(O74>=L$8,O74<M$7),M$7,IF(AND(O74>=M$7,O74<M$8),M$7,IF(O74>=M$8,L$7+1,L$7))))) -> 12:00:00 | Q74: =IF(M74="HW",IF(AND(O74>=L$5,O74<L$6),L$6,IF(AND(O74>=L$6,O74<M$5),L$6,IF(AND(O74>=M$5,O74<M$6),M$6,IF(O74>=M$6,M$6,M$6-1)))),IF(AND(O74>=L$7,O74<L$8),L$8,IF(AND(O74>=L$8,O74<M$7),L$8,IF(AND(O74>=M$7,O74<M$8),M$8,IF(O74>=M$8,M$8,M$8-1))))) -> 06:00:00 | R74: 0.7611111111 | S74: 41655.45515 | T74: 7.474782609 | U74: 41655.52112 | V74: 41655.45779 | W74: 7.182608696 | X74: 41655.39861 | Y74: 41655.4282 | Z74: =IF($M74="HW",Y$2+(Y$1-Y$2)*$N74,Y$3+(Y$4-Y$3)*$N74) -> 5.506086957 | AA74: 41655.41779 | AB74: 41655.41944 | AC74: =IF($M74="HW",AB$2+(AB$1-AB$2)*$N74,AB$3+(AB$4-AB$3)*$N74) -> 5.106086957 | AD74: Opn | AE74: 41655.30486 | AF74: 41655.41665 | AG74: =IF($M74="HW",AF$2+(AF$1-AF$2)*$N74,AF$3+(AF$4-AF$3)*$N74) -> 4.513913043 | AH74: 41655.39151 | AI74: =IF($M74="HW",AH$2+(AH$1-AH$2)*$N74,AH$3+(AH$4-AH$3)*$N74) -> 4.82173913 | AJ74: 41655.45598 | AK74: =IF($M74="HW",AJ$2+(AJ$1-AJ$2)*$N74,AJ$3+(AJ$4-AJ$3)*$N74) -> 7.374782609 | AL74: 41655.45681 | AM74: =IF($M74="HW",AL$2+(AL$1-AL$2)*$N74,AL$3+(AL$4-AL$3)*$N74) -> 7.366956522 | AN74: 41655.45251 | AO74: =IF($M74="HW",AN$2+(AN$1-AN$2)*$N74,AN$3+(AN$4-AN$3)*$N74) -> 7.082608696 | AP74: 41655.455 | AQ74: =IF($M74="HW",AP$2+(AP$1-AP$2)*$N74,AP$3+(AP$4-AP$3)*$N74) -> 6.482608696 | AR74: 41655.42986 | AS74: 41655.45069 | AT74: 41655.41235 | AU74: =IF($M74="HW",AT$2+(AT$1-AT$2)*$N74,AT$3+(AT$4-AT$3)*$N74) -> 5.106086957 | AV74: 41655.41235 | AW74: =IF($M74="HW",AV$2+(AV$1-AV$2)*$N74,AV$3+(AV$4-AV$3)*$N74) -> 4.906086957 | AX74: 41655.39068 | AY74: =IF($M74="HW",AX$2+(AX$1-AX$2)*$N74,AX$3+(AX$4-AX$3)*$N74) -> 4.69826087 | AZ74: 41655.38721 | BA74: =IF($M74="HW",AZ$2+(AZ$1-AZ$2)*$N74,AZ$3+(AZ$4-AZ$3)*$N74) -> 4.506086957 | BB74: 41655.38374 | BC74: =IF($M74="HW",BB$2+(BB$1-BB$2)*$N74,BB$3+(BB$4-BB$3)*$N74) -> 4.413913043 | BD74: 41655.33974 | BE74: =IF($M74="HW",BD$2+(BD$1-BD$2)*$N74,BD$3+(BD$4-BD$3)*$N74) -> 4.306086957 | BF74: 41655.42986 | BH74: 41655.48194 | BI74: 41655.47153
A75: 0 | B75: =IF(Instructions!$C$2="BST",A75,0) -> 0 | C75: 2018-01-17T16:42:00 | D75: 2018-01-17 | E75: =IF(D75=D74,IF(J74="","",J74),D75) ->  | F75: =MONTH(D75) -> 1 | G75: =IF(H75="","",TEXT(F75*29,"mmm")) ->  | H75: =IF(I75=I74,"",DAY(K75)) ->  | I75: 3 | J75: =IF(I75=I74,"",TEXT(I75+2,"ddd")) ->  | K75: =C75+B75/24 -> 41655.69583 | L75: 1.23 | M75: LW | N75: 0.6030534351 | O75: =C75-INT(C75) -> 16:42:00 | P75: 17:00:00 | Q75: 11:00:00 | R75: =ABS((O75-Q75)/(P75-Q75)) -> 0.95 | S75: 41655.73333 | T75: =IF($M75="HW",S$2+(S$1-S$2)*$N75,S$3+(S$4-S$3)*$N75) -> 1.47480916 | U75: 41655.79931 | V75: 41655.70365 | W75: =IF($M75="HW",V$2+(V$1-V$2)*$N75,V$3+(V$4-V$3)*$N75) -> 1.335114504 | X75: 41655.65417 | Y75: 41655.71562 | Z75: 1.276335878 | AA75: 41655.66563 | AB75: =IF($M75="HW",$K75+AB$6+(AB$5-AB$6)*$R75,$K75+AB$8+(AB$7-AB$8)*$R75) -> 41655.70556 | AC75: 1.116030534 | AD75: =IF($M75="HW","Opn","Cls") -> Cls | AE75: 41655.53403 | AF75: =IF($M75="HW",$K75+AF$6+(AF$5-AF$6)*$R75,$K75+AF$8+(AF$7-AF$8)*$R75) -> 41655.67917 | AG75: 1.076335878 | AH75: =IF($M75="HW",$K75+AH$6+(AH$5-AH$6)*$R75,$K75+AH$8+(AH$7-AH$8)*$R75) -> 41655.67535 | AI75: 1.176335878 | AJ75: =IF($M75="HW",$K75+AJ$6+(AJ$5-AJ$6)*$R75,$K75+AJ$8+(AJ$7-AJ$8)*$R75) -> 41655.73003 | AK75: 1.535114504 | AL75: =IF($M75="HW",$K75+AL$6+(AL$5-AL$6)*$R75,$K75+AL$8+(AL$7-AL$8)*$R75) -> 41655.73003 | AM75: 1.535114504 | AN75: =IF($M75="HW",$K75+AN$6+(AN$5-AN$6)*$R75,$K75+AN$8+(AN$7-AN$8)*$R75) -> 41655.71979 | AO75: 1.535114504 | AP75: =IF($M75="HW",$K75+AP$6+(AP$5-AP$6)*$R75,$K75+AP$8+(AP$7-AP$8)*$R75) -> 41655.72344 | AQ75: 1.395419847 | AR75: 41655.68542 | AS75: 41655.70972 | AT75: =IF($M75="HW",$K75+AT$6+(AT$5-AT$6)*$R75,$K75+AT$8+(AT$7-AT$8)*$R75) -> 41655.68542 | AU75: 1.276335878 | AV75: =IF($M75="HW",$K75+AV$6+(AV$5-AV$6)*$R75,$K75+AV$8+(AV$7-AV$8)*$R75) -> 41655.69201 | AW75: 1.216030534 | AX75: =IF($M75="HW",$K75+AX$6+(AX$5-AX$6)*$R75,$K75+AX$8+(AX$7-AX$8)*$R75) -> 41655.67535 | AY75: 1.076335878 | AZ75: =IF($M75="HW",$K75+AZ$6+(AZ$5-AZ$6)*$R75,$K75+AZ$8+(AZ$7-AZ$8)*$R75) -> 41655.67188 | BA75: 1.016030534 | BB75: =IF($M75="HW",$K75+BB$6+(BB$5-BB$6)*$R75,$K75+BB$8+(BB$7-BB$8)*$R75) -> 41655.66823 | BC75: 1.116030534 | BD75: =IF($M75="HW",$K75+BD$6+(BD$5-BD$6)*$R75,$K75+BD$8+(BD$7-BD$8)*$R75) -> 41655.62309 | BE75: 0.9572519084 | BF75: 41655.72014 | BH75: 41655.7375 | BI75: 41655.72708
A76: 0 | B76: =IF(Instructions!$C$2="BST",A76,0) -> 0 | C76: 2018-01-17T22:53:00 | D76: 2018-01-17 | F76: 1 | G76: =IF(H76="","",TEXT(F76*29,"mmm")) ->  | H76: =IF(I76=I75,"",DAY(K76)) ->  | I76: 3 | J76: =IF(I76=I75,"",TEXT(I76+2,"ddd")) ->  | K76: 41655.95347 | L76: 5.29 | M76: HW | N76: 0.6956521739 | O76: 22:53:00 | P76: 1 | Q76: 18:00:00 | R76: 0.8138888889 | S76: 41655.96889 | T76: 7.113043478 | U76: 41656.03487 | V76: 41655.97172 | W76: 6.843478261 | X76: 41655.91181 | Y76: 41655.94176 | Z76: 5.234782609 | AA76: =IF($M76="HW",$K76+AA$6+(AA$5-AA$6)*$R76,$K76+AA$8+(AA$7-AA$8)*$R76) -> 41655.93135 | AB76: 41655.93264 | AC76: 4.834782609 | AD76: Opn | AE76: =IF($M76="HW",$AB76-AD$8,$AB75+AD$8) -> 41655.81806 | AF76: 41655.92893 | AG76: 4.265217391 | AH76: 41655.90397 | AI76: 4.595652174 | AJ76: 41655.96954 | AK76: 7.013043478 | AL76: 41655.97019 | AM76: 6.982608696 | AN76: 41655.96607 | AO76: 6.743478261 | AP76: 41655.96801 | AQ76: 6.143478261 | AR76: 41655.94306 | AS76: 41655.96389 | AT76: 41655.92481 | AU76: 4.834782609 | AV76: 41655.92481 | AW76: 4.634782609 | AX76: 41655.90333 | AY76: 4.404347826 | AZ76: 41655.89986 | BA76: 4.234782609 | BB76: 41655.89638 | BC76: 4.165217391 | BD76: 41655.85367 | BE76: 4.034782609 | BF76: 41655.94306 | BH76: 41655.99514 | BI76: 41655.98472
A77: 0 | B77: =IF(Instructions!$C$2="BST",A77,0) -> 0 | C77: 2018-01-18T04:54:00 | D77: =DATE(YEAR(K77),MONTH(K77),DAY(K77)) -> 2018-01-18 | E77: =IF(D77=D76,IF(J76="","",J76),D77) -> 2018-01-18 | F77: 1 | G77: Jan | H77: 18 | I77: 4 | J77: Thu | K77: 41656.20417 | L77: 1.25 | M77: LW | N77: 0.5877862595 | O77: 04:54:00 | P77: 05:00:00 | Q77: -0.04166666667 | R77: 0.9833333333 | S77: =IF($M77="HW",$K77+S$6+(S$5-S$6)*$R77,$K77+S$8+(S$7-S$8)*$R77) -> 41656.24213 | T77: 1.500763359 | U77: 41656.3081 | V77: 41656.2114 | W77: 1.359541985 | X77: =IF($M77="HW",$K77+X$6+(X$5-X$6)*$R77,$K77+X$8+(X$7-X$8)*$R77) -> 41656.1625 | Y77: 41656.22465 | Z77: 1.294656489 | AA77: 41656.17326 | AB77: 41656.21435 | AC77: 1.135877863 | AD77: Cls | AE77: 41656.04722 | AF77: 41656.18704 | AG77: 1.094656489 | AH77: 41656.18345 | AI77: 1.194656489 | AJ77: 41656.23872 | AK77: 1.559541985 | AL77: 41656.23872 | AM77: 1.559541985 | AN77: 41656.22836 | AO77: 1.559541985 | AP77: 41656.23189 | AQ77: 1.418320611 | AR77: =IF($M77="HW",$K77+AR$6+(AR$5-AR$6)*$R77,$K77+AR$8+(AR$7-AR$8)*$R77) -> 41656.19375 | AS77: 41656.21806 | AT77: 41656.19375 | AU77: 1.294656489 | AV77: 41656.20058 | AW77: 1.235877863 | AX77: 41656.18345 | AY77: 1.094656489 | AZ77: 41656.17998 | BA77: 1.035877863 | BB77: 41656.17645 | BC77: 1.135877863 | BD77: 41656.13131 | BE77: 0.9709923664 | BF77: =IF($M77="HW",$K77+BF$6+(BF$5-BF$6)*$R77,$K77+BF$8+(BF$7-BF$8)*$R77) -> 41656.22847 | BH77: 41656.24583 | BI77: 41656.23542
A78: 0 | B78: =IF(Instructions!$C$2="BST",A78,0) -> 0 | C78: 2018-01-18T11:07:00 | D78: 2018-01-18 | E78: Thu | F78: 1 | I78: 4 | K78: 41656.46319 | L78: 5.62 | M78: HW | N78: 0.9826086957 | O78: 11:07:00 | P78: 12:00:00 | Q78: 06:00:00 | R78: 0.8527777778 | S78: 41656.47902 | T78: 7.572173913 | U78: 41656.54499 | V78: 41656.48198 | W78: 7.273913043 | X78: 41656.42153 | Y78: 41656.45176 | Z78: 5.579130435 | AA78: 41656.44134 | AB78: 41656.44236 | AC78: 5.179130435 | AD78: Opn | AE78: 41656.32778 | AF78: 41656.43797 | AG78: 4.580869565 | AH78: 41656.41316 | AI78: 4.882608696 | AJ78: 41656.47953 | AK78: 7.472173913 | AL78: 41656.48004 | AM78: 7.470434783 | AN78: 41656.47606 | AO78: 7.173913043 | AP78: 41656.47759 | AQ78: 6.573913043 | AR78: 41656.45278 | AS78: 41656.47361 | AT78: 41656.43399 | AU78: 5.179130435 | AV78: 41656.43399 | AW78: 4.979130435 | AX78: 41656.41264 | AY78: 4.777391304 | AZ78: 41656.40917 | BA78: 4.579130435 | BB78: 41656.4057 | BC78: 4.480869565 | BD78: 41656.36393 | BE78: 4.379130435 | BF78: 41656.45278 | BH78: 41656.50486 | BI78: 41656.49444
A79: 0 | B79: =IF(Instructions!$C$2="BST",A79,0) -> 0 | C79: 2018-01-18T17:15:00 | D79: 2018-01-18 | F79: 1 | G79: =IF(H79="","",TEXT(F79*29,"mmm")) ->  | H79: =IF(I79=I78,"",DAY(K79)) ->  | I79: 4 | J79: =IF(I79=I78,"",TEXT(I79+2,"ddd")) ->  | K79: 41656.71875 | L79: 1.16 | M79: LW | N79: 0.6564885496 | O79: 17:15:00 | P79: 17:00:00 | Q79: 23:00:00 | R79: 0.9583333333 | S79: 41656.75637 | T79: 1.383969466 | U79: 41656.82234 | V79: 41656.72642 | W79: 1.249618321 | X79: 41656.67708 | Y79: 41656.73872 | Z79: 1.21221374 | AA79: 41656.68837 | AB79: 41656.72859 | AC79: 1.046564885 | AD79: Cls | AE79: 41656.55694 | AF79: 41656.70197 | AG79: 1.01221374 | AH79: 41656.69821 | AI79: 1.11221374 | AJ79: 41656.75304 | AK79: 1.449618321 | AL79: 41656.75304 | AM79: 1.449618321 | AN79: 41656.74277 | AO79: 1.449618321 | AP79: 41656.74638 | AQ79: 1.315267176 | AR79: 41656.70833 | AS79: 41656.73264 | AT79: 41656.70833 | AU79: 1.21221374 | AV79: 41656.71499 | AW79: 1.146564885 | AX79: 41656.69821 | AY79: 1.01221374 | AZ79: 41656.69473 | BA79: 0.9465648855 | BB79: 41656.69112 | BC79: 1.046564885 | BD79: 41656.64598 | BE79: 0.9091603053 | BF79: 41656.74306 | BH79: 41656.76042 | BI79: 41656.75
A80: 0 | B80: =IF(Instructions!$C$2="BST",A80,0) -> 0 | C80: 2018-01-18T23:27:00 | D80: 2018-01-18 | F80: 1 | G80: =IF(H80="","",TEXT(F80*29,"mmm")) ->  | H80: =IF(I80=I79,"",DAY(K80)) ->  | I80: 4 | J80: =IF(I80=I79,"",TEXT(I80+2,"ddd")) ->  | K80: 41656.97708 | L80: 5.3 | M80: HW | N80: 0.7043478261 | O80: 23:27:00 | P80: 1 | Q80: 18:00:00 | R80: 0.9083333333 | S80: 41656.99349 | T80: 7.126956522 | U80: 41657.05946 | V80: 41656.99664 | W80: 6.856521739 | X80: 41656.93542 | Y80: 41656.96603 | Z80: 5.245217391 | AA80: 41656.95561 | AB80: 41656.95625 | AC80: 4.845217391 | AD80: Opn | AE80: 41656.84167 | AF80: 41656.9509 | AG80: 4.274782609 | AH80: 41656.92627 | AI80: 4.604347826 | AJ80: 41656.99381 | AK80: 7.026956522 | AL80: 41656.99413 | AM80: 6.997391304 | AN80: 41656.99034 | AO80: 6.756521739 | AP80: 41656.99129 | AQ80: 6.156521739 | AR80: 41656.96667 | AS80: 41656.9875 | AT80: 41656.94711 | AU80: 4.845217391 | AV80: 41656.94711 | AW80: 4.645217391 | AX80: 41656.92595 | AY80: 4.415652174 | AZ80: 41656.92248 | BA80: 4.245217391 | BB80: 41656.91901 | BC80: 4.174782609 | BD80: 41656.87859 | BE80: 4.045217391 | BF80: 41656.96667 | BH80: 41657.01875 | BI80: 41657.00833
A81: 0 | B81: =IF(Instructions!$C$2="BST",A81,0) -> 0 | C81: 2018-01-19T05:27:00 | D81: 2018-01-19 | E81: =IF(D81=D80,IF(J80="","",J80),D81) -> 2018-01-19 | F81: 1 | G81: Jan | H81: 19 | I81: 5 | J81: Fri | K81: 41657.22708 | L81: 1.24 | M81: LW | N81: 0.5954198473 | O81: 05:27:00 | P81: 05:00:00 | Q81: 11:00:00 | R81: 0.925 | S81: 41657.26424 | T81: 1.48778626 | U81: 41657.33021 | V81: 41657.23533 | W81: 1.347328244 | X81: 41657.18542 | Y81: 41657.24635 | Z81: 1.285496183 | AA81: 41657.1974 | AB81: 41657.23646 | AC81: 1.125954198 | AD81: Cls | AE81: 41657.07083 | AF81: 41657.21076 | AG81: 1.085496183 | AH81: 41657.20677 | AI81: 1.185496183 | AJ81: 41657.26102 | AK81: 1.547328244 | AL81: 41657.26102 | AM81: 1.547328244 | AN81: 41657.25087 | AO81: 1.547328244 | AP81: 41657.2546 | AQ81: 1.406870229 | AR81: 41657.21667 | AS81: 41657.24097 | AT81: 41657.21667 | AU81: 1.285496183 | AV81: 41657.22309 | AW81: 1.225954198 | AX81: 41657.20677 | AY81: 1.085496183 | AZ81: 41657.2033 | BA81: 1.025954198 | BB81: 41657.19957 | BC81: 1.125954198 | BD81: 41657.15443 | BE81: 0.9641221374 | BF81: 41657.25139 | BH81: 41657.26875 | BI81: 41657.25833
A82: 0 | B82: =IF(Instructions!$C$2="BST",A82,0) -> 0 | C82: 2018-01-19T11:40:00 | D82: 2018-01-19 | E82: Fri | F82: 1 | I82: 5 | K82: 41657.48611 | L82: 5.62 | M82: HW | N82: 0.9826086957 | O82: 11:40:00 | P82: 12:00:00 | Q82: 06:00:00 | R82: 0.9444444444 | S82: 41657.50289 | T82: 7.572173913 | U82: 41657.56887 | V82: 41657.50617 | W82: 7.273913043 | X82: 41657.44444 | Y82: 41657.47531 | Z82: 5.579130435 | AA82: 41657.46489 | AB82: 41657.46528 | AC82: 5.179130435 | AD82: Opn | AE82: 41657.35069 | AF82: 41657.4593 | AG82: 4.580869565 | AH82: 41657.4348 | AI82: 4.882608696 | AJ82: 41657.50309 | AK82: 7.472173913 | AL82: 41657.50328 | AM82: 7.470434783 | AN82: 41657.49961 | AO82: 7.173913043 | AP82: 41657.50019 | AQ82: 6.573913043 | AR82: 41657.47569 | AS82: 41657.49653 | AT82: 41657.45563 | AU82: 5.179130435 | AV82: 41657.45563 | AW82: 4.979130435 | AX82: 41657.43461 | AY82: 4.777391304 | AZ82: 41657.43113 | BA82: 4.579130435 | BB82: 41657.42766 | BC82: 4.480869565 | BD82: 41657.38812 | BE82: 4.379130435 | BF82: 41657.47569 | BH82: 41657.52778 | BI82: 41657.51736
A83: 0 | B83: =IF(Instructions!$C$2="BST",A83,0) -> 0 | C83: 2018-01-19T17:49:00 | D83: 2018-01-19 | E83: =IF(D83=D82,IF(J82="","",J82),D83) ->  | F83: 1 | G83: =IF(H83="","",TEXT(F83*29,"mmm")) ->  | H83: =IF(I83=I82,"",DAY(K83)) ->  | I83: 5 | J83: =IF(I83=I82,"",TEXT(I83+2,"ddd")) ->  | K83: 41657.74236 | L83: 1.14 | M83: LW | N83: 0.6717557252 | O83: 17:49:00 | P83: 17:00:00 | Q83: 23:00:00 | R83: 0.8638888889 | S83: 41657.77867 | T83: 1.358015267 | U83: 41657.84464 | V83: 41657.75167 | W83: 1.22519084 | X83: 41657.70069 | Y83: 41657.76036 | Z83: 1.19389313 | AA83: 41657.71395 | AB83: 41657.75089 | AC83: 1.026717557 | AD83: Cls | AE83: 41657.57986 | AF83: 41657.72689 | AG83: 0.9938931298 | AH83: 41657.72247 | AI83: 1.09389313 | AJ83: 41657.77567 | AK83: 1.42519084 | AL83: 41657.77567 | AM83: 1.42519084 | AN83: 41657.76572 | AO83: 1.42519084 | AP83: 41657.76967 | AQ83: 1.292366412 | AR83: 41657.73194 | AS83: 41657.75625 | AT83: 41657.73194 | AU83: 1.19389313 | AV83: 41657.73794 | AW83: 1.126717557 | AX83: 41657.72247 | AY83: 0.9938931298 | AZ83: 41657.719 | BA83: 0.9267175573 | BB83: 41657.71506 | BC83: 1.026717557 | BD83: 41657.66992 | BE83: 0.8954198473 | BF83: 41657.76667 | BH83: 41657.78403 | BI83: 41657.77361
A84: 0 | B84: =IF(Instructions!$C$2="BST",A84,0) -> 0 | C84: 2018-01-20 | D84: 2018-01-20 | E84: 2018-01-20 | F84: 1 | G84: =IF(H84="","",TEXT(F84*29,"mmm")) -> Jan | H84: =IF(I84=I83,"",DAY(K84)) -> 20 | I84: 6 | J84: =IF(I84=I83,"",TEXT(I84+2,"ddd")) -> Sat | K84: 41658 | L84: 5.27 | M84: HW | N84: 0.6782608696 | O84: 00:00:00 | P84: 00:00:00 | Q84: 06:00:00 | R84: 1 | S84: 41658.01736 | T84: 7.085217391 | U84: 41658.08333 | V84: 41658.02083 | W84: 6.817391304 | X84: 41657.95833 | Y84: 41657.98958 | Z84: 5.213913043 | AA84: 41657.97917 | AB84: 41657.97917 | AC84: 4.813913043 | AD84: Opn | AE84: 41657.86458 | AF84: 41657.97222 | AG84: 4.246086957 | AH84: 41657.94792 | AI84: 4.57826087 | AJ84: 41658.01736 | AK84: 6.985217391 | AL84: 41658.01736 | AM84: 6.953043478 | AN84: 41658.01389 | AO84: 6.717391304 | AP84: 41658.01389 | AQ84: 6.117391304 | AR84: 41657.98958 | AS84: 41658.01042 | AT84: 41657.96875 | AU84: 4.813913043 | AV84: 41657.96875 | AW84: 4.613913043 | AX84: 41657.94792 | AY84: 4.38173913 | AZ84: 41657.94444 | BA84: 4.213913043 | BB84: 41657.94097 | BC84: 4.146086957 | BD84: 41657.90278 | BE84: 4.013913043 | BF84: 41657.98958 | BH84: 41658.04167 | BI84: 41658.03125
A85: 0 | B85: =IF(Instructions!$C$2="BST",A85,0) -> 0 | C85: 2018-01-20T06:01:00 | D85: 2018-01-20 | E85: Sat | F85: 1 | I85: 6 | K85: 41658.25069 | L85: 1.28 | M85: LW | N85: 0.5648854962 | O85: 06:01:00 | P85: 05:00:00 | Q85: 11:00:00 | R85: 0.8305555555 | S85: 41658.28654 | T85: 1.539694656 | U85: 41658.35251 | V85: 41658.26058 | W85: 1.396183206 | X85: 41658.20903 | Y85: 41658.268 | Z85: 1.322137405 | AA85: 41658.22297 | AB85: 41658.25876 | AC85: 1.165648855 | AD85: Cls | AE85: 41658.09375 | AF85: 41658.23569 | AG85: 1.122137405 | AH85: 41658.23104 | AI85: 1.222137405 | AJ85: 41658.28365 | AK85: 1.596183206 | AL85: 41658.28365 | AM85: 1.596183206 | AN85: 41658.27382 | AO85: 1.596183206 | AP85: 41658.27788 | AQ85: 1.452671756 | AR85: 41658.24028 | AS85: 41658.26458 | AT85: 41658.24028 | AU85: 1.322137405 | AV85: 41658.24605 | AW85: 1.265648855 | AX85: 41658.23104 | AY85: 1.122137405 | AZ85: 41658.22757 | BA85: 1.065648855 | BB85: 41658.22351 | BC85: 1.165648855 | BD85: 41658.17837 | BE85: 0.9916030534 | BF85: 41658.275 | BH85: 41658.29236 | BI85: 41658.28194
A86: 0 | B86: =IF(Instructions!$C$2="BST",A86,0) -> 0 | C86: 2018-01-20T12:14:00 | D86: 2018-01-20 | F86: 1 | I86: 6 | K86: 41658.50972 | L86: 5.58 | M86: HW | N86: 0.947826087 | O86: 12:14:00 | P86: 12:00:00 | Q86: 18:00:00 | R86: 0.9611111111 | S86: 41658.52668 | T86: 7.516521739 | U86: 41658.59265 | V86: 41658.53002 | W86: 7.22173913 | X86: 41658.46806 | Y86: 41658.49904 | Z86: 5.537391304 | AA86: 41658.48862 | AB86: 41658.48889 | AC86: 5.137391304 | AD86: Opn | AE86: 41658.37431 | AF86: 41658.48262 | AG86: 4.542608696 | AH86: 41658.45818 | AI86: 4.847826087 | AJ86: 41658.52681 | AK86: 7.416521739 | AL86: 41658.52695 | AM86: 7.411304348 | AN86: 41658.52334 | AO86: 7.12173913 | AP86: 41658.52375 | AQ86: 6.52173913 | AR86: 41658.49931 | AS86: 41658.52014 | AT86: 41658.47901 | AU86: 5.137391304 | AV86: 41658.47901 | AW86: 4.937391304 | AX86: 41658.45804 | AY86: 4.732173913 | AZ86: 41658.45457 | BA86: 4.537391304 | BB86: 41658.4511 | BC86: 4.442608696 | BD86: 41658.41196 | BE86: 4.337391304 | BF86: 41658.49931 | BH86: 41658.55139 | BI86: 41658.54097
A87: 0 | B87: =IF(Instructions!$C$2="BST",A87,0) -> 0 | C87: 2018-01-20T18:24:00 | D87: 2018-01-20 | F87: 1 | G87: =IF(H87="","",TEXT(F87*29,"mmm")) ->  | H87: =IF(I87=I86,"",DAY(K87)) ->  | I87: 6 | J87: =IF(I87=I86,"",TEXT(I87+2,"ddd")) ->  | K87: 41658.76667 | L87: 1.16 | M87: LW | N87: 0.6564885496 | O87: 18:24:00 | P87: 17:00:00 | Q87: 23:00:00 | R87: 0.7666666667 | S87: 41658.80162 | T87: 1.383969466 | U87: 41658.86759 | V87: 41658.77766 | W87: 1.249618321 | X87: 41658.725 | Y87: 41658.78264 | Z87: 1.21221374 | AA87: 41658.74028 | AB87: 41658.77384 | AC87: 1.046564885 | AD87: Cls | AE87: 41658.60347 | AF87: 41658.75255 | AG87: 1.01221374 | AH87: 41658.74745 | AI87: 1.11221374 | AJ87: 41658.79896 | AK87: 1.449618321 | AL87: 41658.79896 | AM87: 1.449618321 | AN87: 41658.78935 | AO87: 1.449618321 | AP87: 41658.79363 | AQ87: 1.315267176 | AR87: 41658.75625 | AS87: 41658.78056 | AT87: 41658.75625 | AU87: 1.21221374 | AV87: 41658.76157 | AW87: 1.146564885 | AX87: 41658.74745 | AY87: 1.01221374 | AZ87: 41658.74398 | BA87: 0.9465648855 | BB87: 41658.7397 | BC87: 1.046564885 | BD87: 41658.69456 | BE87: 0.9091603053 | BF87: 41658.79097 | BH87: 41658.80833 | BI87: 41658.79792
A88: 0 | B88: =IF(Instructions!$C$2="BST",A88,0) -> 0 | C88: 2018-01-21T00:35:00 | D88: 2018-01-21 | E88: 2018-01-21 | F88: 1 | G88: =IF(H88="","",TEXT(F88*29,"mmm")) -> Jan | H88: =IF(I88=I87,"",DAY(K88)) -> 21 | I88: 7 | J88: =IF(I88=I87,"",TEXT(I88+2,"ddd")) -> Sun | K88: 41659.02431 | L88: 5.2 | M88: HW | N88: 0.6173913043 | O88: 00:35:00 | P88: 00:00:00 | Q88: 06:00:00 | R88: 0.9027777778 | S88: 41659.04065 | T88: 6.987826087 | U88: 41659.10663 | V88: 41659.04379 | W88: 6.726086957 | X88: 41658.98264 | Y88: 41659.01321 | Z88: 5.140869565 | AA88: 41659.0028 | AB88: 41659.00347 | AC88: 4.740869565 | AD88: Opn | AE88: 41658.88889 | AF88: 41658.99822 | AG88: 4.179130435 | AH88: 41658.97357 | AI88: 4.517391304 | AJ88: 41659.04099 | AK88: 6.887826087 | AL88: 41659.04133 | AM88: 6.849565217 | AN88: 41659.03752 | AO88: 6.626086957 | AP88: 41659.03853 | AQ88: 6.026086957 | AR88: 41659.01389 | AS88: 41659.03472 | AT88: 41658.99441 | AU88: 4.740869565 | AV88: 41658.99441 | AW88: 4.540869565 | AX88: 41658.97323 | AY88: 4.302608696 | AZ88: 41658.96976 | BA88: 4.140869565 | BB88: 41658.96629 | BC88: 4.079130435 | BD88: 41658.92573 | BE88: 3.940869565 | BF88: 41659.01389 | BH88: 41659.06597 | BI88: 41659.05556
A89: 0 | B89: =IF(Instructions!$C$2="BST",A89,0) -> 0 | C89: 2018-01-21T06:36:00 | D89: 2018-01-21 | E89: =IF(D89=D88,IF(J88="","",J88),D89) -> Sun | F89: 1 | I89: 7 | K89: 41659.275 | L89: 1.35 | M89: LW | N89: 0.5114503817 | O89: 06:36:00 | P89: 05:00:00 | Q89: 11:00:00 | R89: 0.7333333333 | S89: 41659.30949 | T89: 1.630534351 | U89: 41659.37546 | V89: 41659.28657 | W89: 1.481679389 | X89: 41659.23333 | Y89: 41659.29028 | Z89: 1.386259542 | AA89: 41659.24931 | AB89: 41659.28171 | AC89: 1.235114504 | AD89: Cls | AE89: 41659.11806 | AF89: 41659.26134 | AG89: 1.186259542 | AH89: 41659.25602 | AI89: 1.286259542 | AJ89: 41659.30694 | AK89: 1.681679389 | AL89: 41659.30694 | AM89: 1.681679389 | AN89: 41659.29745 | AO89: 1.681679389 | AP89: 41659.30185 | AQ89: 1.532824427 | AR89: 41659.26458 | AS89: 41659.28889 | AT89: 41659.26458 | AU89: 1.386259542 | AV89: 41659.26968 | AW89: 1.335114504 | AX89: 41659.25602 | AY89: 1.186259542 | AZ89: 41659.25255 | BA89: 1.135114504 | BB89: 41659.24815 | BC89: 1.235114504 | BD89: 41659.20301 | BE89: 1.039694656 | BF89: 41659.29931 | BH89: 41659.31667 | BI89: 41659.30625
A90: 0 | B90: =IF(Instructions!$C$2="BST",A90,0) -> 0 | C90: 2018-01-21T12:49:00 | D90: 2018-01-21 | F90: 1 | I90: 7 | K90: 41659.53403 | L90: 5.5 | M90: HW | N90: 0.8782608696 | O90: 12:49:00 | P90: 12:00:00 | Q90: 18:00:00 | R90: 0.8638888889 | S90: 41659.54997 | T90: 7.405217391 | U90: 41659.61594 | V90: 41659.55297 | W90: 7.117391304 | X90: 41659.49236 | Y90: 41659.52267 | Z90: 5.453913043 | AA90: 41659.51225 | AB90: 41659.51319 | AC90: 5.053913043 | AD90: Opn | AE90: 41659.39861 | AF90: 41659.50861 | AG90: 4.466086957 | AH90: 41659.48383 | AI90: 4.77826087 | AJ90: 41659.55044 | AK90: 7.305217391 | AL90: 41659.55092 | AM90: 7.293043478 | AN90: 41659.54697 | AO90: 7.017391304 | AP90: 41659.54839 | AQ90: 6.417391304 | AR90: 41659.52361 | AS90: 41659.54444 | AT90: 41659.50467 | AU90: 5.053913043 | AV90: 41659.50467 | AW90: 4.853913043 | AX90: 41659.48336 | AY90: 4.64173913 | AZ90: 41659.47989 | BA90: 4.453913043 | BB90: 41659.47642 | BC90: 4.366086957 | BD90: 41659.43492 | BE90: 4.253913043 | BF90: 41659.52361 | BH90: 41659.57569 | BI90: 41659.56528
A91: 0 | B91: =IF(Instructions!$C$2="BST",A91,0) -> 0 | C91: 2018-01-21T19:00:00 | D91: 2018-01-21 | E91: =IF(D91=D90,IF(J90="","",J90),D91) ->  | F91: 1 | G91: =IF(H91="","",TEXT(F91*29,"mmm")) ->  | H91: =IF(I91=I90,"",DAY(K91)) ->  | I91: 7 | J91: =IF(I91=I90,"",TEXT(I91+2,"ddd")) ->  | K91: 41659.79167 | L91: 1.21 | M91: LW | N91: 0.6183206107 | O91: 19:00:00 | P91: 17:00:00 | Q91: 23:00:00 | R91: 0.6666666667 | S91: 41659.82523 | T91: 1.448854962 | U91: 41659.8912 | V91: 41659.8044 | W91: 1.310687023 | X91: 41659.75 | Y91: 41659.80556 | Z91: 1.258015267 | AA91: 41659.76736 | AB91: 41659.79745 | AC91: 1.096183206 | AD91: Cls | AE91: 41659.62778 | AF91: 41659.77894 | AG91: 1.058015267 | AH91: 41659.77315 | AI91: 1.158015267 | AJ91: 41659.82292 | AK91: 1.510687023 | AL91: 41659.82292 | AM91: 1.510687023 | AN91: 41659.81366 | AO91: 1.510687023 | AP91: 41659.81829 | AQ91: 1.372519084 | AR91: 41659.78125 | AS91: 41659.80556 | AT91: 41659.78125 | AU91: 1.258015267 | AV91: 41659.78588 | AW91: 1.196183206 | AX91: 41659.77315 | AY91: 1.058015267 | AZ91: 41659.76968 | BA91: 0.9961832061 | BB91: 41659.76505 | BC91: 1.096183206 | BD91: 41659.71991 | BE91: 0.9435114504 | BF91: 41659.81597 | BH91: 41659.83333 | BI91: 41659.82292
A92: 0 | B92: =IF(Instructions!$C$2="BST",A92,0) -> 0 | C92: 2018-01-22T01:11:00 | D92: 2018-01-22 | E92: 2018-01-22 | F92: 1 | G92: =IF(H92="","",TEXT(F92*29,"mmm")) -> Jan | H92: =IF(I92=I91,"",DAY(K92)) -> 22 | I92: 1 | J92: =IF(I92=I91,"",TEXT(I92+2,"ddd")) -> Mon | K92: 41660.04931 | L92: 5.11 | M92: HW | N92: 0.5391304348 | O92: 01:11:00 | P92: 00:00:00 | Q92: 06:00:00 | R92: 0.8027777778 | S92: 41660.06461 | T92: 6.862608696 | U92: 41660.13058 | V92: 41660.0674 | W92: 6.608695652 | X92: 41660.00764 | Y92: 41660.03752 | Z92: 5.046956522 | AA92: 41660.0271 | AB92: 41660.02847 | AC92: 4.646956522 | AD92: Opn | AE92: 41659.91389 | AF92: 41660.02495 | AG92: 4.093043478 | AH92: 41659.99996 | AI92: 4.439130435 | AJ92: 41660.0653 | AK92: 6.762608696 | AL92: 41660.06598 | AM92: 6.716521739 | AN92: 41660.06182 | AO92: 6.508695652 | AP92: 41660.06388 | AQ92: 5.908695652 | AR92: 41660.03889 | AS92: 41660.05972 | AT92: 41660.02079 | AU92: 4.646956522 | AV92: 41660.02079 | AW92: 4.446956522 | AX92: 41659.99928 | AY92: 4.200869565 | AZ92: 41659.9958 | BA92: 4.046956522 | BB92: 41659.99233 | BC92: 3.993043478 | BD92: 41659.94934 | BE92: 3.846956522 | BF92: 41660.03889 | BH92: 41660.09097 | BI92: 41660.08056
A93: 0 | B93: =IF(Instructions!$C$2="BST",A93,0) -> 0 | C93: 2018-01-22T07:14:00 | D93: 2018-01-22 | E93: Mon | F93: 1 | I93: 1 | K93: 41660.30139 | L93: 1.46 | M93: LW | N93: 0.427480916 | O93: 07:14:00 | P93: 05:00:00 | Q93: 11:00:00 | R93: 0.6277777778 | S93: 41660.33441 | T93: 1.773282443 | U93: 41660.40039 | V93: 41660.3148 | W93: 1.616030534 | X93: 41660.25972 | Y93: 41660.31447 | Z93: 1.487022901 | AA93: 41660.27789 | AB93: 41660.30664 | AC93: 1.344274809 | AD93: Cls | AE93: 41660.14306 | AF93: 41660.2892 | AG93: 1.287022901 | AH93: 41660.28314 | AI93: 1.387022901 | AJ93: 41660.33223 | AK93: 1.816030534 | AL93: 41660.33223 | AM93: 1.816030534 | AN93: 41660.32311 | AO93: 1.816030534 | AP93: 41660.32787 | AQ93: 1.658778626 | AR93: 41660.29097 | AS93: 41660.31528 | AT93: 41660.29097 | AU93: 1.487022901 | AV93: 41660.29533 | AW93: 1.444274809 | AX93: 41660.28314 | AY93: 1.287022901 | AZ93: 41660.27967 | BA93: 1.244274809 | BB93: 41660.2749 | BC93: 1.344274809 | BD93: 41660.22976 | BE93: 1.115267176 | BF93: 41660.32569 | BH93: 41660.34306 | BI93: 41660.33264
A94: 0 | B94: =IF(Instructions!$C$2="BST",A94,0) -> 0 | C94: 2018-01-22T13:26:00 | D94: 2018-01-22 | F94: 1 | I94: 1 | K94: 41660.55972 | L94: 5.4 | M94: HW | N94: 0.7913043478 | O94: 13:26:00 | P94: 12:00:00 | Q94: 18:00:00 | R94: 0.7611111111 | S94: =IF($M94="HW",$K94+S$6+(S$5-S$6)*$R94,$K94+S$8+(S$7-S$8)*$R94) -> 41660.57459 | T94: 7.266086957 | U94: 41660.64057 | V94: 41660.57724 | W94: 6.986956522 | X94: =IF($M94="HW",$K94+X$6+(X$5-X$6)*$R94,$K94+X$8+(X$7-X$8)*$R94) -> 41660.51806 | Y94: 41660.54765 | Z94: 5.349565217 | AA94: 41660.53723 | AB94: 41660.53889 | AC94: 4.949565217 | AD94: Opn | AE94: 41660.42431 | AF94: 41660.53609 | AG94: 4.370434783 | AH94: 41660.51096 | AI94: 4.691304348 | AJ94: 41660.57542 | AK94: 7.166086957 | AL94: 41660.57625 | AM94: 7.145217391 | AN94: 41660.57195 | AO94: 6.886956522 | AP94: 41660.57444 | AQ94: 6.286956522 | AR94: =IF($M94="HW",$K94+AR$6+(AR$5-AR$6)*$R94,$K94+AR$8+(AR$7-AR$8)*$R94) -> 41660.54931 | AS94: 41660.57014 | AT94: 41660.53179 | AU94: 4.949565217 | AV94: 41660.53179 | AW94: 4.749565217 | AX94: 41660.51013 | AY94: 4.528695652 | AZ94: 41660.50666 | BA94: 4.349565217 | BB94: 41660.50318 | BC94: 4.270434783 | BD94: 41660.45918 | BE94: 4.149565217 | BF94: =IF($M94="HW",$K94+BF$6+(BF$5-BF$6)*$R94,$K94+BF$8+(BF$7-BF$8)*$R94) -> 41660.54931 | BH94: 41660.60139 | BI94: 41660.59097
A95: 0 | B95: =IF(Instructions!$C$2="BST",A95,0) -> 0 | C95: 2018-01-22T19:40:00 | D95: 2018-01-22 | F95: 1 | G95: =IF(H95="","",TEXT(F95*29,"mmm")) ->  | H95: =IF(I95=I94,"",DAY(K95)) ->  | I95: 1 | J95: =IF(I95=I94,"",TEXT(I95+2,"ddd")) ->  | K95: 41660.81944 | L95: 1.3 | M95: LW | N95: 0.5496183206 | O95: 19:40:00 | P95: 17:00:00 | Q95: 23:00:00 | R95: 0.5555555556 | S95: 41660.85147 | T95: 1.565648855 | U95: 41660.91744 | V95: 41660.8341 | W95: 1.420610687 | X95: 41660.77778 | Y95: 41660.83102 | Z95: 1.340458015 | AA95: 41660.79745 | AB95: 41660.82369 | AC95: 1.185496183 | AD95: Cls | AE95: 41660.65347 | AF95: 41660.80826 | AG95: 1.140458015 | AH95: 41660.8017 | AI95: 1.240458015 | AJ95: 41660.84954 | AK95: 1.620610687 | AL95: 41660.84954 | AM95: 1.620610687 | AN95: 41660.84066 | AO95: 1.620610687 | AP95: 41660.84568 | AQ95: 1.475572519 | AR95: 41660.80903 | AS95: 41660.83333 | AT95: 41660.80903 | AU95: 1.340458015 | AV95: 41660.81289 | AW95: 1.285496183 | AX95: 41660.8017 | AY95: 1.140458015 | AZ95: 41660.79823 | BA95: 1.085496183 | BB95: 41660.79321 | BC95: 1.185496183 | BD95: 41660.74807 | BE95: 1.005343511 | BF95: 41660.84375 | BH95: 41660.86111 | BI95: 41660.85069
A96: 0 | B96: =IF(Instructions!$C$2="BST",A96,0) -> 0 | C96: 2018-01-23T01:52:00 | D96: 2018-01-23 | E96: 2018-01-23 | F96: 1 | G96: =IF(H96="","",TEXT(F96*29,"mmm")) -> Jan | H96: =IF(I96=I95,"",DAY(K96)) -> 23 | I96: 2 | J96: =IF(I96=I95,"",TEXT(I96+2,"ddd")) -> Tue | K96: 41661.07778 | L96: 5 | M96: HW | N96: 0.4434782609 | O96: 01:52:00 | P96: 00:00:00 | Q96: 06:00:00 | R96: 0.6888888889 | S96: 41661.0919 | T96: 6.709565217 | U96: 41661.15787 | V96: 41661.09429 | W96: 6.465217391 | X96: 41661.03611 | Y96: 41661.0652 | Z96: 4.932173913 | AA96: 41661.05478 | AB96: 41661.05694 | AC96: 4.532173913 | AD96: Opn | AE96: 41660.94236 | AF96: 41661.0554 | AG96: 3.987826087 | AH96: 41661.03002 | AI96: 4.343478261 | AJ96: 41661.09298 | AK96: 6.609565217 | AL96: 41661.09406 | AM96: 6.553913043 | AN96: 41661.08951 | AO96: 6.365217391 | AP96: 41661.09275 | AQ96: 5.765217391 | AR96: 41661.06736 | AS96: 41661.08819 | AT96: 41661.05085 | AU96: 4.532173913 | AV96: 41661.05085 | AW96: 4.332173913 | AX96: 41661.02894 | AY96: 4.076521739 | AZ96: 41661.02546 | BA96: 3.932173913 | BB96: 41661.02199 | BC96: 3.887826087 | BD96: 41660.97623 | BE96: 3.732173913 | BF96: 41661.06736 | BH96: 41661.11944 | BI96: 41661.10903
A97: 0 | B97: =IF(Instructions!$C$2="BST",A97,0) -> 0 | C97: 2018-01-23T07:56:00 | D97: 2018-01-23 | E97: =IF(D97=D96,IF(J96="","",J96),D97) -> Tue | F97: 1 | I97: 2 | K97: 41661.33056 | L97: 1.59 | M97: LW | N97: 0.3282442748 | O97: 07:56:00 | P97: 05:00:00 | Q97: 11:00:00 | R97: 0.5111111111 | S97: 41661.36196 | T97: 1.941984733 | U97: 41661.42793 | V97: 41661.34599 | W97: 1.77480916 | X97: 41661.28889 | Y97: 41661.3412 | Z97: 1.60610687 | AA97: 41661.30949 | AB97: 41661.33418 | AC97: 1.473282443 | AD97: Cls | AE97: 41661.17153 | AF97: 41661.31998 | AG97: 1.40610687 | AH97: 41661.31312 | AI97: 1.50610687 | AJ97: 41661.36019 | AK97: 1.97480916 | AL97: 41661.36019 | AM97: 1.97480916 | AN97: 41661.35147 | AO97: 1.97480916 | AP97: 41661.35664 | AQ97: 1.807633588 | AR97: 41661.32014 | AS97: 41661.34444 | AT97: 41661.32014 | AU97: 1.60610687 | AV97: 41661.32369 | AW97: 1.573282443 | AX97: 41661.31312 | AY97: 1.40610687 | AZ97: 41661.30965 | BA97: 1.373282443 | BB97: 41661.30448 | BC97: 1.473282443 | BD97: 41661.25934 | BE97: 1.204580153 | BF97: 41661.35486 | BH97: 41661.37222 | BI97: 41661.36181
A98: 0 | B98: =IF(Instructions!$C$2="BST",A98,0) -> 0 | C98: 2018-01-23T14:09:00 | D98: 2018-01-23 | F98: 1 | I98: 2 | K98: 41661.58958 | L98: 5.26 | M98: HW | N98: 0.6695652174 | O98: 14:09:00 | P98: 12:00:00 | Q98: 18:00:00 | R98: 0.6416666667 | S98: 41661.60321 | T98: 7.071304348 | U98: 41661.66918 | V98: 41661.60544 | W98: 6.804347826 | X98: 41661.54792 | Y98: 41661.57668 | Z98: 5.203478261 | AA98: 41661.56626 | AB98: 41661.56875 | AC98: 4.803478261 | AD98: Opn | AE98: 41661.45417 | AF98: 41661.56803 | AG98: 4.236521739 | AH98: 41661.54248 | AI98: 4.569565217 | AJ98: 41661.60446 | AK98: 6.971304348 | AL98: 41661.6057 | AM98: 6.93826087 | AN98: 41661.60098 | AO98: 6.704347826 | AP98: 41661.60472 | AQ98: 6.104347826 | AR98: 41661.57917 | AS98: 41661.6 | AT98: 41661.56331 | AU98: 4.803478261 | AV98: 41661.56331 | AW98: 4.603478261 | AX98: 41661.54123 | AY98: 4.370434783 | AZ98: 41661.53776 | BA98: 4.203478261 | BB98: 41661.53429 | BC98: 4.136521739 | BD98: 41661.48738 | BE98: 4.003478261 | BF98: 41661.57917 | BH98: 41661.63125 | BI98: 41661.62083
A99: 0 | B99: =IF(Instructions!$C$2="BST",A99,0) -> 0 | C99: 2018-01-23T20:26:00 | D99: 2018-01-23 | E99: =IF(D99=D98,IF(J98="","",J98),D99) ->  | F99: 1 | G99: =IF(H99="","",TEXT(F99*29,"mmm")) ->  | H99: =IF(I99=I98,"",DAY(K99)) ->  | I99: 2 | J99: =IF(I99=I98,"",TEXT(I99+2,"ddd")) ->  | K99: 41661.85139 | L99: 1.42 | M99: LW | N99: 0.4580152672 | O99: 20:26:00 | P99: 17:00:00 | Q99: 23:00:00 | R99: 0.4277777778 | S99: 41661.88164 | T99: 1.721374046 | U99: 41661.94761 | V99: 41661.86827 | W99: 1.567175573 | X99: 41661.80972 | Y99: 41661.8603 | Z99: 1.450381679 | AA99: 41661.83206 | AB99: 41661.85386 | AC99: 1.304580153 | AD99: Cls | AE99: 41661.68333 | AF99: 41661.84198 | AG99: 1.250381679 | AH99: 41661.83453 | AI99: 1.350381679 | AJ99: 41661.88015 | AK99: 1.767175573 | AL99: 41661.88015 | AM99: 1.767175573 | AN99: 41661.87172 | AO99: 1.767175573 | AP99: 41661.87718 | AQ99: 1.612977099 | AR99: 41661.84097 | AS99: 41661.86528 | AT99: 41661.84097 | AU99: 1.450381679 | AV99: 41661.84394 | AW99: 1.404580153 | AX99: 41661.83453 | AY99: 1.250381679 | AZ99: 41661.83106 | BA99: 1.204580153 | BB99: 41661.8256 | BC99: 1.304580153 | BD99: 41661.78046 | BE99: 1.08778626 | BF99: 41661.87569 | BH99: 41661.89306 | BI99: 41661.88264
A100: 0 | B100: =IF(Instructions!$C$2="BST",A100,0) -> 0 | C100: 2018-01-24T02:38:00 | D100: 2018-01-24 | E100: 2018-01-24 | F100: 1 | G100: =IF(H100="","",TEXT(F100*29,"mmm")) -> Jan | H100: =IF(I100=I99,"",DAY(K100)) -> 24 | I100: 3 | J100: =IF(I100=I99,"",TEXT(I100+2,"ddd")) -> Wed | K100: 41662.10972 | L100: 4.86 | M100: HW | N100: 0.3217391304 | O100: 02:38:00 | P100: 00:00:00 | Q100: 06:00:00 | R100: 0.5611111111 | S100: 41662.12251 | T100: 6.514782609 | U100: 41662.18848 | V100: 41662.12446 | W100: 6.282608696 | X100: 41662.06806 | Y100: 41662.09626 | Z100: 4.786086957 | AA100: 41662.08584 | AB100: 41662.08889 | AC100: 4.386086957 | AD100: Opn | AE100: 41661.97431 | AF100: 41662.08956 | AG100: 3.853913043 | AH100: 41662.06373 | AI100: 4.22173913 | AJ100: 41662.12404 | AK100: 6.414782609 | AL100: 41662.12556 | AM100: 6.346956522 | AN100: 41662.12056 | AO100: 6.182608696 | AP100: 41662.12514 | AQ100: 5.582608696 | AR100: 41662.09931 | AS100: 41662.12014 | AT100: 41662.08457 | AU100: 4.386086957 | AV100: 41662.08457 | AW100: 4.186086957 | AX100: 41662.06221 | AY100: 3.91826087 | AZ100: 41662.05874 | BA100: 3.786086957 | BB100: 41662.05527 | BC100: 3.753913043 | BD100: 41662.0064 | BE100: 3.586086957 | BF100: 41662.09931 | BH100: 41662.15139 | BI100: 41662.14097
A101: 0 | B101: =IF(Instructions!$C$2="BST",A101,0) -> 0 | C101: 2018-01-24T08:45:00 | D101: 2018-01-24 | E101: Wed | F101: 1 | I101: 3 | K101: 41662.36458 | L101: 1.75 | M101: LW | N101: 0.2061068702 | O101: 08:45:00 | P101: 05:00:00 | Q101: 11:00:00 | R101: 0.375 | S101: 41662.3941 | T101: 2.149618321 | U101: 41662.46007 | V101: 41662.38238 | W101: 1.970229008 | X101: 41662.32292 | Y101: 41662.3724 | Z101: 1.752671756 | AA101: 41662.34635 | AB101: 41662.36632 | AC101: 1.632061069 | AD101: Cls | AE101: 41662.20347 | AF101: 41662.3559 | AG101: 1.552671756 | AH101: 41662.34809 | AI101: 1.652671756 | AJ101: 41662.3928 | AK101: 2.170229008 | AL101: 41662.3928 | AM101: 2.170229008 | AN101: 41662.38455 | AO101: 2.170229008 | AP101: 41662.39019 | AQ101: 1.990839695 | AR101: 41662.35417 | AS101: 41662.37847 | AT101: 41662.35417 | AU101: 1.752671756 | AV101: 41662.35677 | AW101: 1.732061069 | AX101: 41662.34809 | AY101: 1.552671756 | AZ101: 41662.34462 | BA101: 1.532061069 | BB101: 41662.33898 | BC101: 1.632061069 | BD101: 41662.29384 | BE101: 1.314503817 | BF101: 41662.38889 | BH101: 41662.40625 | BI101: 41662.39583
A102: 0 | B102: =IF(Instructions!$C$2="BST",A102,0) -> 0 | C102: 2018-01-24T14:59:00 | D102: 2018-01-24 | F102: 1 | I102: 3 | K102: 41662.62431 | L102: 5.1 | M102: HW | N102: 0.5304347826 | O102: 14:59:00 | P102: 12:00:00 | Q102: 18:00:00 | R102: 0.5027777778 | S102: 41662.63649 | T102: 6.848695652 | U102: 41662.70246 | V102: 41662.63823 | W102: 6.595652174 | X102: 41662.58264 | Y102: 41662.61044 | Z102: 5.036521739 | AA102: 41662.60002 | AB102: 41662.60347 | AC102: 4.636521739 | AD102: Opn | AE102: 41662.48889 | AF102: 41662.60516 | AG102: 4.083478261 | AH102: 41662.57913 | AI102: 4.430434783 | AJ102: 41662.63821 | AK102: 6.748695652 | AL102: 41662.63994 | AM102: 6.70173913 | AN102: 41662.63474 | AO102: 6.495652174 | AP102: 41662.63992 | AQ102: 5.895652174 | AR102: 41662.61389 | AS102: 41662.63472 | AT102: 41662.59996 | AU102: 4.636521739 | AV102: 41662.59996 | AW102: 4.436521739 | AX102: 41662.5774 | AY102: 4.189565217 | AZ102: 41662.57393 | BA102: 4.036521739 | BB102: 41662.57046 | BC102: 3.983478261 | BD102: 41662.52018 | BE102: 3.836521739 | BF102: 41662.61389 | BH102: 41662.66597 | BI102: 41662.65556
A103: 0 | B103: =IF(Instructions!$C$2="BST",A103,0) -> 0 | C103: 2018-01-24T21:20:00 | D103: 2018-01-24 | F103: 1 | G103: =IF(H103="","",TEXT(F103*29,"mmm")) ->  | H103: =IF(I103=I102,"",DAY(K103)) ->  | I103: 3 | J103: =IF(I103=I102,"",TEXT(I103+2,"ddd")) ->  | K103: 41662.88889 | L103: 1.57 | M103: LW | N103: 0.3435114504 | O103: 21:20:00 | P103: 17:00:00 | Q103: 23:00:00 | R103: 0.2777777778 | S103: 41662.91705 | T103: 1.916030534 | U103: 41662.98302 | V103: 41662.90837 | W103: 1.750381679 | X103: 41662.84722 | Y103: 41662.89468 | Z103: 1.58778626 | AA103: 41662.87269 | AB103: 41662.88927 | AC103: 1.453435115 | AD103: Cls | AE103: 41662.71806 | AF103: 41662.88156 | AG103: 1.38778626 | AH103: 41662.87307 | AI103: 1.48778626 | AJ103: 41662.91609 | AK103: 1.950381679 | AL103: 41662.91609 | AM103: 1.950381679 | AN103: 41662.90818 | AO103: 1.950381679 | AP103: 41662.91416 | AQ103: 1.784732824 | AR103: 41662.87847 | AS103: 41662.90278 | AT103: 41662.87847 | AU103: 1.58778626 | AV103: 41662.8804 | AW103: 1.553435115 | AX103: 41662.87307 | AY103: 1.38778626 | AZ103: 41662.8696 | BA103: 1.353435115 | BB103: 41662.86362 | BC103: 1.453435115 | BD103: 41662.81848 | BE103: 1.190839695 | BF103: 41662.91319 | BH103: 41662.93056 | BI103: 41662.92014
A104: 0 | B104: =IF(Instructions!$C$2="BST",A104,0) -> 0 | C104: 2018-01-25T03:35:00 | D104: 2018-01-25 | E104: 2018-01-25 | F104: 1 | G104: =IF(H104="","",TEXT(F104*29,"mmm")) -> Jan | H104: =IF(I104=I103,"",DAY(K104)) -> 25 | I104: 4 | J104: =IF(I104=I103,"",TEXT(I104+2,"ddd")) -> Thu | K104: 41663.14931 | L104: 4.73 | M104: HW | N104: 0.2086956522 | O104: 03:35:00 | P104: 00:00:00 | Q104: 06:00:00 | R104: 0.4027777778 | S104: 41663.16045 | T104: 6.333913043 | U104: 41663.22642 | V104: 41663.16184 | W104: 6.113043478 | X104: 41663.10764 | Y104: 41663.13474 | Z104: 4.650434783 | AA104: 41663.12432 | AB104: 41663.12847 | AC104: 4.250434783 | AD104: Opn | AE104: 41663.01389 | AF104: 41663.1319 | AG104: 3.729565217 | AH104: 41663.10552 | AI104: 4.108695652 | AJ104: 41663.16252 | AK104: 6.233913043 | AL104: 41663.16459 | AM104: 6.154782609 | AN104: 41663.15905 | AO104: 6.013043478 | AP104: 41663.16527 | AQ104: 5.413043478 | AR104: 41663.13889 | AS104: 41663.15972 | AT104: 41663.12635 | AU104: 4.250434783 | AV104: 41663.12635 | AW104: 4.050434783 | AX104: 41663.10344 | AY104: 3.771304348 | AZ104: 41663.09997 | BA104: 3.650434783 | BB104: 41663.0965 | BC104: 3.629565217 | BD104: 41663.04379 | BE104: 3.450434783 | BF104: 41663.13889 | BH104: 41663.19097 | BI104: 41663.18056
A105: 0 | B105: =IF(Instructions!$C$2="BST",A105,0) -> 0 | C105: 2018-01-25T09:45:00 | D105: 2018-01-25 | E105: =IF(D105=D104,IF(J104="","",J104),D105) -> Thu | F105: 1 | I105: 4 | K105: 41663.40625 | L105: 1.9 | M105: LW | N105: 0.09160305344 | O105: 09:45:00 | P105: 05:00:00 | Q105: 11:00:00 | R105: 0.2083333333 | S105: 41663.43345 | T105: 2.344274809 | U105: 41663.49942 | V105: 41663.42694 | W105: 2.153435115 | X105: 41663.36458 | Y105: 41663.41059 | Z105: 1.890076336 | AA105: 41663.39149 | AB105: 41663.40567 | AC105: 1.780916031 | AD105: Cls | AE105: 41663.24306 | AF105: 41663.39988 | AG105: 1.690076336 | AH105: 41663.39091 | AI105: 1.790076336 | AJ105: 41663.43273 | AK105: 2.353435115 | AL105: 41663.43273 | AM105: 2.353435115 | AN105: 41663.42506 | AO105: 2.353435115 | AP105: 41663.43128 | AQ105: 2.16259542 | AR105: 41663.39583 | AS105: 41663.42014 | AT105: 41663.39583 | AU105: 1.890076336 | AV105: 41663.39728 | AW105: 1.880916031 | AX105: 41663.39091 | AY105: 1.690076336 | AZ105: 41663.38744 | BA105: 1.680916031 | BB105: 41663.38122 | BC105: 1.780916031 | BD105: 41663.33608 | BE105: 1.417557252 | BF105: 41663.43056 | BH105: 41663.44792 | BI105: 41663.4375
A106: 0 | B106: =IF(Instructions!$C$2="BST",A106,0) -> 0 | C106: 2018-01-25T16:00:00 | D106: 2018-01-25 | F106: 1 | I106: 4 | K106: 41663.66667 | L106: 4.94 | M106: HW | N106: 0.3913043478 | O106: 16:00:00 | P106: 12:00:00 | Q106: 18:00:00 | R106: 0.3333333333 | S106: 41663.67708 | T106: 6.626086957 | U106: 41663.74306 | V106: 41663.67824 | W106: 6.386956522 | X106: 41663.625 | Y106: 41663.65162 | Z106: 4.869565217 | AA106: 41663.6412 | AB106: 41663.64583 | AC106: 4.469565217 | AD106: Opn | AE106: 41663.53125 | AF106: 41663.65046 | AG106: 3.930434783 | AH106: 41663.62384 | AI106: 4.291304348 | AJ106: 41663.6794 | AK106: 6.526086957 | AL106: 41663.68171 | AM106: 6.465217391 | AN106: 41663.67593 | AO106: 6.286956522 | AP106: 41663.68287 | AQ106: 5.686956522 | AR106: 41663.65625 | AS106: 41663.67708 | AT106: 41663.64468 | AU106: 4.469565217 | AV106: 41663.64468 | AW106: 4.269565217 | AX106: 41663.62153 | AY106: 4.008695652 | AZ106: 41663.61806 | BA106: 3.869565217 | BB106: 41663.61458 | BC106: 3.830434783 | BD106: 41663.56019 | BE106: 3.669565217 | BF106: 41663.65625 | BH106: 41663.70833 | BI106: 41663.69792
A107: 0 | B107: =IF(Instructions!$C$2="BST",A107,0) -> 0 | C107: 2018-01-25T22:24:00 | D107: 2018-01-25 | E107: =IF(D107=D106,IF(J106="","",J106),D107) ->  | F107: 1 | G107: =IF(H107="","",TEXT(F107*29,"mmm")) ->  | H107: =IF(I107=I106,"",DAY(K107)) ->  | I107: 4 | J107: =IF(I107=I106,"",TEXT(I107+2,"ddd")) ->  | K107: 41663.93333 | L107: 1.69 | M107: LW | N107: 0.2519083969 | O107: 22:24:00 | P107: 17:00:00 | Q107: 23:00:00 | R107: 0.1 | S107: 41663.95903 | T107: 2.071755725 | U107: 41664.025 | V107: 41663.9559 | W107: 1.896946565 | X107: 41663.89167 | Y107: 41663.93542 | Z107: 1.697709924 | AA107: 41663.92083 | AB107: 41663.93125 | AC107: 1.572519084 | AD107: Cls | AE107: 41663.76042 | AF107: 41663.92847 | AG107: 1.497709924 | AH107: 41663.91875 | AI107: 1.597709924 | AJ107: 41663.95868 | AK107: 2.096946565 | AL107: 41663.95868 | AM107: 2.096946565 | AN107: 41663.95139 | AO107: 2.096946565 | AP107: 41663.95799 | AQ107: 1.922137405 | AR107: 41663.92292 | AS107: 41663.94722 | AT107: 41663.92292 | AU107: 1.697709924 | AV107: 41663.92361 | AW107: 1.672519084 | AX107: 41663.91875 | AY107: 1.497709924 | AZ107: 41663.91528 | BA107: 1.472519084 | BB107: 41663.90868 | BC107: 1.572519084 | BD107: 41663.86354 | BE107: 1.273282443 | BF107: 41663.95764 | BH107: 41663.975 | BI107: 41663.96458
A108: 0 | B108: =IF(Instructions!$C$2="BST",A108,0) -> 0 | C108: 2018-01-26T04:44:00 | D108: 2018-01-26 | E108: 2018-01-26 | F108: 1 | G108: =IF(H108="","",TEXT(F108*29,"mmm")) -> Jan | H108: =IF(I108=I107,"",DAY(K108)) -> 26 | I108: 5 | J108: =IF(I108=I107,"",TEXT(I108+2,"ddd")) -> Fri | K108: 41664.19722 | L108: 4.65 | M108: HW | N108: 0.1391304348 | O108: 04:44:00 | P108: 00:00:00 | Q108: 06:00:00 | R108: 0.2111111111 | S108: 41664.20637 | T108: 6.222608696 | U108: 41664.27234 | V108: 41664.2071 | W108: 6.008695652 | X108: 41664.15556 | Y108: 41664.18133 | Z108: 4.566956522 | AA108: 41664.17091 | AB108: 41664.17639 | AC108: 4.166956522 | AD108: Opn | AE108: 41664.06181 | AF108: 41664.18314 | AG108: 3.653043478 | AH108: 41664.1561 | AI108: 4.039130435 | AJ108: 41664.2091 | AK108: 6.122608696 | AL108: 41664.21184 | AM108: 6.036521739 | AN108: 41664.20563 | AO108: 5.908695652 | AP108: 41664.21385 | AQ108: 5.308695652 | AR108: 41664.18681 | AS108: 41664.20764 | AT108: 41664.17693 | AU108: 4.166956522 | AV108: 41664.17693 | AW108: 3.966956522 | AX108: 41664.15336 | AY108: 3.680869565 | AZ108: 41664.14988 | BA108: 3.566956522 | BB108: 41664.14641 | BC108: 3.553043478 | BD108: 41664.08904 | BE108: 3.366956522 | BF108: 41664.18681 | BH108: 41664.23889 | BI108: 41664.22847
A109: 0 | B109: =IF(Instructions!$C$2="BST",A109,0) -> 0 | C109: 2018-01-26T10:57:00 | D109: 2018-01-26 | E109: Fri | F109: 1 | I109: 5 | K109: 41664.45625 | L109: 1.95 | M109: LW | N109: 0.0534351145 | O109: 10:57:00 | P109: 05:00:00 | Q109: 11:00:00 | R109: 0.008333333322 | S109: 41664.48067 | T109: 2.409160305 | U109: 41664.54664 | V109: 41664.48041 | W109: 2.214503817 | X109: 41664.41458 | Y109: 41664.45642 | Z109: 1.935877863 | AA109: 41664.44566 | AB109: 41664.45289 | AC109: 1.830534351 | AD109: Cls | AE109: 41664.29097 | AF109: 41664.45266 | AG109: 1.735877863 | AH109: 41664.4423 | AI109: 1.835877863 | AJ109: 41664.48064 | AK109: 2.414503817 | AL109: 41664.48064 | AM109: 2.414503817 | AN109: 41664.47367 | AO109: 2.414503817 | AP109: 41664.48058 | AQ109: 2.219847328 | AR109: 41664.44583 | AS109: 41664.47014 | AT109: 41664.44583 | AU109: 1.935877863 | AV109: 41664.44589 | AW109: 1.930534351 | AX109: 41664.4423 | AY109: 1.735877863 | AZ109: 41664.43883 | BA109: 1.730534351 | BB109: 41664.43192 | BC109: 1.830534351 | BD109: 41664.38678 | BE109: 1.451908397 | BF109: 41664.48056 | BH109: 41664.49792 | BI109: 41664.4875
A110: 0 | B110: =IF(Instructions!$C$2="BST",A110,0) -> 0 | C110: 2018-01-26T17:13:00 | D110: 2018-01-26 | F110: 1 | I110: 5 | K110: 41664.71736 | L110: 4.86 | M110: HW | N110: 0.3217391304 | O110: 17:13:00 | P110: 12:00:00 | Q110: 18:00:00 | R110: 0.1305555555 | S110: =IF($M110="HW",$K110+S$6+(S$5-S$6)*$R110,$K110+S$8+(S$7-S$8)*$R110) -> 41664.72567 | T110: 6.514782609 | U110: 41664.79164 | V110: 41664.72612 | W110: 6.282608696 | X110: =IF($M110="HW",$K110+X$6+(X$5-X$6)*$R110,$K110+X$8+(X$7-X$8)*$R110) -> 41664.67569 | Y110: 41664.70091 | Z110: 4.786086957 | AA110: 41664.69049 | AB110: 41664.69653 | AC110: 4.386086957 | AD110: Opn | AE110: 41664.58194 | AF110: 41664.70468 | AG110: 3.853913043 | AH110: 41664.67735 | AI110: 4.22173913 | AJ110: 41664.72868 | AK110: 6.414782609 | AL110: 41664.7317 | AM110: 6.346956522 | AN110: 41664.72521 | AO110: 6.182608696 | AP110: 41664.73427 | AQ110: 5.582608696 | AR110: =IF($M110="HW",$K110+AR$6+(AR$5-AR$6)*$R110,$K110+AR$8+(AR$7-AR$8)*$R110) -> 41664.70694 | AS110: 41664.72778 | AT110: 41664.69819 | AU110: 4.386086957 | AV110: 41664.69819 | AW110: 4.186086957 | AX110: 41664.67433 | AY110: 3.91826087 | AZ110: 41664.67086 | BA110: 3.786086957 | BB110: 41664.66739 | BC110: 3.753913043 | BD110: 41664.60806 | BE110: 3.586086957 | BF110: =IF($M110="HW",$K110+BF$6+(BF$5-BF$6)*$R110,$K110+BF$8+(BF$7-BF$8)*$R110) -> 41664.70694 | BH110: 41664.75903 | BI110: 41664.74861
A111: 0 | B111: =IF(Instructions!$C$2="BST",A111,0) -> 0 | C111: 2018-01-26T23:37:00 | D111: 2018-01-26 | F111: 1 | G111: =IF(H111="","",TEXT(F111*29,"mmm")) ->  | H111: =IF(I111=I110,"",DAY(K111)) ->  | I111: 5 | J111: =IF(I111=I110,"",TEXT(I111+2,"ddd")) ->  | K111: 41664.98403 | L111: 1.71 | M111: LW | N111: 0.2366412214 | O111: 23:37:00 | P111: 1.208333333 | Q111: 23:00:00 | R111: 0.1027777778 | S111: 41665.00976 | T111: 2.097709924 | U111: 41665.07573 | V111: 41665.00655 | W111: 1.921374046 | X111: 41664.94236 | Y111: 41664.98617 | Z111: 1.716030534 | AA111: 41664.97147 | AB111: 41664.98198 | AC111: 1.592366412 | AD111: Cls | AE111: 41664.81111 | AF111: 41664.97913 | AG111: 1.516030534 | AH111: 41664.96943 | AI111: 1.616030534 | AJ111: 41665.0094 | AK111: 2.121374046 | AL111: 41665.0094 | AM111: 2.121374046 | AN111: 41665.0021 | AO111: 2.121374046 | AP111: 41665.00869 | AQ111: 1.945038168 | AR111: 41664.97361 | AS111: 41664.99792 | AT111: 41664.97361 | AU111: 1.716030534 | AV111: 41664.97432 | AW111: 1.692366412 | AX111: 41664.96943 | AY111: 1.516030534 | AZ111: 41664.96595 | BA111: 1.492366412 | BB111: 41664.95937 | BC111: 1.592366412 | BD111: 41664.91423 | BE111: 1.287022901 | BF111: 41665.00833 | BH111: 41665.02569 | BI111: 41665.01528
A112: 0 | B112: =IF(Instructions!$C$2="BST",A112,0) -> 0 | C112: 2018-01-27T06:02:00 | D112: 2018-01-27 | E112: 2018-01-27 | F112: 1 | G112: =IF(H112="","",TEXT(F112*29,"mmm")) -> Jan | H112: =IF(I112=I111,"",DAY(K112)) -> 27 | I112: 6 | J112: =IF(I112=I111,"",TEXT(I112+2,"ddd")) -> Sat | K112: 41665.25139 | L112: 4.71 | M112: HW | N112: 0.1913043478 | O112: 06:02:00 | P112: 12:00:00 | Q112: 06:00:00 | R112: 0.005555555545 | S112: 41665.25839 | T112: 6.306086957 | U112: 41665.32436 | V112: 41665.25841 | W112: 6.086956522 | X112: 41665.20972 | Y112: 41665.23407 | Z112: 4.629565217 | AA112: 41665.22365 | AB112: 41665.23056 | AC112: 4.229565217 | AD112: Opn | AE112: 41665.11597 | AF112: 41665.24088 | AG112: 3.710434783 | AH112: 41665.21312 | AI112: 4.091304348 | AJ112: 41665.26184 | AK112: 6.206086957 | AL112: 41665.2653 | AM112: 6.125217391 | AN112: 41665.25837 | AO112: 5.986956522 | AP112: 41665.26873 | AQ112: 5.386956522 | AR112: 41665.24097 | AS112: 41665.26181 | AT112: 41665.23395 | AU112: 4.229565217 | AV112: 41665.23395 | AW112: 4.029565217 | AX112: 41665.20966 | AY112: 3.748695652 | AZ112: 41665.20619 | BA112: 3.629565217 | BB112: 41665.20272 | BC112: 3.610434783 | BD112: 41665.14035 | BE112: 3.429565217 | BF112: 41665.24097 | BH112: 41665.29306 | BI112: 41665.28264
A113: 0 | B113: =IF(Instructions!$C$2="BST",A113,0) -> 0 | C113: 2018-01-27T12:15:00 | D113: 2018-01-27 | E113: =IF(D113=D112,IF(J112="","",J112),D113) -> Sat | F113: 1 | I113: 6 | K113: 41665.51042 | L113: 1.84 | M113: LW | N113: 0.1374045802 | O113: 12:15:00 | P113: 17:00:00 | Q113: 11:00:00 | R113: 0.2083333333 | S113: 41665.53762 | T113: 2.266412214 | U113: 41665.60359 | V113: 41665.53111 | W113: 2.080152672 | X113: 41665.46875 | Y113: 41665.51476 | Z113: 1.835114504 | AA113: 41665.49566 | AB113: 41665.50984 | AC113: 1.721374046 | AD113: Cls | AE113: 41665.34514 | AF113: 41665.50405 | AG113: 1.635114504 | AH113: 41665.49508 | AI113: 1.735114504 | AJ113: 41665.53689 | AK113: 2.280152672 | AL113: 41665.53689 | AM113: 2.280152672 | AN113: 41665.52922 | AO113: 2.280152672 | AP113: 41665.53545 | AQ113: 2.09389313 | AR113: 41665.5 | AS113: 41665.52431 | AT113: 41665.5 | AU113: 1.835114504 | AV113: 41665.50145 | AW113: 1.821374046 | AX113: 41665.49508 | AY113: 1.635114504 | AZ113: 41665.49161 | BA113: 1.621374046 | BB113: 41665.48539 | BC113: 1.721374046 | BD113: 41665.44025 | BE113: 1.376335878 | BF113: 41665.53472 | BH113: 41665.55208 | BI113: 41665.54167
A114: 0 | B114: =IF(Instructions!$C$2="BST",A114,0) -> 0 | C114: 2018-01-27T18:32:00 | D114: 2018-01-27 | F114: 1 | I114: 6 | K114: 41665.77222 | L114: 4.93 | M114: HW | N114: 0.3826086957 | O114: 18:32:00 | P114: 1 | Q114: 18:00:00 | R114: 0.08888888889 | S114: 41665.78009 | T114: 6.612173913 | U114: 41665.84606 | V114: 41665.7804 | W114: 6.373913043 | X114: 41665.73056 | Y114: 41665.75548 | Z114: 4.859130435 | AA114: 41665.74506 | AB114: 41665.75139 | AC114: 4.459130435 | AD114: Opn | AE114: 41665.63681 | AF114: 41665.76026 | AG114: 3.920869565 | AH114: 41665.73279 | AI114: 4.282608696 | AJ114: 41665.78326 | AK114: 6.512173913 | AL114: 41665.78642 | AM114: 6.450434783 | AN114: 41665.77978 | AO114: 6.273913043 | AP114: 41665.78927 | AQ114: 5.673913043 | AR114: 41665.76181 | AS114: 41665.78264 | AT114: 41665.75363 | AU114: 4.459130435 | AV114: 41665.75363 | AW114: 4.259130435 | AX114: 41665.72963 | AY114: 3.997391304 | AZ114: 41665.72616 | BA114: 3.859130435 | BB114: 41665.72269 | BC114: 3.820869565 | BD114: 41665.66235 | BE114: 3.659130435 | BF114: 41665.76181 | BH114: 41665.81389 | BI114: 41665.80347
A115: 0 | B115: =IF(Instructions!$C$2="BST",A115,0) -> 0 | C115: 2018-01-28T00:50:00 | D115: 2018-01-28 | E115: =IF(D115=D114,IF(J114="","",J114),D115) -> 2018-01-28 | F115: 1 | G115: =IF(H115="","",TEXT(F115*29,"mmm")) -> Jan | H115: =IF(I115=I114,"",DAY(K115)) -> 28 | I115: 7 | J115: =IF(I115=I114,"",TEXT(I115+2,"ddd")) -> Sun | K115: 41666.03472 | L115: 1.57 | M115: LW | N115: 0.3435114504 | O115: 00:50:00 | P115: 05:00:00 | Q115: -0.04166666667 | R115: 0.3055555555 | S115: 41666.06327 | T115: 1.916030534 | U115: 41666.12924 | V115: 41666.05372 | W115: 1.750381679 | X115: 41665.99306 | Y115: 41666.04109 | Z115: 1.58778626 | AA115: 41666.01794 | AB115: 41666.03549 | AC115: 1.453435115 | AD115: Cls | AE115: 41665.86597 | AF115: 41666.02701 | AG115: 1.38778626 | AH115: 41666.01871 | AI115: 1.48778626 | AJ115: 41666.06221 | AK115: 1.950381679 | AL115: 41666.06221 | AM115: 1.950381679 | AN115: 41666.05421 | AO115: 1.950381679 | AP115: 41666.06009 | AQ115: 1.784732824 | AR115: 41666.02431 | AS115: 41666.04861 | AT115: 41666.02431 | AU115: 1.58778626 | AV115: 41666.02643 | AW115: 1.553435115 | AX115: 41666.01871 | AY115: 1.38778626 | AZ115: 41666.01524 | BA115: 1.353435115 | BB115: 41666.00936 | BC115: 1.453435115 | BD115: 41665.96422 | BE115: 1.190839695 | BF115: 41666.05903 | BH115: 41666.07639 | BI115: 41666.06597
A116: 0 | B116: =IF(Instructions!$C$2="BST",A116,0) -> 0 | C116: 2018-01-28T07:16:00 | D116: 2018-01-28 | E116: Sun | F116: 1 | G116: =IF(H116="","",TEXT(F116*29,"mmm")) ->  | H116: =IF(I116=I115,"",DAY(K116)) ->  | I116: 7 | J116: =IF(I116=I115,"",TEXT(I116+2,"ddd")) ->  | K116: 41666.30278 | L116: 4.93 | M116: HW | N116: 0.3826086957 | O116: 07:16:00 | P116: 12:00:00 | Q116: 06:00:00 | R116: 0.2111111111 | S116: 41666.31192 | T116: 6.612173913 | U116: 41666.37789 | V116: 41666.31265 | W116: 6.373913043 | X116: 41666.26111 | Y116: 41666.28688 | Z116: 4.859130435 | AA116: 41666.27647 | AB116: 41666.28194 | AC116: 4.459130435 | AD116: Opn | AE116: 41666.16736 | AF116: 41666.2887 | AG116: 3.920869565 | AH116: 41666.26165 | AI116: 4.282608696 | AJ116: 41666.31466 | AK116: 6.512173913 | AL116: 41666.3174 | AM116: 6.450434783 | AN116: 41666.31119 | AO116: 6.273913043 | AP116: 41666.31941 | AQ116: 5.673913043 | AR116: 41666.29236 | AS116: 41666.31319 | AT116: 41666.28248 | AU116: 4.459130435 | AV116: 41666.28248 | AW116: 4.259130435 | AX116: 41666.25891 | AY116: 3.997391304 | AZ116: 41666.25544 | BA116: 3.859130435 | BB116: 41666.25197 | BC116: 3.820869565 | BD116: 41666.1946 | BE116: 3.659130435 | BF116: 41666.29236 | BH116: 41666.34444 | BI116: 41666.33403
A117: 0 | B117: =IF(Instructions!$C$2="BST",A117,0) -> 0 | C117: 2018-01-28T13:25:00 | D117: 2018-01-28 | F117: 1 | I117: 7 | K117: 41666.55903 | L117: 1.55 | M117: LW | N117: 0.358778626 | O117: 13:25:00 | P117: 17:00:00 | Q117: 11:00:00 | R117: 0.4027777778 | S117: 41666.58893 | T117: 1.890076336 | U117: 41666.6549 | V117: 41666.57634 | W117: 1.725954198 | X117: 41666.51736 | Y117: 41666.56742 | Z117: 1.569465649 | AA117: 41666.54022 | AB117: 41666.56115 | AC117: 1.433587786 | AD117: Cls | AE117: 41666.39653 | AF117: 41666.54996 | AG117: 1.369465649 | AH117: 41666.54234 | AI117: 1.469465649 | AJ117: 41666.58753 | AK117: 1.925954198 | AL117: 41666.58753 | AM117: 1.925954198 | AN117: 41666.57919 | AO117: 1.925954198 | AP117: 41666.58473 | AQ117: 1.761832061 | AR117: 41666.54861 | AS117: 41666.57292 | AT117: 41666.54861 | AU117: 1.569465649 | AV117: 41666.55141 | AW117: 1.533587786 | AX117: 41666.54234 | AY117: 1.369465649 | AZ117: 41666.53887 | BA117: 1.333587786 | BB117: 41666.53332 | BC117: 1.433587786 | BD117: 41666.48818 | BE117: 1.177099237 | BF117: 41666.58333 | BH117: 41666.60069 | BI117: 41666.59028
A118: 0 | B118: =IF(Instructions!$C$2="BST",A118,0) -> 0 | C118: 2018-01-28T19:43:00 | D118: 2018-01-28 | F118: 1 | I118: 7 | K118: 41666.82153 | L118: 5.15 | M118: HW | N118: 0.5739130435 | O118: 19:43:00 | P118: 1 | Q118: 18:00:00 | R118: 0.2861111111 | S118: 41666.83145 | T118: 6.91826087 | U118: 41666.89742 | V118: 41666.83245 | W118: 6.660869565 | X118: 41666.77986 | Y118: 41666.80615 | Z118: 5.088695652 | AA118: 41666.79574 | AB118: 41666.80069 | AC118: 4.688695652 | AD118: Opn | AE118: 41666.68611 | AF118: 41666.80614 | AG118: 4.131304348 | AH118: 41666.77936 | AI118: 4.473913043 | AJ118: 41666.83393 | AK118: 6.81826087 | AL118: 41666.83641 | AM118: 6.775652174 | AN118: 41666.83046 | AO118: 6.560869565 | AP118: 41666.8379 | AQ118: 5.960869565 | AR118: 41666.81111 | AS118: 41666.83194 | AT118: 41666.80019 | AU118: 4.688695652 | AV118: 41666.80019 | AW118: 4.488695652 | AX118: 41666.77688 | AY118: 4.246086957 | AZ118: 41666.77341 | BA118: 4.088695652 | BB118: 41666.76994 | BC118: 4.031304348 | BD118: 41666.71439 | BE118: 3.888695652 | BF118: 41666.81111 | BH118: 41666.86319 | BI118: 41666.85278
A119: 0 | B119: =IF(Instructions!$C$2="BST",A119,0) -> 0 | C119: 2018-01-29T01:53:00 | D119: 2018-01-29 | E119: 2018-01-29 | F119: 1 | G119: =IF(H119="","",TEXT(F119*29,"mmm")) -> Jan | H119: =IF(I119=I118,"",DAY(K119)) -> 29 | I119: 1 | J119: =IF(I119=I118,"",TEXT(I119+2,"ddd")) -> Mon | K119: 41667.07847 | L119: 1.31 | M119: LW | N119: 0.5419847328 | O119: 01:53:00 | P119: 05:00:00 | Q119: -0.04166666667 | R119: 0.4805555556 | S119: 41667.10945 | T119: 1.578625954 | U119: 41667.17542 | V119: 41667.09443 | W119: 1.432824427 | X119: 41667.03681 | Y119: 41667.08848 | Z119: 1.349618321 | AA119: 41667.05804 | AB119: 41667.08167 | AC119: 1.195419847 | AD119: Cls | AE119: 41666.91528 | AF119: 41667.06833 | AG119: 1.149618321 | AH119: 41667.06125 | AI119: 1.249618321 | AJ119: 41667.10778 | AK119: 1.632824427 | AL119: 41667.10778 | AM119: 1.632824427 | AN119: 41667.09917 | AO119: 1.632824427 | AP119: 41667.10445 | AQ119: 1.487022901 | AR119: 41667.06806 | AS119: 41667.09236 | AT119: 41667.06806 | AU119: 1.349618321 | AV119: 41667.07139 | AW119: 1.295419847 | AX119: 41667.06125 | AY119: 1.149618321 | AZ119: 41667.05777 | BA119: 1.095419847 | BB119: 41667.0525 | BC119: 1.195419847 | BD119: 41667.00736 | BE119: 1.01221374 | BF119: 41667.10278 | BH119: 41667.12014 | BI119: 41667.10972
A120: 0 | B120: =IF(Instructions!$C$2="BST",A120,0) -> 0 | C120: 2018-01-29T08:17:00 | D120: 2018-01-29 | E120: Mon | F120: 1 | G120: =IF(H120="","",TEXT(F120*29,"mmm")) ->  | H120: =IF(I120=I119,"",DAY(K120)) ->  | I120: 1 | J120: =IF(I120=I119,"",TEXT(I120+2,"ddd")) ->  | K120: 41667.34514 | L120: 5.26 | M120: HW | N120: 0.6695652174 | O120: 08:17:00 | P120: 12:00:00 | Q120: 06:00:00 | R120: 0.3805555555 | S120: 41667.35605 | T120: 7.071304348 | U120: 41667.42202 | V120: 41667.35737 | W120: 6.804347826 | X120: 41667.30347 | Y120: 41667.33042 | Z120: 5.203478261 | AA120: 41667.32 | AB120: 41667.32431 | AC120: 4.803478261 | AD120: Opn | AE120: 41667.20972 | AF120: 41667.32812 | AG120: 4.236521739 | AH120: 41667.30166 | AI120: 4.569565217 | AJ120: 41667.3582 | AK120: 6.971304348 | AL120: 41667.36035 | AM120: 6.93826087 | AN120: 41667.35473 | AO120: 6.704347826 | AP120: 41667.36118 | AQ120: 6.104347826 | AR120: 41667.33472 | AS120: 41667.35556 | AT120: 41667.32249 | AU120: 4.803478261 | AV120: 41667.32249 | AW120: 4.603478261 | AX120: 41667.29951 | AY120: 4.370434783 | AZ120: 41667.29604 | BA120: 4.203478261 | BB120: 41667.29256 | BC120: 4.136521739 | BD120: 41667.23931 | BE120: 4.003478261 | BF120: 41667.33472 | BH120: 41667.38681 | BI120: 41667.37639
A121: 0 | B121: =IF(Instructions!$C$2="BST",A121,0) -> 0 | C121: 2018-01-29T14:26:00 | D121: 2018-01-29 | E121: =IF(D121=D120,IF(J120="","",J120),D121) ->  | F121: 1 | I121: 1 | K121: 41667.60139 | L121: 1.16 | M121: LW | N121: 0.6564885496 | O121: 14:26:00 | P121: 17:00:00 | Q121: 11:00:00 | R121: 0.5722222222 | S121: 41667.63364 | T121: 1.383969466 | U121: 41667.69961 | V121: 41667.61576 | W121: 1.249618321 | X121: 41667.55972 | Y121: 41667.61331 | Z121: 1.21221374 | AA121: 41667.57905 | AB121: 41667.60586 | AC121: 1.046564885 | AD121: Cls | AE121: 41667.43889 | AF121: 41667.58997 | AG121: 1.01221374 | AH121: 41667.58353 | AI121: 1.11221374 | AJ121: 41667.63166 | AK121: 1.449618321 | AL121: 41667.63166 | AM121: 1.449618321 | AN121: 41667.62272 | AO121: 1.449618321 | AP121: 41667.62768 | AQ121: 1.315267176 | AR121: 41667.59097 | AS121: 41667.61528 | AT121: 41667.59097 | AU121: 1.21221374 | AV121: 41667.59495 | AW121: 1.146564885 | AX121: 41667.58353 | AY121: 1.01221374 | AZ121: 41667.58005 | BA121: 0.9465648855 | BB121: 41667.5751 | BC121: 1.046564885 | BD121: 41667.52996 | BE121: 0.9091603053 | BF121: 41667.62569 | BH121: 41667.64306 | BI121: 41667.63264
A122: 0 | B122: =IF(Instructions!$C$2="BST",A122,0) -> 0 | C122: 2018-01-29T20:43:00 | D122: 2018-01-29 | F122: 1 | I122: 1 | K122: 41667.86319 | L122: 5.41 | M122: HW | N122: 0.8 | O122: 20:43:00 | P122: 1 | Q122: 18:00:00 | R122: 0.4527777778 | S122: 41667.87486 | T122: 7.28 | U122: 41667.94083 | V122: 41667.87643 | W122: 7 | X122: 41667.82153 | Y122: 41667.84898 | Z122: 5.36 | AA122: 41667.83856 | AB122: 41667.84236 | AC122: 4.96 | AD122: Opn | AE122: 41667.72778 | AF122: 41667.84492 | AG122: 4.38 | AH122: 41667.81871 | AI122: 4.7 | AJ122: 41667.87676 | AK122: 7.18 | AL122: 41667.87866 | AM122: 7.16 | AN122: 41667.87328 | AO122: 6.9 | AP122: 41667.87898 | AQ122: 6.3 | AR122: 41667.85278 | AS122: 41667.87361 | AT122: 41667.83954 | AU122: 4.96 | AV122: 41667.83954 | AW122: 4.76 | AX122: 41667.81681 | AY122: 4.54 | AZ122: 41667.81334 | BA122: 4.36 | BB122: 41667.80987 | BC122: 4.28 | BD122: 41667.75837 | BE122: 4.16 | BF122: 41667.85278 | BH122: 41667.90486 | BI122: 41667.89444
A123: 0 | B123: =IF(Instructions!$C$2="BST",A123,0) -> 0 | C123: 2018-01-30T02:48:00 | D123: 2018-01-30 | E123: =IF(D123=D122,IF(J122="","",J122),D123) -> 2018-01-30 | F123: 1 | G123: =IF(H123="","",TEXT(F123*29,"mmm")) -> Jan | H123: =IF(I123=I122,"",DAY(K123)) -> 30 | I123: 2 | J123: =IF(I123=I122,"",TEXT(I123+2,"ddd")) -> Tue | K123: 41668.11667 | L123: 1.01 | M123: LW | N123: 0.7709923664 | O123: 02:48:00 | P123: 05:00:00 | Q123: -0.04166666667 | R123: 0.6333333333 | S123: 41668.14977 | T123: 1.189312977 | U123: 41668.21574 | V123: 41668.12998 | W123: 1.066412214 | X123: 41668.075 | Y123: 41668.12986 | Z123: 1.07480916 | AA123: 41668.09306 | AB123: 41668.12199 | AC123: 0.8977099237 | AD123: Cls | AE123: 41667.95694 | AF123: 41668.1044 | AG123: 0.8748091603 | AH123: 41668.09838 | AI123: 0.9748091603 | AJ123: 41668.14757 | AK123: 1.266412214 | AL123: 41668.14757 | AM123: 1.266412214 | AN123: 41668.13843 | AO123: 1.266412214 | AP123: 41668.14317 | AQ123: 1.14351145 | AR123: 41668.10625 | AS123: 41668.13056 | AT123: 41668.10625 | AU123: 1.07480916 | AV123: 41668.11065 | AW123: 0.9977099237 | AX123: 41668.09838 | AY123: 0.8748091603 | AZ123: 41668.09491 | BA123: 0.7977099237 | BB123: 41668.09016 | BC123: 0.8977099237 | BD123: 41668.04502 | BE123: 0.8061068702 | BF123: 41668.14097 | BH123: 41668.15833 | BI123: 41668.14792
A124: 0 | B124: =IF(Instructions!$C$2="BST",A124,0) -> 0 | C124: 2018-01-30T09:10:00 | D124: 2018-01-30 | E124: Tue | F124: 1 | G124: =IF(H124="","",TEXT(F124*29,"mmm")) ->  | H124: =IF(I124=I123,"",DAY(K124)) ->  | I124: 2 | J124: =IF(I124=I123,"",TEXT(I124+2,"ddd")) ->  | K124: 41668.38194 | L124: 5.59 | M124: HW | N124: 0.9565217391 | O124: 09:10:00 | P124: 12:00:00 | Q124: 06:00:00 | R124: 0.5277777778 | S124: 41668.39439 | T124: 7.530434783 | U124: 41668.46036 | V124: 41668.39622 | W124: 7.234782609 | X124: 41668.34028 | Y124: 41668.36825 | Z124: 5.547826087 | AA124: 41668.35783 | AB124: 41668.36111 | AC124: 5.147826087 | AD124: Opn | AE124: 41668.24653 | AF124: 41668.36236 | AG124: 4.552173913 | AH124: 41668.33642 | AI124: 4.856521739 | AJ124: 41668.39603 | AK124: 7.430434783 | AL124: 41668.39767 | AM124: 7.426086957 | AN124: 41668.39255 | AO124: 7.134782609 | AP124: 41668.39747 | AQ124: 6.534782609 | AR124: 41668.37153 | AS124: 41668.39236 | AT124: 41668.35725 | AU124: 5.147826087 | AV124: 41668.35725 | AW124: 4.947826087 | AX124: 41668.33478 | AY124: 4.743478261 | AZ124: 41668.33131 | BA124: 4.547826087 | BB124: 41668.32784 | BC124: 4.452173913 | BD124: 41668.27816 | BE124: 4.347826087 | BF124: 41668.37153 | BH124: 41668.42361 | BI124: 41668.41319
A125: 0 | B125: =IF(Instructions!$C$2="BST",A125,0) -> 0 | C125: 2018-01-30T15:18:00 | D125: 2018-01-30 | F125: 1 | I125: 2 | K125: 41668.6375 | L125: 0.79 | M125: LW | N125: 0.9389312977 | O125: 15:18:00 | P125: 17:00:00 | Q125: 11:00:00 | R125: 0.7166666667 | S125: 41668.67176 | T125: 0.9038167939 | U125: 41668.73773 | V125: 41668.64936 | W125: 0.7977099237 | X125: 41668.59583 | Y125: 41668.65243 | Z125: 0.8732824427 | AA125: 41668.61215 | AB125: 41668.64398 | AC125: 0.679389313 | AD125: Cls | AE125: 41668.47569 | AF125: 41668.62407 | AG125: 0.6732824427 | AH125: 41668.61863 | AI125: 0.7732824427 | AJ125: 41668.66927 | AK125: 0.9977099237 | AL125: 41668.66927 | AM125: 0.9977099237 | AN125: 41668.65984 | AO125: 0.9977099237 | AP125: 41668.66429 | AQ125: 0.8916030534 | AR125: 41668.62708 | AS125: 41668.65139 | AT125: 41668.62708 | AU125: 0.8732824427 | AV125: 41668.63206 | AW125: 0.779389313 | AX125: 41668.61863 | AY125: 0.6732824427 | AZ125: 41668.61516 | BA125: 0.579389313 | BB125: 41668.61071 | BC125: 0.679389313 | BD125: 41668.56557 | BE125: 0.6549618321 | BF125: 41668.66181 | BH125: 41668.67917 | BI125: 41668.66875
A126: 0 | B126: =IF(Instructions!$C$2="BST",A126,0) -> 0 | C126: 2018-01-30T21:35:00 | D126: 2018-01-30 | F126: 1 | I126: 2 | K126: 41668.89931 | L126: 5.66 | M126: HW | N126: 1.017391304 | O126: 21:35:00 | P126: 1 | Q126: 18:00:00 | R126: 0.5972222222 | S126: 41668.91247 | T126: 7.627826087 | U126: 41668.97844 | V126: 41668.91454 | W126: 7.326086957 | X126: 41668.85764 | Y126: 41668.88609 | Z126: 5.620869565 | AA126: 41668.87568 | AB126: 41668.87847 | AC126: 5.220869565 | AD126: Opn | AE126: 41668.76389 | AF126: 41668.87852 | AG126: 4.619130435 | AH126: 41668.85282 | AI126: 4.917391304 | AJ126: 41668.91387 | AK126: 7.527826087 | AL126: 41668.91527 | AM126: 7.529565217 | AN126: 41668.9104 | AO126: 7.226086957 | AP126: 41668.91459 | AQ126: 6.626086957 | AR126: 41668.88889 | AS126: 41668.90972 | AT126: 41668.87365 | AU126: 5.220869565 | AV126: 41668.87365 | AW126: 5.020869565 | AX126: 41668.85142 | AY126: 4.822608696 | AZ126: 41668.84795 | BA126: 4.620869565 | BB126: 41668.84447 | BC126: 4.519130435 | BD126: 41668.79649 | BE126: 4.420869565 | BF126: 41668.88889 | BH126: 41668.94097 | BI126: 41668.93056
A127: 0 | B127: =IF(Instructions!$C$2="BST",A127,0) -> 0 | C127: 2018-01-31T03:38:00 | D127: 2018-01-31 | E127: 2018-01-31 | F127: 1 | G127: =IF(H127="","",TEXT(F127*29,"mmm")) -> Jan | H127: =IF(I127=I126,"",DAY(K127)) -> 31 | I127: 3 | J127: =IF(I127=I126,"",TEXT(I127+2,"ddd")) -> Wed | K127: 41669.15139 | L127: 0.75 | M127: LW | N127: 0.9694656489 | O127: 03:38:00 | P127: 05:00:00 | Q127: -0.04166666667 | R127: 0.7722222222 | S127: =IF($M127="HW",$K127+S$6+(S$5-S$6)*$R127,$K127+S$8+(S$7-S$8)*$R127) -> 41669.18642 | T127: 0.8519083969 | U127: 41669.25239 | V127: 41669.16229 | W127: 0.7488549618 | X127: =IF($M127="HW",$K127+X$6+(X$5-X$6)*$R127,$K127+X$8+(X$7-X$8)*$R127) -> 41669.10972 | Y127: 41669.16748 | Z127: 0.8366412214 | AA127: 41669.12488 | AB127: 41669.15864 | AC127: 0.6396946565 | AD127: Cls | AE127: 41668.99306 | AF127: 41669.13719 | AG127: 0.6366412214 | AH127: 41669.13214 | AI127: 0.7366412214 | AJ127: 41669.18374 | AK127: 0.9488549618 | AL127: 41669.18374 | AM127: 0.9488549618 | AN127: 41669.17411 | AO127: 0.9488549618 | AP127: 41669.17838 | AQ127: 0.8458015267 | AR127: =IF($M127="HW",$K127+AR$6+(AR$5-AR$6)*$R127,$K127+AR$8+(AR$7-AR$8)*$R127) -> 41669.14097 | AS127: 41669.16528 | AT127: 41669.14097 | AU127: 0.8366412214 | AV127: 41669.14633 | AW127: 0.7396946565 | AX127: 41669.13214 | AY127: 0.6366412214 | AZ127: 41669.12867 | BA127: 0.5396946565 | BB127: 41669.1244 | BC127: 0.6396946565 | BD127: 41669.07926 | BE127: 0.627480916 | BF127: =IF($M127="HW",$K127+BF$6+(BF$5-BF$6)*$R127,$K127+BF$8+(BF$7-BF$8)*$R127) -> 41669.17569 | BH127: 41669.19306 | BI127: 41669.18264
A128: 0 | B128: =IF(Instructions!$C$2="BST",A128,0) -> 0 | C128: 2018-01-31T09:58:00 | D128: 2018-01-31 | E128: Wed | F128: 1 | G128: =IF(H128="","",TEXT(F128*29,"mmm")) ->  | H128: =IF(I128=I127,"",DAY(K128)) ->  | I128: 3 | J128: =IF(I128=I127,"",TEXT(I128+2,"ddd")) ->  | K128: 41669.41528 | L128: 5.87 | M128: HW | N128: 1.2 | O128: 09:58:00 | P128: 12:00:00 | Q128: 06:00:00 | R128: 0.6611111111 | S128: 41669.42911 | T128: 7.92 | U128: 41669.49508 | V128: 41669.4314 | W128: 7.6 | X128: 41669.37361 | Y128: 41669.40251 | Z128: 5.84 | AA128: 41669.39209 | AB128: 41669.39444 | AC128: 5.44 | AD128: Opn | AE128: 41669.27986 | AF128: 41669.39338 | AG128: 4.82 | AH128: 41669.3679 | AI128: 5.1 | AJ128: 41669.43029 | AK128: 7.82 | AL128: 41669.43146 | AM128: 7.84 | AN128: 41669.42681 | AO128: 7.5 | AP128: 41669.43034 | AQ128: 6.9 | AR128: 41669.40486 | AS128: 41669.42569 | AT128: 41669.38873 | AU128: 5.44 | AV128: 41669.38873 | AW128: 5.24 | AX128: 41669.36672 | AY128: 5.06 | AZ128: 41669.36325 | BA128: 4.84 | BB128: 41669.35978 | BC128: 4.72 | BD128: 41669.31335 | BE128: 4.64 | BF128: 41669.40486 | BH128: 41669.45694 | BI128: 41669.44653
A129: 0 | B129: =IF(Instructions!$C$2="BST",A129,0) -> 0 | C129: 2018-01-31T16:08:00 | D129: 2018-01-31 | E129: =IF(D129=D128,IF(J128="","",J128),D129) ->  | F129: 1 | I129: 3 | K129: 41669.67222 | L129: 0.48 | M129: LW | N129: 1.175572519 | O129: 16:08:00 | P129: 17:00:00 | Q129: 11:00:00 | R129: 0.8555555556 | S129: 41669.70841 | T129: 0.5015267176 | U129: 41669.77438 | V129: 41669.68167 | W129: 0.4190839695 | X129: 41669.63056 | Y129: 41669.69005 | Z129: 0.5893129771 | AA129: 41669.64398 | AB129: 41669.68063 | AC129: 0.3717557252 | AD129: Cls | AE129: 41669.50903 | AF129: 41669.65687 | AG129: 0.3893129771 | AH129: 41669.65239 | AI129: 0.4893129771 | AJ129: 41669.70544 | AK129: 0.6190839695 | AL129: 41669.70544 | AM129: 0.6190839695 | AN129: 41669.69552 | AO129: 0.6190839695 | AP129: 41669.6995 | AQ129: 0.5366412214 | AR129: 41669.66181 | AS129: 41669.68611 | AT129: 41669.66181 | AU129: 0.5893129771 | AV129: 41669.66775 | AW129: 0.4717557252 | AX129: 41669.65239 | AY129: 0.3893129771 | AZ129: 41669.64892 | BA129: 0.2717557252 | BB129: 41669.64495 | BC129: 0.3717557252 | BD129: 41669.59981 | BE129: 0.4419847328 | BF129: 41669.69653 | BH129: 41669.71389 | BI129: 41669.70347
A130: 0 | B130: =IF(Instructions!$C$2="BST",A130,0) -> 0 | C130: 2018-01-31T22:24:00 | D130: 2018-01-31 | F130: 1 | I130: 3 | K130: 41669.93333 | L130: 5.82 | M130: HW | N130: 1.156521739 | O130: 22:24:00 | P130: 1 | Q130: 18:00:00 | R130: 0.7333333333 | S130: 41669.94792 | T130: 7.850434783 | U130: 41670.01389 | V130: 41669.95046 | W130: 7.534782609 | X130: 41669.89167 | Y130: 41669.92106 | Z130: 5.787826087 | AA130: 41669.91065 | AB130: 41669.9125 | AC130: 5.387826087 | AD130: Opn | AE130: 41669.79792 | AF130: 41669.91019 | AG130: 4.772173913 | AH130: 41669.88495 | AI130: 5.056521739 | AJ130: 41669.94884 | AK130: 7.750434783 | AL130: 41669.94977 | AM130: 7.766086957 | AN130: 41669.94537 | AO130: 7.434782609 | AP130: 41669.94815 | AQ130: 6.834782609 | AR130: 41669.92292 | AS130: 41669.94375 | AT130: 41669.90579 | AU130: 5.387826087 | AV130: 41669.90579 | AW130: 5.187826087 | AX130: 41669.88403 | AY130: 5.003478261 | AZ130: 41669.88056 | BA130: 4.787826087 | BB130: 41669.87708 | BC130: 4.672173913 | BD130: 41669.83241 | BE130: 4.587826087 | BF130: 41669.92292 | BH130: 41669.975 | BI130: 41669.96458
A131: 0 | B131: =IF(Instructions!$C$2="BST",A131,0) -> 0 | C131: 2018-02-01T04:26:00 | D131: 2018-02-01 | E131: =IF(D131=D130,IF(J130="","",J130),D131) -> 2018-02-01 | F131: 2 | G131: =IF(H131="","",TEXT(F131*29,"mmm")) -> Feb | H131: =IF(I131=I130,"",DAY(K131)) -> 1 | I131: 4 | J131: =IF(I131=I130,"",TEXT(I131+2,"ddd")) -> Thu | K131: 41670.18472 | L131: 0.57 | M131: LW | N131: 1.106870229 | O131: 04:26:00 | P131: 05:00:00 | Q131: -0.04166666667 | R131: 0.9055555555 | S131: 41670.2216 | T131: 0.6183206107 | U131: 41670.28758 | V131: 41670.19331 | W131: 0.5290076336 | X131: 41670.14306 | Y131: 41670.20359 | Z131: 0.6717557252 | AA131: 41670.15544 | AB131: 41670.19383 | AC131: 0.4610687023 | AD131: Cls | AE131: 41670.02708 | AF131: 41670.16867 | AG131: 0.4717557252 | AH131: 41670.16454 | AI131: 0.5717557252 | AJ131: 41670.21846 | AK131: 0.7290076336 | AL131: 41670.21846 | AM131: 0.7290076336 | AN131: 41670.20837 | AO131: 0.7290076336 | AP131: 41670.21217 | AQ131: 0.6396946565 | AR131: 41670.17431 | AS131: 41670.19861 | AT131: 41670.17431 | AU131: 0.6717557252 | AV131: 41670.18059 | AW131: 0.5610687023 | AX131: 41670.16454 | AY131: 0.4717557252 | AZ131: 41670.16107 | BA131: 0.3610687023 | BB131: 41670.15727 | BC131: 0.4610687023 | BD131: 41670.11213 | BE131: 0.5038167939 | BF131: 41670.20903 | BH131: 41670.22639 | BI131: 41670.21597
A132: 0 | B132: =IF(Instructions!$C$2="BST",A132,0) -> 0 | C132: 2018-02-01T10:44:00 | D132: 2018-02-01 | E132: Thu | F132: 2 | G132: =IF(H132="","",TEXT(F132*29,"mmm")) ->  | H132: =IF(I132=I131,"",DAY(K132)) ->  | I132: 4 | J132: =IF(I132=I131,"",TEXT(I132+2,"ddd")) ->  | K132: 41670.44722 | L132: 6.05 | M132: HW | N132: 1.356521739 | O132: 10:44:00 | P132: 12:00:00 | Q132: 06:00:00 | R132: 0.7888888889 | S132: 41670.46238 | T132: 8.170434783 | U132: 41670.52836 | V132: 41670.46512 | W132: 7.834782609 | X132: 41670.40556 | Y132: 41670.43534 | Z132: 6.027826087 | AA132: 41670.42492 | AB132: 41670.42639 | AC132: 5.627826087 | AD132: Opn | AE132: 41670.31181 | AF132: 41670.42311 | AG132: 4.992173913 | AH132: 41670.39807 | AI132: 5.256521739 | AJ132: 41670.46312 | AK132: 8.070434783 | AL132: 41670.46385 | AM132: 8.106086957 | AN132: 41670.45965 | AO132: 7.734782609 | AP132: 41670.46184 | AQ132: 7.134782609 | AR132: 41670.43681 | AS132: 41670.45764 | AT132: 41670.4189 | AU132: 5.627826087 | AV132: 41670.4189 | AW132: 5.427826087 | AX132: 41670.39734 | AY132: 5.263478261 | AZ132: 41670.39387 | BA132: 5.027826087 | BB132: 41670.39039 | BC132: 4.892173913 | BD132: 41670.34707 | BE132: 4.827826087 | BF132: 41670.43681 | BH132: 41670.48889 | BI132: 41670.47847
A133: 0 | B133: =IF(Instructions!$C$2="BST",A133,0) -> 0 | C133: 2018-02-01T16:55:00 | D133: 2018-02-01 | F133: 2 | I133: 4 | K133: 41670.70486 | L133: 0.29 | M133: LW | N133: 1.320610687 | O133: 16:55:00 | P133: 17:00:00 | Q133: 11:00:00 | R133: 0.9861111111 | S133: 41670.74286 | T133: 0.2549618321 | U133: 41670.80883 | V133: 41670.71205 | W133: 0.1870229008 | X133: 41670.66319 | Y133: 41670.72541 | Z133: 0.4152671756 | AA133: 41670.6739 | AB133: 41670.71508 | AC133: 0.1832061069 | AD133: Cls | AE133: 41670.54097 | AF133: 41670.68769 | AG133: 0.2152671756 | AH133: 41670.68412 | AI133: 0.3152671756 | AJ133: 41670.73944 | AK133: 0.3870229008 | AL133: 41670.73944 | AM133: 0.3870229008 | AN133: 41670.72907 | AO133: 0.3870229008 | AP133: 41670.73259 | AQ133: 0.3190839695 | AR133: 41670.69444 | AS133: 41670.71875 | AT133: 41670.69444 | AU133: 0.4152671756 | AV133: 41670.70129 | AW133: 0.2832061069 | AX133: 41670.68412 | AY133: 0.2152671756 | AZ133: 41670.68065 | BA133: 0.08320610687 | BB133: 41670.67713 | BC133: 0.1832061069 | BD133: 41670.63199 | BE133: 0.3114503817 | BF133: 41670.72917 | BH133: 41670.74653 | BI133: 41670.73611
A134: 0 | B134: =IF(Instructions!$C$2="BST",A134,0) -> 0 | C134: 2018-02-01T23:11:00 | D134: 2018-02-01 | F134: 2 | I134: 4 | K134: 41670.96597 | L134: 5.87 | M134: HW | N134: 1.2 | O134: 23:11:00 | P134: 1 | Q134: 18:00:00 | R134: 0.8638888889 | S134: 41670.98192 | T134: 7.92 | U134: 41671.04789 | V134: 41670.98492 | W134: 7.6 | X134: 41670.92431 | Y134: 41670.95461 | Z134: 5.84 | AA134: 41670.94419 | AB134: 41670.94514 | AC134: 5.44 | AD134: Opn | AE134: 41670.83056 | AF134: 41670.94056 | AG134: 4.82 | AH134: 41670.91578 | AI134: 5.1 | AJ134: 41670.98239 | AK134: 7.82 | AL134: 41670.98286 | AM134: 7.84 | AN134: 41670.97892 | AO134: 7.5 | AP134: 41670.98033 | AQ134: 6.9 | AR134: 41670.95556 | AS134: 41670.97639 | AT134: 41670.93661 | AU134: 5.44 | AV134: 41670.93661 | AW134: 5.24 | AX134: 41670.91531 | AY134: 5.06 | AZ134: 41670.91183 | BA134: 4.84 | BB134: 41670.90836 | BC134: 4.72 | BD134: 41670.86686 | BE134: 4.64 | BF134: 41670.95556 | BH134: 41671.00764 | BI134: 41670.99722
A135: 0 | B135: =IF(Instructions!$C$2="BST",A135,0) -> 0 | C135: 2018-02-02T05:12:00 | D135: 2018-02-02 | E135: 2018-02-02 | F135: 2 | G135: =IF(H135="","",TEXT(F135*29,"mmm")) -> Feb | H135: =IF(I135=I134,"",DAY(K135)) -> 2 | I135: =WEEKDAY(K135,2) -> 5 | J135: =IF(I135=I134,"",TEXT(I135+2,"ddd")) -> Fri | K135: 41671.21667 | L135: 0.5 | M135: LW | N135: 1.160305344 | O135: 05:12:00 | P135: 05:00:00 | Q135: 11:00:00 | R135: 0.9666666667 | S135: 41671.2544 | T135: 0.527480916 | U135: 41671.32037 | V135: 41671.22419 | W135: 0.4435114504 | X135: 41671.175 | Y135: 41671.23681 | Z135: 0.6076335878 | AA135: 41671.18611 | AB135: 41671.22662 | AC135: 0.3916030534 | AD135: Cls | AE135: 41671.05972 | AF135: 41671.19977 | AG135: 0.4076335878 | AH135: 41671.19606 | AI135: 0.5076335878 | AJ135: 41671.25104 | AK135: 0.6435114504 | AL135: 41671.25104 | AM135: 0.6435114504 | AN135: 41671.24074 | AO135: 0.6435114504 | AP135: 41671.24433 | AQ135: 0.5595419847 | AR135: 41671.20625 | AS135: 41671.23056 | AT135: 41671.20625 | AU135: 0.6076335878 | AV135: 41671.21296 | AW135: 0.4916030534 | AX135: 41671.19606 | AY135: 0.4076335878 | AZ135: 41671.19259 | BA135: 0.2916030534 | BB135: 41671.189 | BC135: 0.3916030534 | BD135: 41671.14387 | BE135: 0.4557251908 | BF135: 41671.24097 | BH135: 41671.25833 | BI135: 41671.24792
A136: 0 | B136: =IF(Instructions!$C$2="BST",A136,0) -> 0 | C136: 2018-02-02T11:29:00 | D136: 2018-02-02 | E136: Fri | F136: 2 | G136: =IF(H136="","",TEXT(F136*29,"mmm")) ->  | H136: =IF(I136=I135,"",DAY(K136)) ->  | I136: 5 | J136: =IF(I136=I135,"",TEXT(I136+2,"ddd")) ->  | K136: 41671.47847 | L136: 6.11 | M136: HW | N136: 1.408695652 | O136: 11:29:00 | P136: 12:00:00 | Q136: 06:00:00 | R136: 0.9138888889 | S136: 41671.49494 | T136: 8.253913043 | U136: 41671.56091 | V136: 41671.49811 | W136: 7.913043478 | X136: 41671.43681 | Y136: 41671.46746 | Z136: 6.090434783 | AA136: 41671.45704 | AB136: 41671.45764 | AC136: 5.690434783 | AD136: Opn | AE136: 41671.34306 | AF136: 41671.45219 | AG136: 5.049565217 | AH136: 41671.42758 | AI136: 5.308695652 | AJ136: 41671.49524 | AK136: 8.153913043 | AL136: 41671.49553 | AM136: 8.194782609 | AN136: 41671.49176 | AO136: 7.813043478 | AP136: 41671.49266 | AQ136: 7.213043478 | AR136: 41671.46806 | AS136: 41671.48889 | AT136: 41671.44842 | AU136: 5.690434783 | AV136: 41671.44842 | AW136: 5.490434783 | AX136: 41671.42729 | AY136: 5.331304348 | AZ136: 41671.42381 | BA136: 5.090434783 | BB136: 41671.42034 | BC136: 4.949565217 | BD136: 41671.38005 | BE136: 4.890434783 | BF136: 41671.46806 | BH136: 41671.52014 | BI136: 41671.50972
A137: 0 | B137: =IF(Instructions!$C$2="BST",A137,0) -> 0 | C137: 2018-02-02T17:42:00 | D137: 2018-02-02 | E137: =IF(D137=D136,IF(J136="","",J136),D137) ->  | F137: 2 | I137: 5 | K137: 41671.7375 | L137: 0.26 | M137: LW | N137: 1.34351145 | O137: 17:42:00 | P137: 17:00:00 | Q137: 23:00:00 | R137: 0.8833333333 | S137: 41671.77407 | T137: 0.2160305344 | U137: 41671.84005 | V137: 41671.74647 | W137: 0.1503816794 | X137: 41671.69583 | Y137: 41671.7559 | Z137: 0.3877862595 | AA137: 41671.70868 | AB137: 41671.7463 | AC137: 0.1534351145 | AD137: Cls | AE137: 41671.57222 | AF137: 41671.72176 | AG137: 0.1877862595 | AH137: 41671.71748 | AI137: 0.2877862595 | AJ137: 41671.77101 | AK137: 0.3503816794 | AL137: 41671.77101 | AM137: 0.3503816794 | AN137: 41671.761 | AO137: 0.3503816794 | AP137: 41671.76487 | AQ137: 0.2847328244 | AR137: 41671.72708 | AS137: 41671.75139 | AT137: 41671.72708 | AU137: 0.3877862595 | AV137: 41671.73322 | AW137: 0.2534351145 | AX137: 41671.71748 | AY137: 0.1877862595 | AZ137: 41671.714 | BA137: 0.0534351145 | BB137: 41671.71013 | BC137: 0.1534351145 | BD137: 41671.66499 | BE137: 0.2908396947 | BF137: 41671.76181 | BH137: 41671.77917 | BI137: 41671.76875
A138: 0 | B138: =IF(Instructions!$C$2="BST",A138,0) -> 0 | C138: 2018-02-02T23:56:00 | D138: 2018-02-02 | F138: 2 | I138: 5 | K138: 41671.99722 | L138: 5.81 | M138: HW | N138: =IF(M138="HW",(L138-K$2)/(K$1-K$2),(L138-K$3)/(K$4-K$3)) -> 1.147826087 | O138: 23:56:00 | P138: =IF(M138="HW",IF(AND(O138>=L$5,O138<L$6),L$5,IF(AND(O138>=L$6,O138<M$5),M$5,IF(AND(O138>=M$5,O138<M$6),M$5,IF(O138>=M$6,L$5+1,L$5)))),IF(AND(O138>=L$7,O138<L$8),L$7,IF(AND(O138>=L$8,O138<M$7),M$7,IF(AND(O138>=M$7,O138<M$8),M$7,IF(O138>=M$8,L$7+1,L$7))))) -> 1 | Q138: =IF(M138="HW",IF(AND(O138>=L$5,O138<L$6),L$6,IF(AND(O138>=L$6,O138<M$5),L$6,IF(AND(O138>=M$5,O138<M$6),M$6,IF(O138>=M$6,M$6,M$6-1)))),IF(AND(O138>=L$7,O138<L$8),L$8,IF(AND(O138>=L$8,O138<M$7),L$8,IF(AND(O138>=M$7,O138<M$8),M$8,IF(O138>=M$8,M$8,M$8-1))))) -> 18:00:00 | R138: 0.9888888889 | S138: 41672.01447 | T138: 7.836521739 | U138: 41672.08044 | V138: 41672.0179 | W138: 7.52173913 | X138: 41671.95556 | Y138: 41671.98673 | Z138: =IF($M138="HW",Y$2+(Y$1-Y$2)*$N138,Y$3+(Y$4-Y$3)*$N138) -> 5.777391304 | AA138: 41671.97631 | AB138: 41671.97639 | AC138: =IF($M138="HW",AB$2+(AB$1-AB$2)*$N138,AB$3+(AB$4-AB$3)*$N138) -> 5.377391304 | AD138: Opn | AE138: 41671.86181 | AF138: 41671.96964 | AG138: =IF($M138="HW",AF$2+(AF$1-AF$2)*$N138,AF$3+(AF$4-AF$3)*$N138) -> 4.762608696 | AH138: 41671.94529 | AI138: =IF($M138="HW",AH$2+(AH$1-AH$2)*$N138,AH$3+(AH$4-AH$3)*$N138) -> 5.047826087 | AJ138: 41672.01451 | AK138: =IF($M138="HW",AJ$2+(AJ$1-AJ$2)*$N138,AJ$3+(AJ$4-AJ$3)*$N138) -> 7.736521739 | AL138: 41672.01454 | AM138: =IF($M138="HW",AL$2+(AL$1-AL$2)*$N138,AL$3+(AL$4-AL$3)*$N138) -> 7.751304348 | AN138: 41672.01103 | AO138: =IF($M138="HW",AN$2+(AN$1-AN$2)*$N138,AN$3+(AN$4-AN$3)*$N138) -> 7.42173913 | AP138: 41672.01115 | AQ138: =IF($M138="HW",AP$2+(AP$1-AP$2)*$N138,AP$3+(AP$4-AP$3)*$N138) -> 6.82173913 | AR138: 41671.98681 | AS138: 41672.00764 | AT138: 41671.96613 | AU138: =IF($M138="HW",AT$2+(AT$1-AT$2)*$N138,AT$3+(AT$4-AT$3)*$N138) -> 5.377391304 | AV138: 41671.96613 | AW138: =IF($M138="HW",AV$2+(AV$1-AV$2)*$N138,AV$3+(AV$4-AV$3)*$N138) -> 5.177391304 | AX138: 41671.94525 | AY138: =IF($M138="HW",AX$2+(AX$1-AX$2)*$N138,AX$3+(AX$4-AX$3)*$N138) -> 4.992173913 | AZ138: 41671.94178 | BA138: =IF($M138="HW",AZ$2+(AZ$1-AZ$2)*$N138,AZ$3+(AZ$4-AZ$3)*$N138) -> 4.777391304 | BB138: 41671.93831 | BC138: =IF($M138="HW",BB$2+(BB$1-BB$2)*$N138,BB$3+(BB$4-BB$3)*$N138) -> 4.662608696 | BD138: 41671.89985 | BE138: =IF($M138="HW",BD$2+(BD$1-BD$2)*$N138,BD$3+(BD$4-BD$3)*$N138) -> 4.577391304 | BF138: 41671.98681 | BH138: 41672.03889 | BI138: 41672.02847
A139: 0 | B139: =IF(Instructions!$C$2="BST",A139,0) -> 0 | C139: 2018-02-03T05:57:00 | D139: 2018-02-03 | E139: =IF(D139=D138,IF(J138="","",J138),D139) -> 2018-02-03 | F139: =MONTH(D139) -> 2 | G139: =IF(H139="","",TEXT(F139*29,"mmm")) -> Feb | H139: =IF(I139=I138,"",DAY(K139)) -> 3 | I139: 6 | J139: =IF(I139=I138,"",TEXT(I139+2,"ddd")) -> Sat | K139: =C139+B139/24 -> 41672.24792 | L139: 0.55 | M139: LW | N139: 1.122137405 | O139: =C139-INT(C139) -> 05:57:00 | P139: 05:00:00 | Q139: 11:00:00 | R139: =ABS((O139-Q139)/(P139-Q139)) -> 0.8416666667 | S139: 41672.28391 | T139: =IF($M139="HW",S$2+(S$1-S$2)*$N139,S$3+(S$4-S$3)*$N139) -> 0.5923664122 | U139: 41672.34988 | V139: 41672.25761 | W139: =IF($M139="HW",V$2+(V$1-V$2)*$N139,V$3+(V$4-V$3)*$N139) -> 0.5045801527 | X139: 41672.20625 | Y139: 41672.26545 | Z139: 0.6534351145 | AA139: 41672.21997 | AB139: =IF($M139="HW",$K139+AB$6+(AB$5-AB$6)*$R139,$K139+AB$8+(AB$7-AB$8)*$R139) -> 41672.25613 | AC139: 0.441221374 | AD139: =IF($M139="HW","Opn","Cls") -> Cls | AE139: 41672.09097 | AF139: =IF($M139="HW",$K139+AF$6+(AF$5-AF$6)*$R139,$K139+AF$8+(AF$7-AF$8)*$R139) -> 41672.23275 | AG139: 0.4534351145 | AH139: =IF($M139="HW",$K139+AH$6+(AH$5-AH$6)*$R139,$K139+AH$8+(AH$7-AH$8)*$R139) -> 41672.22818 | AI139: 0.5534351145 | AJ139: =IF($M139="HW",$K139+AJ$6+(AJ$5-AJ$6)*$R139,$K139+AJ$8+(AJ$7-AJ$8)*$R139) -> 41672.28099 | AK139: 0.7045801527 | AL139: =IF($M139="HW",$K139+AL$6+(AL$5-AL$6)*$R139,$K139+AL$8+(AL$7-AL$8)*$R139) -> 41672.28099 | AM139: 0.7045801527 | AN139: =IF($M139="HW",$K139+AN$6+(AN$5-AN$6)*$R139,$K139+AN$8+(AN$7-AN$8)*$R139) -> 41672.27112 | AO139: 0.7045801527 | AP139: =IF($M139="HW",$K139+AP$6+(AP$5-AP$6)*$R139,$K139+AP$8+(AP$7-AP$8)*$R139) -> 41672.27514 | AQ139: 0.6167938931 | AR139: 41672.2375 | AS139: 41672.26181 | AT139: =IF($M139="HW",$K139+AT$6+(AT$5-AT$6)*$R139,$K139+AT$8+(AT$7-AT$8)*$R139) -> 41672.2375 | AU139: 0.6534351145 | AV139: =IF($M139="HW",$K139+AV$6+(AV$5-AV$6)*$R139,$K139+AV$8+(AV$7-AV$8)*$R139) -> 41672.24334 | AW139: 0.541221374 | AX139: =IF($M139="HW",$K139+AX$6+(AX$5-AX$6)*$R139,$K139+AX$8+(AX$7-AX$8)*$R139) -> 41672.22818 | AY139: 0.4534351145 | AZ139: =IF($M139="HW",$K139+AZ$6+(AZ$5-AZ$6)*$R139,$K139+AZ$8+(AZ$7-AZ$8)*$R139) -> 41672.22471 | BA139: 0.341221374 | BB139: =IF($M139="HW",$K139+BB$6+(BB$5-BB$6)*$R139,$K139+BB$8+(BB$7-BB$8)*$R139) -> 41672.22069 | BC139: 0.441221374 | BD139: =IF($M139="HW",$K139+BD$6+(BD$5-BD$6)*$R139,$K139+BD$8+(BD$7-BD$8)*$R139) -> 41672.17555 | BE139: 0.4900763359 | BF139: 41672.27222 | BH139: 41672.28958 | BI139: 41672.27917
A140: 0 | B140: =IF(Instructions!$C$2="BST",A140,0) -> 0 | C140: 2018-02-03T12:14:00 | D140: 2018-02-03 | E140: =IF(D140=D139,IF(J139="","",J139),D140) -> Sat | F140: 2 | G140: =IF(H140="","",TEXT(F140*29,"mmm")) ->  | H140: =IF(I140=I139,"",DAY(K140)) ->  | I140: 6 | J140: =IF(I140=I139,"",TEXT(I140+2,"ddd")) ->  | K140: 41672.50972 | L140: 6.04 | M140: HW | N140: 1.347826087 | O140: 12:14:00 | P140: 12:00:00 | Q140: 18:00:00 | R140: 0.9611111111 | S140: 41672.52668 | T140: 8.156521739 | U140: 41672.59265 | V140: 41672.53002 | W140: 7.82173913 | X140: 41672.46806 | Y140: 41672.49904 | Z140: 6.017391304 | AA140: =IF($M140="HW",$K140+AA$6+(AA$5-AA$6)*$R140,$K140+AA$8+(AA$7-AA$8)*$R140) -> 41672.48862 | AB140: 41672.48889 | AC140: 5.617391304 | AD140: Opn | AE140: =IF($M140="HW",$AB140-AD$8,$AB139+AD$8) -> 41672.37431 | AF140: 41672.48262 | AG140: 4.982608696 | AH140: 41672.45818 | AI140: 5.247826087 | AJ140: 41672.52681 | AK140: 8.056521739 | AL140: 41672.52695 | AM140: 8.091304348 | AN140: 41672.52334 | AO140: 7.72173913 | AP140: 41672.52375 | AQ140: 7.12173913 | AR140: 41672.49931 | AS140: 41672.52014 | AT140: 41672.47901 | AU140: 5.617391304 | AV140: 41672.47901 | AW140: 5.417391304 | AX140: 41672.45804 | AY140: 5.252173913 | AZ140: 41672.45457 | BA140: 5.017391304 | BB140: 41672.4511 | BC140: 4.882608696 | BD140: 41672.41196 | BE140: 4.817391304 | BF140: 41672.49931 | BH140: 41672.55139 | BI140: 41672.54097
A141: 0 | B141: =IF(Instructions!$C$2="BST",A141,0) -> 0 | C141: 2018-02-03T18:28:00 | D141: =DATE(YEAR(K141),MONTH(K141),DAY(K141)) -> 2018-02-03 | F141: 2 | I141: 6 | K141: 41672.76944 | L141: 0.37 | M141: LW | N141: 1.259541985 | O141: 18:28:00 | P141: 17:00:00 | Q141: 23:00:00 | R141: 0.7555555556 | S141: 41672.80424 | T141: 0.358778626 | U141: 41672.87022 | V141: 41672.78063 | W141: 0.2847328244 | X141: 41672.72778 | Y141: 41672.78519 | Z141: 0.4885496183 | AA141: 41672.74329 | AB141: 41672.77647 | AC141: 0.2625954198 | AD141: Cls | AE141: 41672.60347 | AF141: 41672.75548 | AG141: 0.2885496183 | AH141: 41672.75031 | AI141: 0.3885496183 | AJ141: 41672.80162 | AK141: 0.4847328244 | AL141: 41672.80162 | AM141: 0.4847328244 | AN141: 41672.79205 | AO141: 0.4847328244 | AP141: 41672.79637 | AQ141: 0.4106870229 | AR141: 41672.75903 | AS141: 41672.78333 | AT141: 41672.75903 | AU141: 0.4885496183 | AV141: 41672.76427 | AW141: 0.3625954198 | AX141: 41672.75031 | AY141: 0.2885496183 | AZ141: 41672.74684 | BA141: 0.1625954198 | BB141: 41672.74252 | BC141: 0.2625954198 | BD141: 41672.69738 | BE141: 0.3664122137 | BF141: 41672.79375 | BH141: 41672.81111 | BI141: 41672.80069
A142: 0 | B142: =IF(Instructions!$C$2="BST",A142,0) -> 0 | C142: 2018-02-04T00:41:00 | D142: 2018-02-04 | E142: 2018-02-04 | F142: 2 | G142: Feb | H142: 4 | I142: 7 | J142: Sun | K142: 41673.02847 | L142: 5.64 | M142: HW | N142: 1 | O142: 00:41:00 | P142: 00:00:00 | Q142: 06:00:00 | R142: 0.8861111111 | S142: 41673.04465 | T142: 7.6 | U142: 41673.11062 | V142: 41673.04772 | W142: 7.3 | X142: 41672.98681 | Y142: 41673.01726 | Z142: 5.6 | AA142: 41673.00685 | AB142: 41673.00764 | AC142: 5.2 | AD142: Opn | AE142: 41672.89306 | AF142: 41673.00267 | AG142: 4.6 | AH142: 41672.97797 | AI142: 4.9 | AJ142: 41673.04504 | AK142: 7.5 | AL142: 41673.04544 | AM142: 7.5 | AN142: 41673.04157 | AO142: 7.2 | AP142: 41673.04276 | AQ142: 6.6 | AR142: 41673.01806 | AS142: 41673.03889 | AT142: 41672.9988 | AU142: 5.2 | AV142: 41672.9988 | AW142: 5 | AX142: 41672.97758 | AY142: 4.8 | AZ142: 41672.9741 | BA142: 4.6 | BB142: 41672.97063 | BC142: 4.5 | BD142: 41672.92967 | BE142: 4.4 | BF142: 41673.01806 | BH142: 41673.07014 | BI142: 41673.05972
A143: 0 | B143: =IF(Instructions!$C$2="BST",A143,0) -> 0 | C143: 2018-02-04T06:41:00 | D143: 2018-02-04 | E143: Sun | F143: 2 | G143: =IF(H143="","",TEXT(F143*29,"mmm")) ->  | H143: =IF(I143=I142,"",DAY(K143)) ->  | I143: 7 | J143: =IF(I143=I142,"",TEXT(I143+2,"ddd")) ->  | K143: 41673.27847 | L143: 0.73 | M143: LW | N143: 0.9847328244 | O143: 06:41:00 | P143: 05:00:00 | Q143: 11:00:00 | R143: 0.7194444445 | S143: =IF($M143="HW",$K143+S$6+(S$5-S$6)*$R143,$K143+S$8+(S$7-S$8)*$R143) -> 41673.31277 | T143: 0.8259541985 | U143: 41673.37874 | V143: 41673.29029 | W143: 0.7244274809 | X143: =IF($M143="HW",$K143+X$6+(X$5-X$6)*$R143,$K143+X$8+(X$7-X$8)*$R143) -> 41673.23681 | Y143: 41673.29346 | Z143: 0.8183206107 | AA143: 41673.25307 | AB143: 41673.28499 | AC143: 0.6198473282 | AD143: Cls | AE143: 41673.12222 | AF143: 41673.26501 | AG143: 0.6183206107 | AH143: 41673.25959 | AI143: 0.7183206107 | AJ143: 41673.31027 | AK143: 0.9244274809 | AL143: 41673.31027 | AM143: 0.9244274809 | AN143: 41673.30083 | AO143: 0.9244274809 | AP143: 41673.30528 | AQ143: 0.8229007634 | AR143: =IF($M143="HW",$K143+AR$6+(AR$5-AR$6)*$R143,$K143+AR$8+(AR$7-AR$8)*$R143) -> 41673.26806 | AS143: 41673.29236 | AT143: 41673.26806 | AU143: 0.8183206107 | AV143: 41673.27305 | AW143: 0.7198473282 | AX143: 41673.25959 | AY143: 0.6183206107 | AZ143: 41673.25611 | BA143: 0.5198473282 | BB143: 41673.25167 | BC143: 0.6198473282 | BD143: 41673.20653 | BE143: 0.613740458 | BF143: =IF($M143="HW",$K143+BF$6+(BF$5-BF$6)*$R143,$K143+BF$8+(BF$7-BF$8)*$R143) -> 41673.30278 | BH143: 41673.32014 | BI143: 41673.30972
A144: 0 | B144: =IF(Instructions!$C$2="BST",A144,0) -> 0 | C144: 2018-02-04T12:58:00 | D144: 2018-02-04 | F144: 2 | G144: =IF(H144="","",TEXT(F144*29,"mmm")) ->  | H144: =IF(I144=I143,"",DAY(K144)) ->  | I144: 7 | J144: =IF(I144=I143,"",TEXT(I144+2,"ddd")) ->  | K144: 41673.54028 | L144: 5.86 | M144: HW | N144: 1.191304348 | O144: 12:58:00 | P144: 12:00:00 | Q144: 18:00:00 | R144: 0.8388888889 | S144: 41673.55596 | T144: 7.906086957 | U144: 41673.62193 | V144: 41673.55887 | W144: 7.586956522 | X144: 41673.49861 | Y144: 41673.52874 | Z144: 5.829565217 | AA144: 41673.51833 | AB144: 41673.51944 | AC144: 5.429565217 | AD144: Opn | AE144: 41673.40486 | AF144: 41673.5153 | AG144: 4.810434783 | AH144: 41673.49043 | AI144: 5.091304348 | AJ144: 41673.55652 | AK144: 7.806086957 | AL144: 41673.55708 | AM144: 7.825217391 | AN144: 41673.55305 | AO144: 7.486956522 | AP144: 41673.55473 | AQ144: 6.886956522 | AR144: 41673.52986 | AS144: 41673.55069 | AT144: 41673.51127 | AU144: 5.429565217 | AV144: 41673.51127 | AW144: 5.229565217 | AX144: 41673.48987 | AY144: 5.048695652 | AZ144: 41673.4864 | BA144: 4.829565217 | BB144: 41673.48293 | BC144: 4.710434783 | BD144: 41673.44082 | BE144: 4.629565217 | BF144: 41673.52986 | BH144: 41673.58194 | BI144: 41673.57153
A145: 0 | B145: =IF(Instructions!$C$2="BST",A145,0) -> 0 | C145: 2018-02-04T19:14:00 | D145: 2018-02-04 | E145: =IF(D145=D144,IF(J144="","",J144),D145) ->  | F145: 2 | I145: 7 | K145: 41673.80139 | L145: 0.61 | M145: LW | N145: 1.076335878 | O145: 19:14:00 | P145: 17:00:00 | Q145: 23:00:00 | R145: 0.6277777778 | S145: 41673.83441 | T145: 0.6702290076 | U145: 41673.90039 | V145: 41673.8148 | W145: 0.5778625954 | X145: 41673.75972 | Y145: 41673.81447 | Z145: 0.7083969466 | AA145: 41673.77789 | AB145: 41673.80664 | AC145: 0.5007633588 | AD145: Cls | AE145: 41673.63403 | AF145: 41673.7892 | AG145: 0.5083969466 | AH145: 41673.78314 | AI145: 0.6083969466 | AJ145: 41673.83223 | AK145: 0.7778625954 | AL145: 41673.83223 | AM145: 0.7778625954 | AN145: 41673.82311 | AO145: 0.7778625954 | AP145: 41673.82787 | AQ145: 0.6854961832 | AR145: 41673.79097 | AS145: 41673.81528 | AT145: 41673.79097 | AU145: 0.7083969466 | AV145: 41673.79533 | AW145: 0.6007633588 | AX145: 41673.78314 | AY145: 0.5083969466 | AZ145: 41673.77967 | BA145: 0.4007633588 | BB145: 41673.7749 | BC145: 0.5007633588 | BD145: 41673.72976 | BE145: 0.5312977099 | BF145: 41673.82569 | BH145: 41673.84306 | BI145: 41673.83264
A146: 0 | B146: =IF(Instructions!$C$2="BST",A146,0) -> 0 | C146: 2018-02-05T01:25:00 | D146: 2018-02-05 | E146: 2018-02-05 | F146: 2 | G146: Feb | H146: 5 | I146: 1 | J146: Mon | K146: 41674.05903 | L146: 5.39 | M146: HW | N146: 0.7826086957 | O146: 01:25:00 | P146: 00:00:00 | Q146: 06:00:00 | R146: 0.7638888889 | S146: 41674.07393 | T146: 7.252173913 | U146: 41674.1399 | V146: 41674.07658 | W146: 6.973913043 | X146: 41674.01736 | Y146: 41674.04697 | Z146: 5.339130435 | AA146: 41674.03655 | AB146: 41674.03819 | AC146: 4.939130435 | AD146: Opn | AE146: 41673.92361 | AF146: 41674.03535 | AG146: 4.360869565 | AH146: 41674.01022 | AI146: 4.682608696 | AJ146: 41674.07475 | AK146: 7.152173913 | AL146: 41674.07557 | AM146: 7.130434783 | AN146: 41674.07128 | AO146: 6.873913043 | AP146: 41674.07374 | AQ146: 6.273913043 | AR146: 41674.04861 | AS146: 41674.06944 | AT146: 41674.03106 | AU146: 4.939130435 | AV146: 41674.03106 | AW146: 4.739130435 | AX146: 41674.0094 | AY146: 4.517391304 | AZ146: 41674.00593 | BA146: 4.339130435 | BB146: 41674.00246 | BC146: 4.260869565 | BD146: 41673.95853 | BE146: 4.139130435 | BF146: 41674.04861 | BH146: 41674.10069 | BI146: 41674.09028
A147: 0 | B147: =IF(Instructions!$C$2="BST",A147,0) -> 0 | C147: 2018-02-05T07:26:00 | D147: 2018-02-05 | E147: =IF(D147=D146,IF(J146="","",J146),D147) -> Mon | F147: 2 | G147: =IF(H147="","",TEXT(F147*29,"mmm")) ->  | H147: =IF(I147=I146,"",DAY(K147)) ->  | I147: 1 | J147: =IF(I147=I146,"",TEXT(I147+2,"ddd")) ->  | K147: 41674.30972 | L147: 0.99 | M147: LW | N147: 0.786259542 | O147: 07:26:00 | P147: 05:00:00 | Q147: 11:00:00 | R147: 0.5944444445 | S147: 41674.34228 | T147: 1.163358779 | U147: 41674.40826 | V147: 41674.32371 | W147: 1.041984733 | X147: 41674.26806 | Y147: 41674.32211 | Z147: 1.05648855 | AA147: 41674.28692 | AB147: 41674.31451 | AC147: 0.8778625954 | AD147: Cls | AE147: 41674.15278 | AF147: 41674.29799 | AG147: 0.8564885496 | AH147: 41674.29171 | AI147: 0.9564885496 | AJ147: 41674.34022 | AK147: 1.241984733 | AL147: 41674.34022 | AM147: 1.241984733 | AN147: 41674.33121 | AO147: 1.241984733 | AP147: 41674.33609 | AQ147: 1.120610687 | AR147: 41674.29931 | AS147: 41674.32361 | AT147: 41674.29931 | AU147: 1.05648855 | AV147: 41674.30343 | AW147: 0.9778625954 | AX147: 41674.29171 | AY147: 0.8564885496 | AZ147: 41674.28823 | BA147: 0.7778625954 | BB147: 41674.28335 | BC147: 0.8778625954 | BD147: 41674.23821 | BE147: 0.7923664122 | BF147: 41674.33403 | BH147: 41674.35139 | BI147: 41674.34097
A148: 0 | B148: =IF(Instructions!$C$2="BST",A148,0) -> 0 | C148: 2018-02-05T13:42:00 | D148: 2018-02-05 | F148: 2 | G148: =IF(H148="","",TEXT(F148*29,"mmm")) ->  | H148: =IF(I148=I147,"",DAY(K148)) ->  | I148: 1 | J148: =IF(I148=I147,"",TEXT(I148+2,"ddd")) ->  | K148: 41674.57083 | L148: 5.58 | M148: HW | N148: 0.947826087 | O148: 13:42:00 | P148: 12:00:00 | Q148: 18:00:00 | R148: 0.7166666667 | S148: 41674.58524 | T148: 7.516521739 | U148: 41674.65122 | V148: 41674.58773 | W148: 7.22173913 | X148: 41674.52917 | Y148: 41674.55845 | Z148: 5.537391304 | AA148: 41674.54803 | AB148: 41674.55 | AC148: 5.137391304 | AD148: Opn | AE148: 41674.43542 | AF148: 41674.54797 | AG148: 4.542608696 | AH148: 41674.52269 | AI148: 4.847826087 | AJ148: 41674.58623 | AK148: 7.416521739 | AL148: 41674.58721 | AM148: 7.411304348 | AN148: 41674.58275 | AO148: 7.12173913 | AP148: 41674.58571 | AQ148: 6.52173913 | AR148: 41674.56042 | AS148: 41674.58125 | AT148: 41674.54352 | AU148: 5.137391304 | AV148: 41674.54352 | AW148: 4.937391304 | AX148: 41674.5217 | AY148: 4.732173913 | AZ148: 41674.51823 | BA148: 4.537391304 | BB148: 41674.51476 | BC148: 4.442608696 | BD148: 41674.46968 | BE148: 4.337391304 | BF148: 41674.56042 | BH148: 41674.6125 | BI148: 41674.60208
A149: 0 | B149: =IF(Instructions!$C$2="BST",A149,0) -> 0 | C149: 2018-02-05T20:00:00 | D149: 2018-02-05 | F149: 2 | I149: 1 | K149: 41674.83333 | L149: 0.95 | M149: LW | N149: 0.8167938931 | O149: 20:00:00 | P149: 17:00:00 | Q149: 23:00:00 | R149: 0.5 | S149: 41674.86458 | T149: 1.111450382 | U149: 41674.93056 | V149: 41674.84896 | W149: 0.993129771 | X149: 41674.79167 | Y149: 41674.84375 | Z149: 1.019847328 | AA149: 41674.8125 | AB149: 41674.83681 | AC149: 0.8381679389 | AD149: Cls | AE149: 41674.66458 | AF149: 41674.82292 | AG149: 0.8198473282 | AH149: 41674.81597 | AI149: 0.9198473282 | AJ149: 41674.86285 | AK149: 1.193129771 | AL149: 41674.86285 | AM149: 1.193129771 | AN149: 41674.85417 | AO149: 1.193129771 | AP149: 41674.85938 | AQ149: 1.07480916 | AR149: 41674.82292 | AS149: 41674.84722 | AT149: 41674.82292 | AU149: 1.019847328 | AV149: 41674.82639 | AW149: 0.9381679389 | AX149: 41674.81597 | AY149: 0.8198473282 | AZ149: 41674.8125 | BA149: 0.7381679389 | BB149: 41674.80729 | BC149: 0.8381679389 | BD149: 41674.76215 | BE149: 0.7648854962 | BF149: 41674.85764 | BH149: 41674.875 | BI149: 41674.86458
A150: 0 | B150: =IF(Instructions!$C$2="BST",A150,0) -> 0 | C150: 2018-02-06T02:10:00 | D150: 2018-02-06 | E150: 2018-02-06 | F150: 2 | G150: Feb | H150: 6 | I150: 2 | J150: Tue | K150: 41675.09028 | L150: 5.1 | M150: HW | N150: 0.5304347826 | O150: 02:10:00 | P150: 00:00:00 | Q150: 06:00:00 | R150: 0.6388888889 | S150: 41675.10388 | T150: 6.848695652 | U150: 41675.16985 | V150: 41675.1061 | W150: 6.595652174 | X150: 41675.04861 | Y150: 41675.07735 | Z150: 5.036521739 | AA150: 41675.06694 | AB150: 41675.06944 | AC150: 4.636521739 | AD150: Opn | AE150: 41674.95486 | AF150: 41675.06877 | AG150: 4.083478261 | AH150: 41675.04321 | AI150: 4.430434783 | AJ150: 41675.10513 | AK150: 6.748695652 | AL150: 41675.10639 | AM150: 6.70173913 | AN150: 41675.10166 | AO150: 6.495652174 | AP150: 41675.10542 | AQ150: 5.895652174 | AR150: 41675.07986 | AS150: 41675.10069 | AT150: 41675.06404 | AU150: 4.636521739 | AV150: 41675.06404 | AW150: 4.436521739 | AX150: 41675.04196 | AY150: 4.189565217 | AZ150: 41675.03848 | BA150: 4.036521739 | BB150: 41675.03501 | BC150: 3.983478261 | BD150: 41674.98804 | BE150: 3.836521739 | BF150: 41675.07986 | BH150: 41675.13194 | BI150: 41675.12153
A151: 0 | B151: =IF(Instructions!$C$2="BST",A151,0) -> 0 | C151: 2018-02-06T08:12:00 | D151: 2018-02-06 | E151: Tue | F151: 2 | G151: =IF(H151="","",TEXT(F151*29,"mmm")) ->  | H151: =IF(I151=I150,"",DAY(K151)) ->  | I151: 2 | J151: =IF(I151=I150,"",TEXT(I151+2,"ddd")) ->  | K151: 41675.34167 | L151: 1.32 | M151: LW | N151: 0.534351145 | O151: 08:12:00 | P151: 05:00:00 | Q151: 11:00:00 | R151: 0.4666666667 | S151: 41675.37245 | T151: 1.591603053 | U151: 41675.43843 | V151: 41675.35787 | W151: 1.445038168 | X151: 41675.3 | Y151: 41675.35139 | Z151: 1.358778626 | AA151: 41675.32153 | AB151: 41675.34468 | AC151: 1.205343511 | AD151: Cls | AE151: 41675.18403 | AF151: 41675.33171 | AG151: 1.158778626 | AH151: 41675.32454 | AI151: 1.258778626 | AJ151: 41675.37083 | AK151: 1.645038168 | AL151: 41675.37083 | AM151: 1.645038168 | AN151: 41675.36227 | AO151: 1.645038168 | AP151: 41675.36759 | AQ151: 1.498473282 | AR151: 41675.33125 | AS151: 41675.35556 | AT151: 41675.33125 | AU151: 1.358778626 | AV151: 41675.33449 | AW151: 1.305343511 | AX151: 41675.32454 | AY151: 1.158778626 | AZ151: 41675.32106 | BA151: 1.105343511 | BB151: 41675.31574 | BC151: 1.205343511 | BD151: 41675.2706 | BE151: 1.019083969 | BF151: 41675.36597 | BH151: 41675.38333 | BI151: 41675.37292
A152: 0 | B152: =IF(Instructions!$C$2="BST",A152,0) -> 0 | C152: 2018-02-06T14:28:00 | D152: 2018-02-06 | F152: 2 | G152: =IF(H152="","",TEXT(F152*29,"mmm")) ->  | H152: =IF(I152=I151,"",DAY(K152)) ->  | I152: 2 | J152: =IF(I152=I151,"",TEXT(I152+2,"ddd")) ->  | K152: 41675.60278 | L152: 5.25 | M152: HW | N152: 0.6608695652 | O152: 14:28:00 | P152: 12:00:00 | Q152: 18:00:00 | R152: 0.5888888889 | S152: 41675.61586 | T152: 7.057391304 | U152: 41675.68183 | V152: 41675.6179 | W152: 6.791304348 | X152: 41675.56111 | Y152: 41675.58951 | Z152: 5.193043478 | AA152: 41675.57909 | AB152: 41675.58194 | AC152: 4.793043478 | AD152: Opn | AE152: 41675.46736 | AF152: 41675.58214 | AG152: 4.226956522 | AH152: 41675.5564 | AI152: 4.560869565 | AJ152: 41675.61728 | AK152: 6.957391304 | AL152: 41675.61871 | AM152: 6.923478261 | AN152: 41675.61381 | AO152: 6.691304348 | AP152: 41675.61809 | AQ152: 6.091304348 | AR152: 41675.59236 | AS152: 41675.61319 | AT152: 41675.57724 | AU152: 4.793043478 | AV152: 41675.57724 | AW152: 4.593043478 | AX152: 41675.55498 | AY152: 4.359130435 | AZ152: 41675.5515 | BA152: 4.193043478 | BB152: 41675.54803 | BC152: 4.126956522 | BD152: 41675.49985 | BE152: 3.993043478 | BF152: 41675.59236 | BH152: 41675.64444 | BI152: 41675.63403
A153: 0 | B153: =IF(Instructions!$C$2="BST",A153,0) -> 0 | C153: 2018-02-06T20:49:00 | D153: 2018-02-06 | E153: =IF(D153=D152,IF(J152="","",J152),D153) ->  | F153: 2 | I153: 2 | K153: 41675.86736 | L153: 1.33 | M153: LW | N153: 0.5267175573 | O153: 20:49:00 | P153: 17:00:00 | Q153: 23:00:00 | R153: 0.3638888889 | S153: 41675.89672 | T153: 1.604580153 | U153: 41675.96269 | V153: 41675.88535 | W153: 1.457251908 | X153: 41675.82569 | Y153: 41675.87494 | Z153: 1.367938931 | AA153: 41675.84936 | AB153: 41675.86894 | AC153: 1.215267176 | AD153: Cls | AE153: 41675.69653 | AF153: 41675.85883 | AG153: 1.167938931 | AH153: 41675.85095 | AI153: 1.267938931 | AJ153: 41675.89546 | AK153: 1.657251908 | AL153: 41675.89546 | AM153: 1.657251908 | AN153: 41675.88725 | AO153: 1.657251908 | AP153: 41675.89293 | AQ153: 1.509923664 | AR153: 41675.85694 | AS153: 41675.88125 | AT153: 41675.85694 | AU153: 1.367938931 | AV153: 41675.85947 | AW153: 1.315267176 | AX153: 41675.85095 | AY153: 1.167938931 | AZ153: 41675.84747 | BA153: 1.115267176 | BB153: 41675.84179 | BC153: 1.215267176 | BD153: 41675.79665 | BE153: 1.025954198 | BF153: 41675.89167 | BH153: 41675.90903 | BI153: 41675.89861
A154: 0 | B154: =IF(Instructions!$C$2="BST",A154,0) -> 0 | C154: 2018-02-07T02:58:00 | D154: 2018-02-07 | E154: 2018-02-07 | F154: 2 | G154: Feb | H154: 7 | I154: 3 | J154: Wed | K154: 41676.12361 | L154: 4.8 | M154: HW | N154: 0.2695652174 | O154: 02:58:00 | P154: 00:00:00 | Q154: 06:00:00 | R154: 0.5055555555 | S154: 41676.13582 | T154: 6.431304348 | U154: 41676.20179 | V154: 41676.13758 | W154: 6.204347826 | X154: 41676.08194 | Y154: 41676.10976 | Z154: 4.723478261 | AA154: 41676.09934 | AB154: 41676.10278 | AC154: 4.323478261 | AD154: Opn | AE154: 41675.98819 | AF154: 41676.10442 | AG154: 3.796521739 | AH154: 41676.0784 | AI154: 4.169565217 | AJ154: 41676.13754 | AK154: 6.331304348 | AL154: 41676.13926 | AM154: 6.25826087 | AN154: 41676.13407 | AO154: 6.104347826 | AP154: 41676.13922 | AQ154: 5.504347826 | AR154: 41676.11319 | AS154: 41676.13403 | AT154: 41676.09923 | AU154: 4.323478261 | AV154: 41676.09923 | AW154: 4.123478261 | AX154: 41676.07668 | AY154: 3.850434783 | AZ154: 41676.07321 | BA154: 3.723478261 | BB154: 41676.06973 | BC154: 3.696521739 | BD154: 41676.01952 | BE154: 3.523478261 | BF154: 41676.11319 | BH154: 41676.16528 | BI154: 41676.15486
A155: 0 | B155: =IF(Instructions!$C$2="BST",A155,0) -> 0 | C155: 2018-02-07T09:01:00 | D155: 2018-02-07 | E155: =IF(D155=D154,IF(J154="","",J154),D155) -> Wed | F155: 2 | G155: =IF(H155="","",TEXT(F155*29,"mmm")) ->  | H155: =IF(I155=I154,"",DAY(K155)) ->  | I155: 3 | J155: =IF(I155=I154,"",TEXT(I155+2,"ddd")) ->  | K155: 41676.37569 | L155: 1.68 | M155: LW | N155: 0.2595419847 | O155: 09:01:00 | P155: 05:00:00 | Q155: 11:00:00 | R155: 0.3305555555 | S155: 41676.40459 | T155: 2.058778626 | U155: 41676.47056 | V155: 41676.39426 | W155: 1.884732824 | X155: 41676.33403 | Y155: 41676.38258 | Z155: 1.688549618 | AA155: 41676.35839 | AB155: 41676.37681 | AC155: 1.56259542 | AD155: Cls | AE155: 41676.21736 | AF155: 41676.36763 | AG155: 1.488549618 | AH155: 41676.35951 | AI155: 1.588549618 | AJ155: 41676.40344 | AK155: 2.084732824 | AL155: 41676.40344 | AM155: 2.084732824 | AN155: 41676.39535 | AO155: 2.084732824 | AP155: 41676.40115 | AQ155: 1.910687023 | AR155: 41676.36528 | AS155: 41676.38958 | AT155: 41676.36528 | AU155: 1.688549618 | AV155: 41676.36757 | AW155: 1.66259542 | AX155: 41676.35951 | AY155: 1.488549618 | AZ155: 41676.35604 | BA155: 1.46259542 | BB155: 41676.35024 | BC155: 1.56259542 | BD155: 41676.3051 | BE155: 1.266412214 | BF155: 41676.4 | BH155: 41676.41736 | BI155: 41676.40694
A156: 0 | B156: =IF(Instructions!$C$2="BST",A156,0) -> 0 | C156: 2018-02-07T15:18:00 | D156: 2018-02-07 | F156: 2 | G156: =IF(H156="","",TEXT(F156*29,"mmm")) ->  | H156: =IF(I156=I155,"",DAY(K156)) ->  | I156: 3 | J156: =IF(I156=I155,"",TEXT(I156+2,"ddd")) ->  | K156: 41676.6375 | L156: 4.9 | M156: HW | N156: 0.3565217391 | O156: 15:18:00 | P156: 12:00:00 | Q156: 18:00:00 | R156: 0.45 | S156: 41676.64913 | T156: 6.570434783 | U156: 41676.7151 | V156: 41676.65069 | W156: 6.334782609 | X156: 41676.59583 | Y156: 41676.62326 | Z156: 4.827826087 | AA156: 41676.61285 | AB156: 41676.61667 | AC156: 4.427826087 | AD156: Opn | AE156: 41676.50208 | AF156: 41676.61927 | AG156: 3.892173913 | AH156: 41676.59306 | AI156: 4.256521739 | AJ156: 41676.65104 | AK156: 6.470434783 | AL156: 41676.65295 | AM156: 6.406086957 | AN156: 41676.64757 | AO156: 6.234782609 | AP156: 41676.6533 | AQ156: 5.634782609 | AR156: 41676.62708 | AS156: 41676.64792 | AT156: 41676.61389 | AU156: 4.427826087 | AV156: 41676.61389 | AW156: 4.227826087 | AX156: 41676.59115 | AY156: 3.963478261 | AZ156: 41676.58767 | BA156: 3.827826087 | BB156: 41676.5842 | BC156: 3.792173913 | BD156: 41676.53264 | BE156: 3.627826087 | BF156: 41676.62708 | BH156: 41676.67917 | BI156: 41676.66875
A157: 0 | B157: =IF(Instructions!$C$2="BST",A157,0) -> 0 | C157: 2018-02-07T21:43:00 | D157: 2018-02-07 | F157: 2 | I157: 3 | K157: 41676.90486 | L157: 1.71 | M157: LW | N157: 0.2366412214 | O157: 21:43:00 | P157: 17:00:00 | Q157: 23:00:00 | R157: 0.2138888889 | S157: 41676.93214 | T157: 2.097709924 | U157: 41676.99811 | V157: 41676.92545 | W157: 1.921374046 | X157: 41676.86319 | Y157: 41676.90932 | Z157: 1.716030534 | AA157: 41676.88999 | AB157: 41676.90436 | AC157: 1.592366412 | AD157: Cls | AE157: 41676.73125 | AF157: 41676.89842 | AG157: 1.516030534 | AH157: 41676.88949 | AI157: 1.616030534 | AJ157: 41676.93139 | AK157: 2.121374046 | AL157: 41676.93139 | AM157: 2.121374046 | AN157: 41676.92371 | AO157: 2.121374046 | AP157: 41676.92991 | AQ157: 1.945038168 | AR157: 41676.89444 | AS157: 41676.91875 | AT157: 41676.89444 | AU157: 1.716030534 | AV157: 41676.89593 | AW157: 1.692366412 | AX157: 41676.88949 | AY157: 1.516030534 | AZ157: 41676.88601 | BA157: 1.492366412 | BB157: 41676.87981 | BC157: 1.592366412 | BD157: 41676.83467 | BE157: 1.287022901 | BF157: 41676.92917 | BH157: 41676.94653 | BI157: 41676.93611
A158: 0 | B158: =IF(Instructions!$C$2="BST",A158,0) -> 0 | C158: 2018-02-08T03:52:00 | D158: 2018-02-08 | E158: 2018-02-08 | F158: 2 | G158: Feb | H158: 8 | I158: 4 | J158: Thu | K158: 41677.16111 | L158: 4.54 | M158: HW | N158: 0.04347826087 | O158: 03:52:00 | P158: 00:00:00 | Q158: 06:00:00 | R158: 0.3555555556 | S158: 41677.17176 | T158: 6.069565217 | U158: 41677.23773 | V158: 41677.17299 | W158: 5.865217391 | X158: 41677.11944 | Y158: 41677.14622 | Z158: 4.452173913 | AA158: 41677.1358 | AB158: 41677.14028 | AC158: 4.052173913 | AD158: Opn | AE158: 41677.02569 | AF158: 41677.14452 | AG158: 3.547826087 | AH158: 41677.11798 | AI158: 3.943478261 | AJ158: 41677.174 | AK158: 5.969565217 | AL158: 41677.17623 | AM158: 5.873913043 | AN158: 41677.17052 | AO158: 5.765217391 | AP158: 41677.17724 | AQ158: 5.165217391 | AR158: 41677.15069 | AS158: 41677.17153 | AT158: 41677.13881 | AU158: 4.052173913 | AV158: 41677.13881 | AW158: 3.852173913 | AX158: 41677.11574 | AY158: 3.556521739 | AZ158: 41677.11227 | BA158: 3.452173913 | BB158: 41677.1088 | BC158: 3.447826087 | BD158: 41677.05494 | BE158: 3.252173913 | BF158: 41677.15069 | BH158: 41677.20278 | BI158: 41677.19236
A159: 0 | B159: =IF(Instructions!$C$2="BST",A159,0) -> 0 | C159: 2018-02-08T10:00:00 | D159: 2018-02-08 | E159: Thu | F159: 2 | G159: =IF(H159="","",TEXT(F159*29,"mmm")) ->  | H159: =IF(I159=I158,"",DAY(K159)) ->  | I159: 4 | J159: =IF(I159=I158,"",TEXT(I159+2,"ddd")) ->  | K159: 41677.41667 | L159: 2 | M159: LW | N159: 0.01526717557 | O159: 10:00:00 | P159: 05:00:00 | Q159: 11:00:00 | R159: 0.1666666667 | S159: 41677.44329 | T159: 2.474045802 | U159: 41677.50926 | V159: 41677.43808 | W159: 2.275572519 | X159: 41677.375 | Y159: 41677.42014 | Z159: 1.981679389 | AA159: 41677.40278 | AB159: 41677.41551 | AC159: 1.880152672 | AD159: Cls | AE159: 41677.25486 | AF159: 41677.41088 | AG159: 1.781679389 | AH159: 41677.40162 | AI159: 1.881679389 | AJ159: 41677.44271 | AK159: 2.475572519 | AL159: 41677.44271 | AM159: 2.475572519 | AN159: 41677.43519 | AO159: 2.475572519 | AP159: 41677.44155 | AQ159: 2.277099237 | AR159: 41677.40625 | AS159: 41677.43056 | AT159: 41677.40625 | AU159: 1.981679389 | AV159: 41677.40741 | AW159: 1.980152672 | AX159: 41677.40162 | AY159: 1.781679389 | AZ159: 41677.39815 | BA159: 1.780152672 | BB159: 41677.39178 | BC159: 1.880152672 | BD159: 41677.34664 | BE159: 1.486259542 | BF159: 41677.44097 | BH159: 41677.45833 | BI159: 41677.44792
A160: 0 | B160: =IF(Instructions!$C$2="BST",A160,0) -> 0 | C160: 2018-02-08T16:19:00 | D160: 2018-02-08 | F160: 2 | G160: =IF(H160="","",TEXT(F160*29,"mmm")) ->  | H160: =IF(I160=I159,"",DAY(K160)) ->  | I160: 4 | J160: =IF(I160=I159,"",TEXT(I160+2,"ddd")) ->  | K160: 41677.67986 | L160: 4.59 | M160: HW | N160: 0.08695652174 | O160: 16:19:00 | P160: 12:00:00 | Q160: 18:00:00 | R160: 0.2805555556 | S160: =IF($M160="HW",$K160+S$6+(S$5-S$6)*$R160,$K160+S$8+(S$7-S$8)*$R160) -> 41677.68973 | T160: 6.139130435 | U160: 41677.7557 | V160: 41677.6907 | W160: 5.930434783 | X160: =IF($M160="HW",$K160+X$6+(X$5-X$6)*$R160,$K160+X$8+(X$7-X$8)*$R160) -> 41677.63819 | Y160: 41677.66445 | Z160: 4.504347826 | AA160: 41677.65403 | AB160: 41677.65903 | AC160: 4.104347826 | AD160: Opn | AE160: 41677.54444 | AF160: 41677.66457 | AG160: 3.595652174 | AH160: 41677.63777 | AI160: 3.986956522 | AJ160: 41677.69223 | AK160: 6.039130435 | AL160: 41677.69472 | AM160: 5.947826087 | AN160: 41677.68875 | AO160: 5.830434783 | AP160: 41677.69625 | AQ160: 5.230434783 | AR160: =IF($M160="HW",$K160+AR$6+(AR$5-AR$6)*$R160,$K160+AR$8+(AR$7-AR$8)*$R160) -> 41677.66944 | AS160: 41677.69028 | AT160: 41677.6586 | AU160: 4.104347826 | AV160: 41677.6586 | AW160: 3.904347826 | AX160: 41677.63527 | AY160: 3.613043478 | AZ160: 41677.6318 | BA160: 3.504347826 | BB160: 41677.62833 | BC160: 3.495652174 | BD160: 41677.57265 | BE160: 3.304347826 | BF160: =IF($M160="HW",$K160+BF$6+(BF$5-BF$6)*$R160,$K160+BF$8+(BF$7-BF$8)*$R160) -> 41677.66944 | BH160: 41677.72153 | BI160: 41677.71111
A161: 0 | B161: =IF(Instructions!$C$2="BST",A161,0) -> 0 | C161: 2018-02-08T22:48:00 | D161: 2018-02-08 | E161: =IF(D161=D160,IF(J160="","",J160),D161) ->  | F161: 2 | I161: 4 | K161: 41677.95 | L161: 2.01 | M161: LW | N161: 0.007633587786 | O161: 22:48:00 | P161: 17:00:00 | Q161: 23:00:00 | R161: 0.03333333334 | S161: 41677.97477 | T161: 2.487022901 | U161: 41678.04074 | V161: 41677.97373 | W161: 2.28778626 | X161: 41677.90833 | Y161: 41677.95069 | Z161: 1.990839695 | AA161: 41677.93889 | AB161: 41677.94699 | AC161: 1.890076336 | AD161: Cls | AE161: 41677.77361 | AF161: 41677.94606 | AG161: 1.790839695 | AH161: 41677.93588 | AI161: 1.890839695 | AJ161: 41677.97465 | AK161: 2.48778626 | AL161: 41677.97465 | AM161: 2.48778626 | AN161: 41677.96759 | AO161: 2.48778626 | AP161: 41677.97442 | AQ161: 2.288549618 | AR161: 41677.93958 | AS161: 41677.96389 | AT161: 41677.93958 | AU161: 1.990839695 | AV161: 41677.93981 | AW161: 1.990076336 | AX161: 41677.93588 | AY161: 1.790839695 | AZ161: 41677.93241 | BA161: 1.790076336 | BB161: 41677.92558 | BC161: 1.890076336 | BD161: 41677.88044 | BE161: 1.493129771 | BF161: 41677.97431 | BH161: 41677.99167 | BI161: 41677.98125
A162: 0 | B162: =IF(Instructions!$C$2="BST",A162,0) -> 0 | C162: 2018-02-09T05:02:00 | D162: 2018-02-09 | E162: 2018-02-09 | F162: 2 | G162: Feb | H162: 9 | I162: 5 | J162: Fri | K162: 41678.20972 | L162: 4.38 | M162: HW | N162: -0.09565217391 | O162: 05:02:00 | P162: 00:00:00 | Q162: 06:00:00 | R162: 0.1611111111 | S162: 41678.21834 | T162: 5.846956522 | U162: 41678.28432 | V162: 41678.2189 | W162: 5.656521739 | X162: 41678.16806 | Y162: 41678.19348 | Z162: 4.285217391 | AA162: 41678.18306 | AB162: 41678.18889 | AC162: 3.885217391 | AD162: Opn | AE162: 41678.07431 | AF162: 41678.19651 | AG162: 3.394782609 | AH162: 41678.16929 | AI162: 3.804347826 | AJ162: 41678.22126 | AK162: 5.746956522 | AL162: 41678.22417 | AM162: 5.637391304 | AN162: 41678.21779 | AO162: 5.556521739 | AP162: 41678.22652 | AQ162: 4.956521739 | AR162: 41678.19931 | AS162: 41678.22014 | AT162: 41678.19012 | AU162: 3.885217391 | AV162: 41678.19012 | AW162: 3.685217391 | AX162: 41678.16638 | AY162: 3.375652174 | AZ162: 41678.16291 | BA162: 3.285217391 | BB162: 41678.15943 | BC162: 3.294782609 | BD162: 41678.10085 | BE162: 3.085217391 | BF162: 41678.19931 | BH162: 41678.25139 | BI162: 41678.24097
A163: 0 | B163: =IF(Instructions!$C$2="BST",A163,0) -> 0 | C163: 2018-02-09T11:15:00 | D163: 2018-02-09 | E163: =IF(D163=D162,IF(J162="","",J162),D163) -> Fri | F163: 2 | G163: =IF(H163="","",TEXT(F163*29,"mmm")) ->  | H163: =IF(I163=I162,"",DAY(K163)) ->  | I163: 5 | J163: =IF(I163=I162,"",TEXT(I163+2,"ddd")) ->  | K163: 41678.46875 | L163: 2.21 | M163: LW | N163: -0.1450381679 | O163: 11:15:00 | P163: 17:00:00 | Q163: 11:00:00 | R163: 0.04166666667 | S163: 41678.49363 | T163: 2.746564885 | U163: 41678.55961 | V163: 41678.49233 | W163: 2.532061069 | X163: 41678.42708 | Y163: 41678.46962 | Z163: 2.174045802 | AA163: 41678.45747 | AB163: 41678.46586 | AC163: 2.088549618 | AD163: Cls | AE163: 41678.30347 | AF163: 41678.4647 | AG163: 1.974045802 | AH163: 41678.45457 | AI163: 2.074045802 | AJ163: 41678.49349 | AK163: 2.732061069 | AL163: 41678.49349 | AM163: 2.732061069 | AN163: 41678.4864 | AO163: 2.732061069 | AP163: 41678.4932 | AQ163: 2.517557252 | AR163: 41678.45833 | AS163: 41678.48264 | AT163: 41678.45833 | AU163: 2.174045802 | AV163: 41678.45862 | AW163: 2.188549618 | AX163: 41678.45457 | AY163: 1.974045802 | AZ163: 41678.4511 | BA163: 1.988549618 | BB163: 41678.4443 | BC163: 2.088549618 | BD163: 41678.39916 | BE163: 1.630534351 | BF163: 41678.49306 | BH163: 41678.51042 | BI163: 41678.5
A164: 0 | B164: =IF(Instructions!$C$2="BST",A164,0) -> 0 | C164: 2018-02-09T17:40:00 | D164: 2018-02-09 | F164: 2 | G164: =IF(H164="","",TEXT(F164*29,"mmm")) ->  | H164: =IF(I164=I163,"",DAY(K164)) ->  | I164: 5 | J164: =IF(I164=I163,"",TEXT(I164+2,"ddd")) ->  | K164: 41678.73611 | L164: 4.41 | M164: HW | N164: -0.06956521739 | O164: 17:40:00 | P164: 12:00:00 | Q164: 18:00:00 | R164: 0.05555555556 | S164: 41678.74363 | T164: 5.888695652 | U164: 41678.80961 | V164: 41678.74383 | W164: 5.695652174 | X164: 41678.69444 | Y164: 41678.71914 | Z164: 4.316521739 | AA164: 41678.70872 | AB164: 41678.71528 | AC164: 3.916521739 | AD164: Opn | AE164: 41678.60069 | AF164: 41678.72473 | AG164: 3.423478261 | AH164: 41678.69715 | AI164: 3.830434783 | AJ164: 41678.74691 | AK164: 5.788695652 | AL164: 41678.75019 | AM164: 5.68173913 | AN164: 41678.74344 | AO164: 5.595652174 | AP164: 41678.75328 | AQ164: 4.995652174 | AR164: 41678.72569 | AS164: 41678.74653 | AT164: 41678.71798 | AU164: 3.916521739 | AV164: 41678.71798 | AW164: 3.716521739 | AX164: 41678.69387 | AY164: 3.409565217 | AZ164: 41678.69039 | BA164: 3.316521739 | BB164: 41678.68692 | BC164: 3.323478261 | BD164: 41678.62577 | BE164: 3.116521739 | BF164: 41678.72569 | BH164: 41678.77778 | BI164: 41678.76736
A165: 0 | B165: =IF(Instructions!$C$2="BST",A165,0) -> 0 | C165: 2018-02-10T00:04:00 | D165: 2018-02-10 | E165: 2018-02-10 | F165: 2 | G165: Feb | H165: 10 | I165: 6 | J165: Sat | K165: 41679.00278 | L165: 2.14 | M165: LW | N165: -0.09160305344 | O165: 00:04:00 | P165: 05:00:00 | Q165: -0.04166666667 | R165: 0.1777777778 | S165: 41679.02955 | T165: 2.655725191 | U165: 41679.09552 | V165: 41679.024 | W165: 2.446564885 | X165: 41678.96111 | Y165: 41679.00648 | Z165: 2.109923664 | AA165: 41678.98866 | AB165: 41679.00177 | AC165: 2.019083969 | AD165: Cls | AE165: 41678.82986 | AF165: 41678.99684 | AG165: 1.909923664 | AH165: 41678.98765 | AI165: 2.009923664 | AJ165: 41679.02894 | AK165: 2.646564885 | AL165: 41679.02894 | AM165: 2.646564885 | AN165: 41679.02137 | AO165: 2.646564885 | AP165: 41679.0277 | AQ165: 2.43740458 | AR165: 41678.99236 | AS165: 41679.01667 | AT165: 41678.99236 | AU165: 2.109923664 | AV165: 41678.9936 | AW165: 2.119083969 | AX165: 41678.98765 | AY165: 1.909923664 | AZ165: 41678.98418 | BA165: 1.919083969 | BB165: 41678.97785 | BC165: 2.019083969 | BD165: 41678.93272 | BE165: 1.582442748 | BF165: 41679.02708 | BH165: 41679.04444 | BI165: 41679.03403
A166: 0 | B166: =IF(Instructions!$C$2="BST",A166,0) -> 0 | C166: 2018-02-10T06:23:00 | D166: 2018-02-10 | E166: Sat | F166: 2 | I166: 6 | K166: 41679.26597 | L166: 4.4 | M166: HW | N166: -0.07826086957 | O166: 06:23:00 | P166: 12:00:00 | Q166: 06:00:00 | R166: 0.06388888889 | S166: 41679.27358 | T166: 5.874782609 | U166: 41679.33955 | V166: 41679.2738 | W166: 5.682608696 | X166: 41679.22431 | Y166: 41679.24905 | Z166: 4.306086957 | AA166: 41679.23864 | AB166: 41679.24514 | AC166: 3.906086957 | AD166: Opn | AE166: 41679.13056 | AF166: 41679.25445 | AG166: 3.413913043 | AH166: 41679.22689 | AI166: 3.82173913 | AJ166: 41679.27683 | AK166: 5.774782609 | AL166: 41679.28008 | AM166: 5.666956522 | AN166: 41679.27336 | AO166: 5.582608696 | AP166: 41679.28311 | AQ166: 4.982608696 | AR166: 41679.25556 | AS166: 41679.27639 | AT166: 41679.24772 | AU166: 3.906086957 | AV166: 41679.24772 | AW166: 3.706086957 | AX166: 41679.22364 | AY166: 3.39826087 | AZ166: 41679.22017 | BA166: 3.306086957 | BB166: 41679.2167 | BC166: 3.313913043 | BD166: 41679.15575 | BE166: 3.106086957 | BF166: 41679.25556 | BH166: 41679.30764 | BI166: 41679.29722
A167: 0 | B167: =IF(Instructions!$C$2="BST",A167,0) -> 0 | C167: 2018-02-10T12:37:00 | D167: 2018-02-10 | F167: 2 | G167: =IF(H167="","",TEXT(F167*29,"mmm")) ->  | H167: =IF(I167=I166,"",DAY(K167)) ->  | I167: 6 | J167: =IF(I167=I166,"",TEXT(I167+2,"ddd")) ->  | K167: 41679.52569 | L167: 2.22 | M167: LW | N167: -0.1526717557 | O167: 12:37:00 | P167: 17:00:00 | Q167: 11:00:00 | R167: 0.2694444444 | S167: 41679.55374 | T167: 2.759541985 | U167: 41679.61971 | V167: 41679.54532 | W167: 2.544274809 | X167: 41679.48403 | Y167: 41679.53131 | Z167: 2.183206107 | AA167: 41679.50966 | AB167: 41679.52596 | AC167: 2.098473282 | AD167: Cls | AE167: 41679.35972 | AF167: 41679.51848 | AG167: 1.983206107 | AH167: 41679.50993 | AI167: 2.083206107 | AJ167: 41679.55281 | AK167: 2.744274809 | AL167: 41679.55281 | AM167: 2.744274809 | AN167: 41679.54493 | AO167: 2.744274809 | AP167: 41679.55094 | AQ167: 2.529007634 | AR167: 41679.51528 | AS167: 41679.53958 | AT167: 41679.51528 | AU167: 2.183206107 | AV167: 41679.51715 | AW167: 2.198473282 | AX167: 41679.50993 | AY167: 1.983206107 | AZ167: 41679.50646 | BA167: 1.998473282 | BB167: 41679.50045 | BC167: 2.098473282 | BD167: 41679.45531 | BE167: 1.63740458 | BF167: 41679.55 | BH167: 41679.56736 | BI167: 41679.55694
A168: 0 | B168: =IF(Instructions!$C$2="BST",A168,0) -> 0 | C168: 2018-02-10T19:03:00 | D168: 2018-02-10 | F168: 2 | G168: =IF(H168="","",TEXT(F168*29,"mmm")) ->  | H168: =IF(I168=I167,"",DAY(K168)) ->  | I168: 6 | J168: =IF(I168=I167,"",TEXT(I168+2,"ddd")) ->  | K168: 41679.79375 | L168: 4.44 | M168: HW | N168: -0.04347826087 | O168: 19:03:00 | P168: 1 | Q168: 18:00:00 | R168: 0.175 | S168: 41679.80252 | T168: 5.930434783 | U168: 41679.86849 | V168: 41679.80312 | W168: 5.734782609 | X168: 41679.75208 | Y168: 41679.7776 | Z168: 4.347826087 | AA168: 41679.76719 | AB168: 41679.77292 | AC168: 3.947826087 | AD168: Opn | AE168: 41679.65833 | AF168: 41679.7803 | AG168: 3.452173913 | AH168: 41679.75312 | AI168: 3.856521739 | AJ168: 41679.80538 | AK168: 5.830434783 | AL168: 41679.80825 | AM168: 5.726086957 | AN168: 41679.80191 | AO168: 5.634782609 | AP168: 41679.8105 | AQ168: 5.034782609 | AR168: 41679.78333 | AS168: 41679.80417 | AT168: 41679.77396 | AU168: 3.947826087 | AV168: 41679.77396 | AW168: 3.747826087 | AX168: 41679.75026 | AY168: 3.443478261 | AZ168: 41679.74679 | BA168: 3.347826087 | BB168: 41679.74332 | BC168: 3.352173913 | BD168: 41679.68507 | BE168: 3.147826087 | BF168: 41679.78333 | BH168: 41679.83542 | BI168: 41679.825
A169: 0 | B169: =IF(Instructions!$C$2="BST",A169,0) -> 0 | C169: 2018-02-11T01:14:00 | D169: 2018-02-11 | E169: =IF(D169=D168,IF(J168="","",J168),D169) -> 2018-02-11 | F169: 2 | G169: Feb | H169: 11 | I169: 7 | J169: Sun | K169: 41680.05139 | L169: 2.08 | M169: LW | N169: -0.04580152672 | O169: 01:14:00 | P169: 05:00:00 | Q169: -0.04166666667 | R169: 0.3722222222 | S169: 41680.08086 | T169: 2.577862595 | U169: 41680.14684 | V169: 41680.06923 | W169: 2.373282443 | X169: 41680.00972 | Y169: 41680.05914 | Z169: 2.054961832 | AA169: 41680.03322 | AB169: 41680.05309 | AC169: 1.959541985 | AD169: Cls | AE169: 41679.8875 | AF169: 41680.04275 | AG169: 1.854961832 | AH169: 41680.03492 | AI169: 1.954961832 | AJ169: 41680.07957 | AK169: 2.573282443 | AL169: 41680.07957 | AM169: 2.573282443 | AN169: 41680.07133 | AO169: 2.573282443 | AP169: 41680.07699 | AQ169: 2.36870229 | AR169: 41680.04097 | AS169: 41680.06528 | AT169: 41680.04097 | AU169: 2.054961832 | AV169: 41680.04356 | AW169: 2.059541985 | AX169: 41680.03492 | AY169: 1.854961832 | AZ169: 41680.03144 | BA169: 1.859541985 | BB169: 41680.02579 | BC169: 1.959541985 | BD169: 41679.98065 | BE169: 1.541221374 | BF169: 41680.07569 | BH169: 41680.09306 | BI169: 41680.08264
A170: 0 | B170: =IF(Instructions!$C$2="BST",A170,0) -> 0 | C170: 2018-02-11T07:33:00 | D170: 2018-02-11 | E170: Sun | F170: 2 | I170: 7 | K170: 41680.31458 | L170: 4.58 | M170: HW | N170: 0.07826086957 | O170: 07:33:00 | P170: 12:00:00 | Q170: 06:00:00 | R170: 0.2583333333 | S170: 41680.32422 | T170: 6.125217391 | U170: 41680.39019 | V170: 41680.32512 | W170: 5.917391304 | X170: 41680.27292 | Y170: 41680.29902 | Z170: 4.493913043 | AA170: 41680.2886 | AB170: 41680.29375 | AC170: 4.093913043 | AD170: Opn | AE170: 41680.17917 | AF170: 41680.29968 | AG170: 3.586086957 | AH170: 41680.2728 | AI170: 3.97826087 | AJ170: 41680.32679 | AK170: 6.025217391 | AL170: 41680.32937 | AM170: 5.933043478 | AN170: 41680.32332 | AO170: 5.817391304 | AP170: 41680.33105 | AQ170: 5.217391304 | AR170: 41680.30417 | AS170: 41680.325 | AT170: 41680.29363 | AU170: 4.093913043 | AV170: 41680.29363 | AW170: 3.893913043 | AX170: 41680.27023 | AY170: 3.60173913 | AZ170: 41680.26675 | BA170: 3.493913043 | BB170: 41680.26328 | BC170: 3.486086957 | BD170: 41680.20706 | BE170: 3.293913043 | BF170: 41680.30417 | BH170: 41680.35625 | BI170: 41680.34583
A171: 0 | B171: =IF(Instructions!$C$2="BST",A171,0) -> 0 | C171: 2018-02-11T13:44:00 | D171: 2018-02-11 | E171: =IF(D171=D170,IF(J170="","",J170),D171) ->  | F171: 2 | G171: =IF(H171="","",TEXT(F171*29,"mmm")) ->  | H171: =IF(I171=I170,"",DAY(K171)) ->  | I171: 7 | J171: =IF(I171=I170,"",TEXT(I171+2,"ddd")) ->  | K171: 41680.57222 | L171: 2.04 | M171: LW | N171: -0.01526717557 | O171: 13:44:00 | P171: 17:00:00 | Q171: 11:00:00 | R171: 0.4555555556 | S171: 41680.60285 | T171: 2.525954198 | U171: 41680.66883 | V171: 41680.58862 | W171: 2.324427481 | X171: 41680.53056 | Y171: 41680.58171 | Z171: 2.018320611 | AA171: 41680.55231 | AB171: 41680.57508 | AC171: 1.919847328 | AD171: Cls | AE171: 41680.40833 | AF171: 41680.56242 | AG171: 1.818320611 | AH171: 41680.55517 | AI171: 1.918320611 | AJ171: 41680.60127 | AK171: 2.524427481 | AL171: 41680.60127 | AM171: 2.524427481 | AN171: 41680.59275 | AO171: 2.524427481 | AP171: 41680.59811 | AQ171: 2.322900763 | AR171: 41680.56181 | AS171: 41680.58611 | AT171: 41680.56181 | AU171: 2.018320611 | AV171: 41680.56497 | AW171: 2.019847328 | AX171: 41680.55517 | AY171: 1.818320611 | AZ171: 41680.5517 | BA171: 1.819847328 | BB171: 41680.54633 | BC171: 1.919847328 | BD171: 41680.5012 | BE171: 1.513740458 | BF171: 41680.59653 | BH171: 41680.61389 | BI171: 41680.60347
A172: 0 | B172: =IF(Instructions!$C$2="BST",A172,0) -> 0 | C172: 2018-02-11T20:05:00 | D172: 2018-02-11 | F172: 2 | G172: =IF(H172="","",TEXT(F172*29,"mmm")) ->  | H172: =IF(I172=I171,"",DAY(K172)) ->  | I172: 7 | J172: =IF(I172=I171,"",TEXT(I172+2,"ddd")) ->  | K172: 41680.83681 | L172: 4.61 | M172: HW | N172: 0.1043478261 | O172: 20:05:00 | P172: 1 | Q172: 18:00:00 | R172: 0.3472222222 | S172: 41680.84737 | T172: 6.166956522 | U172: 41680.91334 | V172: 41680.84857 | W172: 5.956521739 | X172: 41680.79514 | Y172: 41680.82186 | Z172: 4.525217391 | AA172: 41680.81144 | AB172: 41680.81597 | AC172: 4.125217391 | AD172: Opn | AE172: 41680.70139 | AF172: 41680.82036 | AG172: 3.614782609 | AH172: 41680.79379 | AI172: 4.004347826 | AJ172: 41680.84963 | AK172: 6.066956522 | AL172: 41680.8519 | AM172: 5.977391304 | AN172: 41680.84616 | AO172: 5.856521739 | AP172: 41680.85296 | AQ172: 5.256521739 | AR172: 41680.82639 | AS172: 41680.84722 | AT172: 41680.81462 | AU172: 4.125217391 | AV172: 41680.81462 | AW172: 3.925217391 | AX172: 41680.79152 | AY172: 3.635652174 | AZ172: 41680.78805 | BA172: 3.525217391 | BB172: 41680.78458 | BC172: 3.514782609 | BD172: 41680.73052 | BE172: 3.325217391 | BF172: 41680.82639 | BH172: 41680.87847 | BI172: 41680.86806
A173: 0 | B173: =IF(Instructions!$C$2="BST",A173,0) -> 0 | C173: 2018-02-12T02:09:00 | D173: 2018-02-12 | E173: 2018-02-12 | F173: 2 | G173: Feb | H173: 12 | I173: 1 | J173: Mon | K173: 41681.08958 | L173: 1.91 | M173: LW | N173: 0.08396946565 | O173: 02:09:00 | P173: 05:00:00 | Q173: -0.04166666667 | R173: 0.525 | S173: 41681.12118 | T173: 2.357251908 | U173: 41681.18715 | V173: 41681.10477 | W173: 2.165648855 | X173: 41681.04792 | Y173: 41681.10052 | Z173: 1.899236641 | AA173: 41681.06823 | AB173: 41681.0934 | AC173: 1.790839695 | AD173: Cls | AE173: 41680.93056 | AF173: 41681.07882 | AG173: 1.699236641 | AH173: 41681.07205 | AI173: 1.799236641 | AJ173: 41681.11936 | AK173: 2.365648855 | AL173: 41681.11936 | AM173: 2.365648855 | AN173: 41681.11059 | AO173: 2.365648855 | AP173: 41681.11571 | AQ173: 2.174045802 | AR173: 41681.07917 | AS173: 41681.10347 | AT173: 41681.07917 | AU173: 1.899236641 | AV173: 41681.08281 | AW173: 1.890839695 | AX173: 41681.07205 | AY173: 1.699236641 | AZ173: 41681.06858 | BA173: 1.690839695 | BB173: 41681.06345 | BC173: 1.790839695 | BD173: 41681.01832 | BE173: 1.424427481 | BF173: 41681.11389 | BH173: 41681.13125 | BI173: 41681.12083
A174: 0 | B174: =IF(Instructions!$C$2="BST",A174,0) -> 0 | C174: 2018-02-12T08:25:00 | D174: 2018-02-12 | E174: Mon | F174: 2 | I174: 1 | K174: 41681.35069 | L174: 4.85 | M174: HW | N174: 0.3130434783 | O174: 08:25:00 | P174: 12:00:00 | Q174: 06:00:00 | R174: 0.4027777778 | S174: 41681.36183 | T174: 6.500869565 | U174: 41681.42781 | V174: 41681.36323 | W174: 6.269565217 | X174: 41681.30903 | Y174: 41681.33613 | Z174: 4.775652174 | AA174: 41681.32571 | AB174: 41681.32986 | AC174: 4.375652174 | AD174: Opn | AE174: 41681.21528 | AF174: 41681.33329 | AG174: 3.844347826 | AH174: 41681.30691 | AI174: 4.213043478 | AJ174: 41681.36391 | AK174: 6.400869565 | AL174: 41681.36598 | AM174: 6.332173913 | AN174: 41681.36044 | AO174: 6.169565217 | AP174: 41681.36666 | AQ174: 5.569565217 | AR174: 41681.34028 | AS174: 41681.36111 | AT174: 41681.32774 | AU174: 4.375652174 | AV174: 41681.32774 | AW174: 4.175652174 | AX174: 41681.30483 | AY174: 3.906956522 | AZ174: 41681.30136 | BA174: 3.775652174 | BB174: 41681.29789 | BC174: 3.744347826 | BD174: 41681.24518 | BE174: 3.575652174 | BF174: 41681.34028 | BH174: 41681.39236 | BI174: 41681.38194
A175: 0 | B175: =IF(Instructions!$C$2="BST",A175,0) -> 0 | C175: 2018-02-12T14:34:00 | D175: 2018-02-12 | F175: 2 | G175: =IF(H175="","",TEXT(F175*29,"mmm")) ->  | H175: =IF(I175=I174,"",DAY(K175)) ->  | I175: 1 | J175: =IF(I175=I174,"",TEXT(I175+2,"ddd")) ->  | K175: 41681.60694 | L175: 1.8 | M175: LW | N175: 0.1679389313 | O175: 14:34:00 | P175: 17:00:00 | Q175: 11:00:00 | R175: 0.5944444444 | S175: 41681.63951 | T175: 2.214503817 | U175: 41681.70548 | V175: 41681.62093 | W175: 2.03129771 | X175: 41681.56528 | Y175: 41681.61933 | Z175: 1.798473282 | AA175: 41681.58414 | AB175: 41681.61173 | AC175: 1.681679389 | AD175: Cls | AE175: 41681.44444 | AF175: 41681.59522 | AG175: 1.598473282 | AH175: 41681.58893 | AI175: 1.698473282 | AJ175: 41681.63744 | AK175: 2.23129771 | AL175: 41681.63744 | AM175: 2.23129771 | AN175: 41681.62843 | AO175: 2.23129771 | AP175: 41681.63331 | AQ175: 2.048091603 | AR175: 41681.59653 | AS175: 41681.62083 | AT175: 41681.59653 | AU175: 1.798473282 | AV175: 41681.60066 | AW175: 1.781679389 | AX175: 41681.58893 | AY175: 1.598473282 | AZ175: 41681.58546 | BA175: 1.581679389 | BB175: 41681.58057 | BC175: 1.681679389 | BD175: 41681.53544 | BE175: 1.348854962 | BF175: 41681.63125 | BH175: 41681.64861 | BI175: 41681.63819
A176: 0 | B176: =IF(Instructions!$C$2="BST",A176,0) -> 0 | C176: 2018-02-12T20:51:00 | D176: 2018-02-12 | F176: 2 | G176: =IF(H176="","",TEXT(F176*29,"mmm")) ->  | H176: =IF(I176=I175,"",DAY(K176)) ->  | I176: 1 | J176: =IF(I176=I175,"",TEXT(I176+2,"ddd")) ->  | K176: 41681.86875 | L176: 4.82 | M176: HW | N176: 0.2869565217 | O176: 20:51:00 | P176: 1 | Q176: 18:00:00 | R176: 0.475 | S176: =IF($M176="HW",$K176+S$6+(S$5-S$6)*$R176,$K176+S$8+(S$7-S$8)*$R176) -> 41681.88064 | T176: 6.459130435 | U176: 41681.94661 | V176: 41681.88229 | W176: 6.230434783 | X176: =IF($M176="HW",$K176+X$6+(X$5-X$6)*$R176,$K176+X$8+(X$7-X$8)*$R176) -> 41681.82708 | Y176: 41681.85469 | Z176: 4.744347826 | AA176: 41681.84427 | AB176: 41681.84792 | AC176: 4.344347826 | AD176: Opn | AE176: 41681.73333 | AF176: 41681.85009 | AG176: 3.815652174 | AH176: 41681.82396 | AI176: 4.186956522 | AJ176: 41681.88247 | AK176: 6.359130435 | AL176: 41681.88429 | AM176: 6.287826087 | AN176: 41681.87899 | AO176: 6.130434783 | AP176: 41681.88446 | AQ176: 5.530434783 | AR176: =IF($M176="HW",$K176+AR$6+(AR$5-AR$6)*$R176,$K176+AR$8+(AR$7-AR$8)*$R176) -> 41681.85833 | AS176: 41681.87917 | AT176: 41681.84479 | AU176: 4.344347826 | AV176: 41681.84479 | AW176: 4.144347826 | AX176: 41681.82214 | AY176: 3.873043478 | AZ176: 41681.81866 | BA176: 3.744347826 | BB176: 41681.81519 | BC176: 3.715652174 | BD176: 41681.76424 | BE176: 3.544347826 | BF176: =IF($M176="HW",$K176+BF$6+(BF$5-BF$6)*$R176,$K176+BF$8+(BF$7-BF$8)*$R176) -> 41681.85833 | BH176: 41681.91042 | BI176: 41681.9
A177: 0 | B177: =IF(Instructions!$C$2="BST",A177,0) -> 0 | C177: 2018-02-13T02:52:00 | D177: 2018-02-13 | E177: =IF(D177=D176,IF(J176="","",J176),D177) -> 2018-02-13 | F177: 2 | G177: Feb | H177: 13 | I177: 2 | J177: Tue | K177: 41682.11944 | L177: 1.69 | M177: LW | N177: 0.2519083969 | O177: 02:52:00 | P177: 05:00:00 | Q177: -0.04166666667 | R177: 0.6444444444 | S177: 41682.1527 | T177: 2.071755725 | U177: 41682.21867 | V177: 41682.13256 | W177: 1.896946565 | X177: 41682.07778 | Y177: 41682.13287 | Z177: 1.697709924 | AA177: 41682.0956 | AB177: 41682.12492 | AC177: 1.572519084 | AD177: Cls | AE177: 41681.9625 | AF177: 41682.10702 | AG177: 1.497709924 | AH177: 41682.10108 | AI177: 1.597709924 | AJ177: 41682.15046 | AK177: 2.096946565 | AL177: 41682.15046 | AM177: 2.096946565 | AN177: 41682.14128 | AO177: 2.096946565 | AP177: 41682.14599 | AQ177: 1.922137405 | AR177: 41682.10903 | AS177: 41682.13333 | AT177: 41682.10903 | AU177: 1.697709924 | AV177: 41682.1135 | AW177: 1.672519084 | AX177: 41682.10108 | AY177: 1.497709924 | AZ177: 41682.09761 | BA177: 1.472519084 | BB177: 41682.0929 | BC177: 1.572519084 | BD177: 41682.04776 | BE177: 1.273282443 | BF177: 41682.14375 | BH177: 41682.16111 | BI177: 41682.15069
A178: 0 | B178: =IF(Instructions!$C$2="BST",A178,0) -> 0 | C178: 2018-02-13T09:06:00 | D178: 2018-02-13 | E178: Tue | F178: 2 | I178: 2 | K178: 41682.37917 | L178: 5.11 | M178: HW | N178: 0.5391304348 | O178: 09:06:00 | P178: 12:00:00 | Q178: 06:00:00 | R178: 0.5166666667 | S178: 41682.39149 | T178: 6.862608696 | U178: 41682.45747 | V178: 41682.39329 | W178: 6.608695652 | X178: 41682.3375 | Y178: 41682.36539 | Z178: 5.046956522 | AA178: 41682.35498 | AB178: 41682.35833 | AC178: 4.646956522 | AD178: Opn | AE178: 41682.24375 | AF178: 41682.35978 | AG178: 4.093043478 | AH178: 41682.3338 | AI178: 4.439130435 | AJ178: 41682.39317 | AK178: 6.762608696 | AL178: 41682.39485 | AM178: 6.716521739 | AN178: 41682.3897 | AO178: 6.508695652 | AP178: 41682.39473 | AQ178: 5.908695652 | AR178: 41682.36875 | AS178: 41682.38958 | AT178: 41682.35463 | AU178: 4.646956522 | AV178: 41682.35463 | AW178: 4.446956522 | AX178: 41682.33212 | AY178: 4.200869565 | AZ178: 41682.32865 | BA178: 4.046956522 | BB178: 41682.32517 | BC178: 3.993043478 | BD178: 41682.27523 | BE178: 3.846956522 | BF178: 41682.36875 | BH178: 41682.42083 | BI178: 41682.41042
A179: 0 | B179: =IF(Instructions!$C$2="BST",A179,0) -> 0 | C179: 2018-02-13T15:14:00 | D179: 2018-02-13 | E179: =IF(D179=D178,IF(J178="","",J178),D179) ->  | F179: 2 | G179: =IF(H179="","",TEXT(F179*29,"mmm")) ->  | H179: =IF(I179=I178,"",DAY(K179)) ->  | I179: 2 | J179: =IF(I179=I178,"",TEXT(I179+2,"ddd")) ->  | K179: 41682.63472 | L179: 1.54 | M179: LW | N179: 0.3664122137 | O179: 15:14:00 | P179: 17:00:00 | Q179: 11:00:00 | R179: 0.7055555556 | S179: 41682.66883 | T179: 1.877099237 | U179: 41682.7348 | V179: 41682.64678 | W179: 1.713740458 | X179: 41682.59306 | Y179: 41682.64942 | Z179: 1.560305344 | AA179: 41682.60961 | AB179: 41682.64105 | AC179: 1.423664122 | AD179: Cls | AE179: 41682.47292 | AF179: 41682.62145 | AG179: 1.360305344 | AH179: 41682.61593 | AI179: 1.460305344 | AJ179: 41682.66638 | AK179: 1.913740458 | AL179: 41682.66638 | AM179: 1.913740458 | AN179: 41682.65698 | AO179: 1.913740458 | AP179: 41682.66148 | AQ179: 1.750381679 | AR179: 41682.62431 | AS179: 41682.64861 | AT179: 41682.62431 | AU179: 1.560305344 | AV179: 41682.62921 | AW179: 1.523664122 | AX179: 41682.61593 | AY179: 1.360305344 | AZ179: 41682.61246 | BA179: 1.323664122 | BB179: 41682.60797 | BC179: 1.423664122 | BD179: 41682.56283 | BE179: 1.170229008 | BF179: 41682.65903 | BH179: 41682.67639 | BI179: 41682.66597
A180: 0 | B180: =IF(Instructions!$C$2="BST",A180,0) -> 0 | C180: 2018-02-13T21:29:00 | D180: 2018-02-13 | F180: 2 | G180: =IF(H180="","",TEXT(F180*29,"mmm")) ->  | H180: =IF(I180=I179,"",DAY(K180)) ->  | I180: 2 | J180: =IF(I180=I179,"",TEXT(I180+2,"ddd")) ->  | K180: 41682.89514 | L180: 5.01 | M180: HW | N180: 0.452173913 | O180: 21:29:00 | P180: 1 | Q180: 18:00:00 | R180: 0.5805555556 | S180: 41682.90813 | T180: 6.723478261 | U180: 41682.9741 | V180: 41682.91015 | W180: 6.47826087 | X180: 41682.85347 | Y180: 41682.88181 | Z180: 4.942608696 | AA180: 41682.87139 | AB180: 41682.87431 | AC180: 4.542608696 | AD180: Opn | AE180: 41682.75972 | AF180: 41682.87464 | AG180: 3.997391304 | AH180: 41682.84888 | AI180: 4.352173913 | AJ180: 41682.90959 | AK180: 6.623478261 | AL180: 41682.91104 | AM180: 6.568695652 | AN180: 41682.90611 | AO180: 6.37826087 | AP180: 41682.91048 | AQ180: 5.77826087 | AR180: 41682.88472 | AS180: 41682.90556 | AT180: 41682.86971 | AU180: 4.542608696 | AV180: 41682.86971 | AW180: 4.342608696 | AX180: 41682.84742 | AY180: 4.087826087 | AZ180: 41682.84395 | BA180: 3.942608696 | BB180: 41682.84048 | BC180: 3.897391304 | BD180: 41682.79209 | BE180: 3.742608696 | BF180: 41682.88472 | BH180: 41682.93681 | BI180: 41682.92639
A181: 0 | B181: =IF(Instructions!$C$2="BST",A181,0) -> 0 | C181: 2018-02-14T03:28:00 | D181: 2018-02-14 | E181: 2018-02-14 | F181: 2 | G181: Feb | H181: 14 | I181: 3 | J181: Wed | K181: 41683.14444 | L181: 1.47 | M181: LW | N181: 0.4198473282 | O181: 03:28:00 | P181: 05:00:00 | Q181: -0.04166666667 | R181: 0.7444444444 | S181: 41683.17909 | T181: 1.786259542 | U181: 41683.24506 | V181: 41683.15583 | W181: 1.628244275 | X181: 41683.10278 | Y181: 41683.15995 | Z181: 1.496183206 | AA181: 41683.11852 | AB181: 41683.15131 | AC181: 1.354198473 | AD181: Cls | AE181: 41682.98889 | AF181: 41683.13063 | AG181: 1.296183206 | AH181: 41683.12539 | AI181: 1.396183206 | AJ181: 41683.1765 | AK181: 1.828244275 | AL181: 41683.1765 | AM181: 1.828244275 | AN181: 41683.16698 | AO181: 1.828244275 | AP181: 41683.17133 | AQ181: 1.670229008 | AR181: 41683.13403 | AS181: 41683.15833 | AT181: 41683.13403 | AU181: 1.496183206 | AV181: 41683.1392 | AW181: 1.454198473 | AX181: 41683.12539 | AY181: 1.296183206 | AZ181: 41683.12191 | BA181: 1.254198473 | BB181: 41683.11755 | BC181: 1.354198473 | BD181: 41683.07242 | BE181: 1.122137405 | BF181: 41683.16875 | BH181: 41683.18611 | BI181: 41683.17569
A182: 0 | B182: =IF(Instructions!$C$2="BST",A182,0) -> 0 | C182: 2018-02-14T09:41:00 | D182: 2018-02-14 | E182: Wed | F182: 2 | I182: 3 | K182: 41683.40347 | L182: 5.34 | M182: HW | N182: 0.7391304348 | O182: 09:41:00 | P182: 12:00:00 | Q182: 06:00:00 | R182: 0.6138888889 | S182: 41683.41681 | T182: 7.182608696 | U182: 41683.48278 | V182: 41683.41894 | W182: 6.908695652 | X182: 41683.36181 | Y182: 41683.39037 | Z182: 5.286956522 | AA182: 41683.37996 | AB182: 41683.38264 | AC182: 4.886956522 | AD182: Opn | AE182: 41683.26806 | AF182: 41683.3824 | AG182: 4.313043478 | AH182: 41683.35675 | AI182: 4.639130435 | AJ182: 41683.41815 | AK182: 7.082608696 | AL182: 41683.41949 | AM182: 7.056521739 | AN182: 41683.41468 | AO182: 6.808695652 | AP182: 41683.4187 | AQ182: 6.208695652 | AR182: 41683.39306 | AS182: 41683.41389 | AT182: 41683.37758 | AU182: 4.886956522 | AV182: 41683.37758 | AW182: 4.686956522 | AX182: 41683.35541 | AY182: 4.460869565 | AZ182: 41683.35194 | BA182: 4.286956522 | BB182: 41683.34847 | BC182: 4.213043478 | BD182: 41683.30089 | BE182: 4.086956522 | BF182: 41683.39306 | BH182: 41683.44514 | BI182: 41683.43472
A183: 0 | B183: =IF(Instructions!$C$2="BST",A183,0) -> 0 | C183: 2018-02-14T15:49:00 | D183: 2018-02-14 | F183: 2 | G183: =IF(H183="","",TEXT(F183*29,"mmm")) ->  | H183: =IF(I183=I182,"",DAY(K183)) ->  | I183: 3 | J183: =IF(I183=I182,"",TEXT(I183+2,"ddd")) ->  | K183: 41683.65903 | L183: 1.31 | M183: LW | N183: 0.5419847328 | O183: 15:49:00 | P183: 17:00:00 | Q183: 11:00:00 | R183: 0.8027777778 | S183: 41683.69448 | T183: 1.578625954 | U183: 41683.76046 | V183: 41683.6694 | W183: 1.432824427 | X183: 41683.61736 | Y183: 41683.67575 | Z183: 1.349618321 | AA183: 41683.63189 | AB183: 41683.66671 | AC183: 1.195419847 | AD183: Cls | AE183: 41683.49722 | AF183: 41683.64441 | AG183: 1.149618321 | AH183: 41683.63956 | AI183: 1.249618321 | AJ183: 41683.6917 | AK183: 1.632824427 | AL183: 41683.6917 | AM183: 1.632824427 | AN183: 41683.68196 | AO183: 1.632824427 | AP183: 41683.68612 | AQ183: 1.487022901 | AR183: 41683.64861 | AS183: 41683.67292 | AT183: 41683.64861 | AU183: 1.349618321 | AV183: 41683.65419 | AW183: 1.295419847 | AX183: 41683.63956 | AY183: 1.149618321 | AZ183: 41683.63609 | BA183: 1.095419847 | BB183: 41683.63193 | BC183: 1.195419847 | BD183: 41683.5868 | BE183: 1.01221374 | BF183: 41683.68333 | BH183: 41683.70069 | BI183: 41683.69028
A184: 0 | B184: =IF(Instructions!$C$2="BST",A184,0) -> 0 | C184: 2018-02-14T22:02:00 | D184: 2018-02-14 | F184: 2 | G184: =IF(H184="","",TEXT(F184*29,"mmm")) ->  | H184: =IF(I184=I183,"",DAY(K184)) ->  | I184: 3 | J184: =IF(I184=I183,"",TEXT(I184+2,"ddd")) ->  | K184: 41683.91806 | L184: 5.18 | M184: HW | N184: 0.6 | O184: 22:02:00 | P184: 1 | Q184: 18:00:00 | R184: 0.6722222222 | S184: 41683.932 | T184: 6.96 | U184: 41683.99797 | V184: 41683.93434 | W184: 6.7 | X184: 41683.87639 | Y184: 41683.90536 | Z184: 5.12 | AA184: 41683.89495 | AB184: 41683.89722 | AC184: 4.72 | AD184: Opn | AE184: 41683.78264 | AF184: 41683.89597 | AG184: 4.16 | AH184: 41683.87052 | AI184: 4.5 | AJ184: 41683.93314 | AK184: 6.86 | AL184: 41683.93428 | AM184: 6.82 | AN184: 41683.92967 | AO184: 6.6 | AP184: 41683.93308 | AQ184: 6 | AR184: 41683.90764 | AS184: 41683.92847 | AT184: 41683.89136 | AU184: 4.72 | AV184: 41683.89136 | AW184: 4.52 | AX184: 41683.86939 | AY184: 4.28 | AZ184: 41683.86591 | BA184: 4.12 | BB184: 41683.86244 | BC184: 4.06 | BD184: 41683.81628 | BE184: 3.92 | BF184: 41683.90764 | BH184: 41683.95972 | BI184: 41683.94931
A185: 0 | B185: =IF(Instructions!$C$2="BST",A185,0) -> 0 | C185: 2018-02-15T04:01:00 | D185: 2018-02-15 | E185: =IF(D185=D184,IF(J184="","",J184),D185) -> 2018-02-15 | F185: 2 | G185: Feb | H185: 15 | I185: 4 | J185: Thu | K185: 41684.16736 | L185: 1.27 | M185: LW | N185: 0.572519084 | O185: 04:01:00 | P185: 05:00:00 | Q185: -0.04166666667 | R185: 0.8361111111 | S185: 41684.20328 | T185: 1.526717557 | U185: 41684.26925 | V185: 41684.17715 | W185: 1.383969466 | X185: 41684.12569 | Y185: 41684.18478 | Z185: 1.312977099 | AA185: 41684.13953 | AB185: 41684.1755 | AC185: 1.155725191 | AD185: Cls | AE185: 41684.01181 | AF185: 41684.15228 | AG185: 1.112977099 | AH185: 41684.14767 | AI185: 1.212977099 | AJ185: 41684.20038 | AK185: 1.583969466 | AL185: 41684.20038 | AM185: 1.583969466 | AN185: 41684.19053 | AO185: 1.583969466 | AP185: 41684.19457 | AQ185: 1.441221374 | AR185: 41684.15694 | AS185: 41684.18125 | AT185: 41684.15694 | AU185: 1.312977099 | AV185: 41684.16275 | AW185: 1.255725191 | AX185: 41684.14767 | AY185: 1.112977099 | AZ185: 41684.14419 | BA185: 1.055725191 | BB185: 41684.14015 | BC185: 1.155725191 | BD185: 41684.09501 | BE185: 0.9847328244 | BF185: 41684.19167 | BH185: 41684.20903 | BI185: 41684.19861
A186: 0 | B186: =IF(Instructions!$C$2="BST",A186,0) -> 0 | C186: 2018-02-15T10:14:00 | D186: 2018-02-15 | E186: Thu | F186: 2 | I186: 4 | K186: 41684.42639 | L186: 5.52 | M186: HW | N186: 0.8956521739 | O186: 10:14:00 | P186: 12:00:00 | Q186: 06:00:00 | R186: 0.7055555556 | S186: 41684.44068 | T186: 7.433043478 | U186: 41684.50666 | V186: 41684.44313 | W186: 7.143478261 | X186: 41684.38472 | Y186: 41684.41393 | Z186: 5.474782609 | AA186: 41684.40351 | AB186: 41684.40556 | AC186: 5.074782609 | AD186: Opn | AE186: 41684.29097 | AF186: 41684.40372 | AG186: 4.485217391 | AH186: 41684.3784 | AI186: 4.795652174 | AJ186: 41684.44171 | AK186: 7.333043478 | AL186: 41684.44273 | AM186: 7.322608696 | AN186: 41684.43823 | AO186: 7.043478261 | AP186: 41684.4413 | AQ186: 6.443478261 | AR186: 41684.41597 | AS186: 41684.43681 | AT186: 41684.39923 | AU186: 5.074782609 | AV186: 41684.39923 | AW186: 4.874782609 | AX186: 41684.37737 | AY186: 4.664347826 | AZ186: 41684.3739 | BA186: 4.474782609 | BB186: 41684.37043 | BC186: 4.385217391 | BD186: 41684.32508 | BE186: 4.274782609 | BF186: 41684.41597 | BH186: 41684.46806 | BI186: 41684.45764
A187: 0 | B187: =IF(Instructions!$C$2="BST",A187,0) -> 0 | C187: 2018-02-15T16:21:00 | D187: 2018-02-15 | E187: =IF(D187=D186,IF(J186="","",J186),D187) ->  | F187: 2 | G187: =IF(H187="","",TEXT(F187*29,"mmm")) ->  | H187: =IF(I187=I186,"",DAY(K187)) ->  | I187: 4 | J187: =IF(I187=I186,"",TEXT(I187+2,"ddd")) ->  | K187: 41684.68125 | L187: 1.11 | M187: LW | N187: 0.6946564885 | O187: 16:21:00 | P187: 17:00:00 | Q187: 11:00:00 | R187: 0.8916666667 | S187: 41684.71794 | T187: 1.319083969 | U187: 41684.78391 | V187: 41684.69008 | W187: 1.188549618 | X187: 41684.63958 | Y187: 41684.69983 | Z187: 1.166412214 | AA187: 41684.65226 | AB187: 41684.69016 | AC187: 0.9969465649 | AD187: Cls | AE187: 41684.52014 | AF187: 41684.66539 | AG187: 0.9664122137 | AH187: 41684.66117 | AI187: 1.066412214 | AJ187: 41684.71484 | AK187: 1.388549618 | AL187: 41684.71484 | AM187: 1.388549618 | AN187: 41684.7048 | AO187: 1.388549618 | AP187: 41684.70865 | AQ187: 1.258015267 | AR187: 41684.67083 | AS187: 41684.69514 | AT187: 41684.67083 | AU187: 1.166412214 | AV187: 41684.67703 | AW187: 1.096946565 | AX187: 41684.66117 | AY187: 0.9664122137 | AZ187: 41684.6577 | BA187: 0.8969465649 | BB187: 41684.65385 | BC187: 0.9969465649 | BD187: 41684.60871 | BE187: 0.8748091603 | BF187: 41684.70556 | BH187: 41684.72292 | BI187: 41684.7125
A188: 0 | B188: =IF(Instructions!$C$2="BST",A188,0) -> 0 | C188: 2018-02-15T22:34:00 | D188: 2018-02-15 | F188: 2 | G188: =IF(H188="","",TEXT(F188*29,"mmm")) ->  | H188: =IF(I188=I187,"",DAY(K188)) ->  | I188: 4 | J188: =IF(I188=I187,"",TEXT(I188+2,"ddd")) ->  | K188: 41684.94028 | L188: 5.31 | M188: HW | N188: 0.7130434783 | O188: 22:34:00 | P188: 1 | Q188: 18:00:00 | R188: 0.7611111111 | S188: 41684.95515 | T188: 7.140869565 | U188: 41685.02112 | V188: 41684.95779 | W188: 6.869565217 | X188: 41684.89861 | Y188: 41684.9282 | Z188: 5.255652174 | AA188: 41684.91779 | AB188: 41684.91944 | AC188: 4.855652174 | AD188: Opn | AE188: 41684.80486 | AF188: 41684.91665 | AG188: 4.284347826 | AH188: 41684.89151 | AI188: 4.613043478 | AJ188: 41684.95598 | AK188: 7.040869565 | AL188: 41684.95681 | AM188: 7.012173913 | AN188: 41684.95251 | AO188: 6.769565217 | AP188: 41684.955 | AQ188: 6.169565217 | AR188: 41684.92986 | AS188: 41684.95069 | AT188: 41684.91235 | AU188: 4.855652174 | AV188: 41684.91235 | AW188: 4.655652174 | AX188: 41684.89068 | AY188: 4.426956522 | AZ188: 41684.88721 | BA188: 4.255652174 | BB188: 41684.88374 | BC188: 4.184347826 | BD188: 41684.83974 | BE188: 4.055652174 | BF188: 41684.92986 | BH188: 41684.98194 | BI188: 41684.97153
A189: 0 | B189: =IF(Instructions!$C$2="BST",A189,0) -> 0 | C189: 2018-02-16T04:34:00 | D189: 2018-02-16 | E189: 2018-02-16 | F189: 2 | G189: Feb | H189: 16 | I189: 5 | J189: Fri | K189: 41685.19028 | L189: 1.12 | M189: LW | N189: 0.6870229008 | O189: 04:34:00 | P189: 05:00:00 | Q189: -0.04166666667 | R189: 0.9277777778 | S189: 41685.22747 | T189: 1.332061069 | U189: 41685.29344 | V189: 41685.19848 | W189: 1.200763359 | X189: 41685.14861 | Y189: 41685.20961 | Z189: 1.175572519 | AA189: 41685.16053 | AB189: 41685.19969 | AC189: 1.006870229 | AD189: Cls | AE189: 41685.03403 | AF189: 41685.17392 | AG189: 0.9755725191 | AH189: 41685.16995 | AI189: 1.075572519 | AJ189: 41685.22425 | AK189: 1.400763359 | AL189: 41685.22425 | AM189: 1.400763359 | AN189: 41685.21408 | AO189: 1.400763359 | AP189: 41685.2178 | AQ189: 1.269465649 | AR189: 41685.17986 | AS189: 41685.20417 | AT189: 41685.17986 | AU189: 1.175572519 | AV189: 41685.1863 | AW189: 1.106870229 | AX189: 41685.16995 | AY189: 0.9755725191 | AZ189: 41685.16647 | BA189: 0.906870229 | BB189: 41685.16275 | BC189: 1.006870229 | BD189: 41685.11761 | BE189: 0.8816793893 | BF189: 41685.21458 | BH189: 41685.23194 | BI189: 41685.22153
A190: 0 | B190: =IF(Instructions!$C$2="BST",A190,0) -> 0 | C190: 2018-02-16T10:46:00 | D190: 2018-02-16 | E190: Fri | F190: 2 | I190: 5 | K190: 41685.44861 | L190: 5.64 | M190: HW | N190: 1 | O190: 10:46:00 | P190: 12:00:00 | Q190: 06:00:00 | R190: 0.7944444444 | S190: 41685.46383 | T190: 7.6 | U190: 41685.5298 | V190: 41685.46659 | W190: 7.3 | X190: 41685.40694 | Y190: 41685.43677 | Z190: 5.6 | AA190: 41685.42635 | AB190: 41685.42778 | AC190: 5.2 | AD190: Opn | AE190: 41685.31319 | AF190: 41685.4244 | AG190: 4.6 | AH190: 41685.39938 | AI190: 4.9 | AJ190: 41685.46454 | AK190: 7.5 | AL190: 41685.46526 | AM190: 7.5 | AN190: 41685.46107 | AO190: 7.2 | AP190: 41685.46321 | AQ190: 6.6 | AR190: 41685.43819 | AS190: 41685.45903 | AT190: 41685.42022 | AU190: 5.2 | AV190: 41685.42022 | AW190: 5 | AX190: 41685.39867 | AY190: 4.8 | AZ190: 41685.3952 | BA190: 4.6 | BB190: 41685.39172 | BC190: 4.5 | BD190: 41685.34853 | BE190: 4.4 | BF190: 41685.43819 | BH190: 41685.49028 | BI190: 41685.47986
A191: 0 | B191: =IF(Instructions!$C$2="BST",A191,0) -> 0 | C191: 2018-02-16T16:53:00 | D191: 2018-02-16 | F191: 2 | G191: =IF(H191="","",TEXT(F191*29,"mmm")) ->  | H191: =IF(I191=I190,"",DAY(K191)) ->  | I191: 5 | J191: =IF(I191=I190,"",TEXT(I191+2,"ddd")) ->  | K191: 41685.70347 | L191: 0.96 | M191: LW | N191: 0.8091603053 | O191: 16:53:00 | P191: 17:00:00 | Q191: 11:00:00 | R191: 0.9805555556 | S191: 41685.7414 | T191: 1.124427481 | U191: 41685.80737 | V191: 41685.71075 | W191: 1.005343511 | X191: 41685.66181 | Y191: 41685.7239 | Z191: 1.029007634 | AA191: 41685.67263 | AB191: 41685.71362 | AC191: 0.8480916031 | AD191: Cls | AE191: 41685.54236 | AF191: 41685.68638 | AG191: 0.8290076336 | AH191: 41685.68277 | AI191: 0.9290076336 | AJ191: 41685.73799 | AK191: 1.205343511 | AL191: 41685.73799 | AM191: 1.205343511 | AN191: 41685.72764 | AO191: 1.205343511 | AP191: 41685.73118 | AQ191: 1.086259542 | AR191: 41685.69306 | AS191: 41685.71736 | AT191: 41685.69306 | AU191: 1.029007634 | AV191: 41685.69986 | AW191: 0.9480916031 | AX191: 41685.68277 | AY191: 0.8290076336 | AZ191: 41685.6793 | BA191: 0.7480916031 | BB191: 41685.67576 | BC191: 0.8480916031 | BD191: 41685.63062 | BE191: 0.7717557252 | BF191: 41685.72778 | BH191: 41685.74514 | BI191: 41685.73472
A192: 0 | B192: =IF(Instructions!$C$2="BST",A192,0) -> 0 | C192: 2018-02-16T23:06:00 | D192: 2018-02-16 | F192: 2 | G192: =IF(H192="","",TEXT(F192*29,"mmm")) ->  | H192: =IF(I192=I191,"",DAY(K192)) ->  | I192: 5 | J192: =IF(I192=I191,"",TEXT(I192+2,"ddd")) ->  | K192: 41685.9625 | L192: 5.39 | M192: HW | N192: 0.7826086957 | O192: 23:06:00 | P192: 1 | Q192: 18:00:00 | R192: 0.85 | S192: 41685.9783 | T192: 7.252173913 | U192: 41686.04427 | V192: 41685.98125 | W192: 6.973913043 | X192: 41685.92083 | Y192: 41685.95104 | Z192: 5.339130435 | AA192: 41685.94062 | AB192: 41685.94167 | AC192: 4.939130435 | AD192: Opn | AE192: 41685.82708 | AF192: 41685.93733 | AG192: 4.360869565 | AH192: 41685.9125 | AI192: 4.682608696 | AJ192: 41685.97882 | AK192: 7.152173913 | AL192: 41685.97934 | AM192: 7.130434783 | AN192: 41685.97535 | AO192: 6.873913043 | AP192: 41685.97691 | AQ192: 6.273913043 | AR192: 41685.95208 | AS192: 41685.97292 | AT192: 41685.93333 | AU192: 4.939130435 | AV192: 41685.93333 | AW192: 4.739130435 | AX192: 41685.91198 | AY192: 4.517391304 | AZ192: 41685.90851 | BA192: 4.339130435 | BB192: 41685.90503 | BC192: 4.260869565 | BD192: 41685.86319 | BE192: 4.139130435 | BF192: 41685.95208 | BH192: 41686.00417 | BI192: 41685.99375
A193: 0 | B193: =IF(Instructions!$C$2="BST",A193,0) -> 0 | C193: 2018-02-17T05:06:00 | D193: 2018-02-17 | E193: =IF(D193=D192,IF(J192="","",J192),D193) -> 2018-02-17 | F193: 2 | G193: Feb | H193: 17 | I193: 6 | J193: Sat | K193: 41686.2125 | L193: 1.02 | M193: LW | N193: 0.7633587786 | O193: 05:06:00 | P193: 05:00:00 | Q193: 11:00:00 | R193: 0.9833333333 | S193: =IF($M193="HW",$K193+S$6+(S$5-S$6)*$R193,$K193+S$8+(S$7-S$8)*$R193) -> 41686.25046 | T193: 1.202290076 | U193: 41686.31644 | V193: 41686.21973 | W193: 1.078625954 | X193: =IF($M193="HW",$K193+X$6+(X$5-X$6)*$R193,$K193+X$8+(X$7-X$8)*$R193) -> 41686.17083 | Y193: 41686.23299 | Z193: 1.083969466 | AA193: 41686.1816 | AB193: 41686.22269 | AC193: 0.9076335878 | AD193: Cls | AE193: 41686.05625 | AF193: 41686.19537 | AG193: 0.8839694656 | AH193: 41686.19178 | AI193: 0.9839694656 | AJ193: 41686.24705 | AK193: 1.278625954 | AL193: 41686.24705 | AM193: 1.278625954 | AN193: 41686.23669 | AO193: 1.278625954 | AP193: 41686.24022 | AQ193: 1.154961832 | AR193: =IF($M193="HW",$K193+AR$6+(AR$5-AR$6)*$R193,$K193+AR$8+(AR$7-AR$8)*$R193) -> 41686.20208 | AS193: 41686.22639 | AT193: 41686.20208 | AU193: 1.083969466 | AV193: 41686.20891 | AW193: 1.007633588 | AX193: 41686.19178 | AY193: 0.8839694656 | AZ193: 41686.18831 | BA193: 0.8076335878 | BB193: 41686.18478 | BC193: 0.9076335878 | BD193: 41686.13964 | BE193: 0.8129770992 | BF193: =IF($M193="HW",$K193+BF$6+(BF$5-BF$6)*$R193,$K193+BF$8+(BF$7-BF$8)*$R193) -> 41686.23681 | BH193: 41686.25417 | BI193: 41686.24375
A194: 0 | B194: =IF(Instructions!$C$2="BST",A194,0) -> 0 | C194: 2018-02-17T11:18:00 | D194: 2018-02-17 | E194: Sat | F194: 2 | I194: 6 | K194: 41686.47083 | L194: 5.7 | M194: HW | N194: 1.052173913 | O194: 11:18:00 | P194: 12:00:00 | Q194: 06:00:00 | R194: 0.8833333333 | S194: 41686.48698 | T194: 7.683478261 | U194: 41686.55295 | V194: 41686.49005 | W194: 7.37826087 | X194: 41686.42917 | Y194: 41686.45961 | Z194: 5.662608696 | AA194: 41686.44919 | AB194: 41686.45 | AC194: 5.262608696 | AD194: Opn | AE194: 41686.33542 | AF194: 41686.44508 | AG194: 4.657391304 | AH194: 41686.42037 | AI194: 4.952173913 | AJ194: 41686.48738 | AK194: 7.583478261 | AL194: 41686.48779 | AM194: 7.588695652 | AN194: 41686.48391 | AO194: 7.27826087 | AP194: 41686.48513 | AQ194: 6.67826087 | AR194: 41686.46042 | AS194: 41686.48125 | AT194: 41686.4412 | AU194: 5.262608696 | AV194: 41686.4412 | AW194: 5.062608696 | AX194: 41686.41997 | AY194: 4.867826087 | AZ194: 41686.41649 | BA194: 4.662608696 | BB194: 41686.41302 | BC194: 4.557391304 | BD194: 41686.37199 | BE194: 4.462608696 | BF194: 41686.46042 | BH194: 41686.5125 | BI194: 41686.50208
A195: 0 | B195: =IF(Instructions!$C$2="BST",A195,0) -> 0 | C195: 2018-02-17T17:26:00 | D195: 2018-02-17 | E195: =IF(D195=D194,IF(J194="","",J194),D195) ->  | F195: 2 | G195: =IF(H195="","",TEXT(F195*29,"mmm")) ->  | H195: =IF(I195=I194,"",DAY(K195)) ->  | I195: 6 | J195: =IF(I195=I194,"",TEXT(I195+2,"ddd")) ->  | K195: 41686.72639 | L195: 0.87 | M195: LW | N195: 0.8778625954 | O195: 17:26:00 | P195: 17:00:00 | Q195: 23:00:00 | R195: 0.9277777778 | S195: 41686.76358 | T195: 1.007633588 | U195: 41686.82955 | V195: 41686.73459 | W195: 0.8954198473 | X195: 41686.68472 | Y195: 41686.74572 | Z195: 0.9465648855 | AA195: 41686.69664 | AB195: 41686.7358 | AC195: 0.758778626 | AD195: Cls | AE195: 41686.56458 | AF195: 41686.71003 | AG195: 0.7465648855 | AH195: 41686.70606 | AI195: 0.8465648855 | AJ195: 41686.76036 | AK195: 1.095419847 | AL195: 41686.76036 | AM195: 1.095419847 | AN195: 41686.75019 | AO195: 1.095419847 | AP195: 41686.75392 | AQ195: 0.9832061069 | AR195: 41686.71597 | AS195: 41686.74028 | AT195: 41686.71597 | AU195: 0.9465648855 | AV195: 41686.72242 | AW195: 0.858778626 | AX195: 41686.70606 | AY195: 0.7465648855 | AZ195: 41686.70258 | BA195: 0.658778626 | BB195: 41686.69886 | BC195: 0.758778626 | BD195: 41686.65372 | BE195: 0.7099236641 | BF195: 41686.75069 | BH195: 41686.76806 | BI195: 41686.75764
A196: 0 | B196: =IF(Instructions!$C$2="BST",A196,0) -> 0 | C196: 2018-02-17T23:38:00 | D196: 2018-02-17 | F196: 2 | G196: =IF(H196="","",TEXT(F196*29,"mmm")) ->  | H196: =IF(I196=I195,"",DAY(K196)) ->  | I196: 6 | J196: =IF(I196=I195,"",TEXT(I196+2,"ddd")) ->  | K196: 41686.98472 | L196: 5.41 | M196: HW | N196: 0.8 | O196: 23:38:00 | P196: 1 | Q196: 18:00:00 | R196: 0.9388888889 | S196: 41687.00145 | T196: 7.28 | U196: 41687.06742 | V196: 41687.00471 | W196: 7 | X196: 41686.94306 | Y196: 41686.97388 | Z196: 5.36 | AA196: 41686.96346 | AB196: 41686.96389 | AC196: 4.96 | AD196: Opn | AE196: 41686.84931 | AF196: 41686.95801 | AG196: 4.38 | AH196: 41686.93349 | AI196: 4.7 | AJ196: 41687.00166 | AK196: 7.18 | AL196: 41687.00187 | AM196: 7.16 | AN196: 41686.99819 | AO196: 6.9 | AP196: 41686.99882 | AQ196: 6.3 | AR196: 41686.97431 | AS196: 41686.99514 | AT196: 41686.95432 | AU196: 4.96 | AV196: 41686.95432 | AW196: 4.76 | AX196: 41686.93328 | AY196: 4.54 | AZ196: 41686.9298 | BA196: 4.36 | BB196: 41686.92633 | BC196: 4.28 | BD196: 41686.88665 | BE196: 4.16 | BF196: 41686.97431 | BH196: 41687.02639 | BI196: 41687.01597
A197: 0 | B197: =IF(Instructions!$C$2="BST",A197,0) -> 0 | C197: 2018-02-18T05:39:00 | D197: 2018-02-18 | E197: 2018-02-18 | F197: 2 | G197: Feb | H197: 18 | I197: 7 | J197: Sun | K197: 41687.23542 | L197: 0.98 | M197: LW | N197: 0.7938931298 | O197: 05:39:00 | P197: 05:00:00 | Q197: 11:00:00 | R197: 0.8916666667 | S197: 41687.27211 | T197: 1.150381679 | U197: 41687.33808 | V197: 41687.24424 | W197: 1.029770992 | X197: 41687.19375 | Y197: 41687.25399 | Z197: 1.047328244 | AA197: 41687.20642 | AB197: 41687.24433 | AC197: 0.8679389313 | AD197: Cls | AE197: 41687.07847 | AF197: 41687.21956 | AG197: 0.8473282443 | AH197: 41687.21534 | AI197: 0.9473282443 | AJ197: 41687.26901 | AK197: 1.229770992 | AL197: 41687.26901 | AM197: 1.229770992 | AN197: 41687.25897 | AO197: 1.229770992 | AP197: 41687.26282 | AQ197: 1.109160305 | AR197: 41687.225 | AS197: 41687.24931 | AT197: 41687.225 | AU197: 1.047328244 | AV197: 41687.23119 | AW197: 0.9679389313 | AX197: 41687.21534 | AY197: 0.8473282443 | AZ197: 41687.21186 | BA197: 0.7679389313 | BB197: 41687.20802 | BC197: 0.8679389313 | BD197: 41687.16288 | BE197: 0.7854961832 | BF197: 41687.25972 | BH197: 41687.27708 | BI197: 41687.26667
A198: 0 | B198: =IF(Instructions!$C$2="BST",A198,0) -> 0 | C198: 2018-02-18T11:51:00 | D198: 2018-02-18 | E198: Sun | F198: 2 | I198: 7 | K198: 41687.49375 | L198: 5.71 | M198: HW | N198: 1.060869565 | O198: 11:51:00 | P198: 12:00:00 | Q198: 06:00:00 | R198: 0.975 | S198: 41687.51085 | T198: 7.697391304 | U198: 41687.57682 | V198: 41687.51424 | W198: 7.391304348 | X198: 41687.45208 | Y198: 41687.48316 | Z198: 5.673043478 | AA198: 41687.47274 | AB198: 41687.47292 | AC198: 5.273043478 | AD198: Opn | AE198: 41687.35833 | AF198: 41687.46641 | AG198: 4.666956522 | AH198: 41687.44201 | AI198: 4.960869565 | AJ198: 41687.51094 | AK198: 7.597391304 | AL198: 41687.51102 | AM198: 7.603478261 | AN198: 41687.50747 | AO198: 7.291304348 | AP198: 41687.50773 | AQ198: 6.691304348 | AR198: 41687.48333 | AS198: 41687.50417 | AT198: 41687.46285 | AU198: 5.273043478 | AV198: 41687.46285 | AW198: 5.073043478 | AX198: 41687.44193 | AY198: 4.879130435 | AZ198: 41687.43845 | BA198: 4.673043478 | BB198: 41687.43498 | BC198: 4.566956522 | BD198: 41687.39618 | BE198: 4.473043478 | BF198: 41687.48333 | BH198: 41687.53542 | BI198: 41687.525
A199: 0 | B199: =IF(Instructions!$C$2="BST",A199,0) -> 0 | C199: 2018-02-18T17:59:00 | D199: 2018-02-18 | F199: 2 | G199: =IF(H199="","",TEXT(F199*29,"mmm")) ->  | H199: =IF(I199=I198,"",DAY(K199)) ->  | I199: =WEEKDAY(K199,2) -> 7 | J199: =IF(I199=I198,"",TEXT(I199+2,"ddd")) ->  | K199: 41687.74931 | L199: 0.84 | M199: LW | N199: 0.9007633588 | O199: 17:59:00 | P199: 17:00:00 | Q199: 23:00:00 | R199: 0.8361111111 | S199: 41687.78522 | T199: 0.9687022901 | U199: 41687.8512 | V199: 41687.7591 | W199: 0.858778626 | X199: 41687.70764 | Y199: 41687.76672 | Z199: 0.9190839695 | AA199: 41687.72147 | AB199: 41687.75745 | AC199: 0.7290076336 | AD199: Cls | AE199: 41687.5875 | AF199: 41687.73422 | AG199: 0.7190839695 | AH199: 41687.72961 | AI199: 0.8190839695 | AJ199: 41687.78232 | AK199: 1.058778626 | AL199: 41687.78232 | AM199: 1.058778626 | AN199: 41687.77247 | AO199: 1.058778626 | AP199: 41687.77651 | AQ199: 0.9488549618 | AR199: 41687.73889 | AS199: 41687.76319 | AT199: 41687.73889 | AU199: 0.9190839695 | AV199: 41687.7447 | AW199: 0.8290076336 | AX199: 41687.72961 | AY199: 0.7190839695 | AZ199: 41687.72614 | BA199: 0.6290076336 | BB199: 41687.7221 | BC199: 0.7290076336 | BD199: 41687.67696 | BE199: 0.6893129771 | BF199: 41687.77361 | BH199: 41687.79097 | BI199: 41687.78056
A200: 0 | B200: =IF(Instructions!$C$2="BST",A200,0) -> 0 | C200: 2018-02-19T00:11:00 | D200: 2018-02-19 | E200: 2018-02-19 | F200: 2 | G200: =IF(H200="","",TEXT(F200*29,"mmm")) -> Feb | H200: =IF(I200=I199,"",DAY(K200)) -> 19 | I200: 1 | J200: =IF(I200=I199,"",TEXT(I200+2,"ddd")) -> Mon | K200: 41688.00764 | L200: 5.39 | M200: HW | N200: 0.7826086957 | O200: 00:11:00 | P200: 00:00:00 | Q200: 06:00:00 | R200: 0.9694444444 | S200: 41688.02468 | T200: 7.252173913 | U200: 41688.09065 | V200: 41688.02805 | W200: 6.973913043 | X200: 41687.96597 | Y200: 41687.99701 | Z200: 5.339130435 | AA200: 41687.98659 | AB200: 41687.98681 | AC200: 4.939130435 | AD200: Opn | AE200: 41687.87222 | AF200: 41687.98039 | AG200: 4.360869565 | AH200: 41687.95598 | AI200: 4.682608696 | AJ200: 41688.02479 | AK200: 7.152173913 | AL200: 41688.02489 | AM200: 7.130434783 | AN200: 41688.02132 | AO200: 6.873913043 | AP200: 41688.02163 | AQ200: 6.273913043 | AR200: 41687.99722 | AS200: 41688.01806 | AT200: 41687.97681 | AU200: 4.939130435 | AV200: 41687.97681 | AW200: 4.739130435 | AX200: 41687.95587 | AY200: 4.517391304 | AZ200: 41687.9524 | BA200: 4.339130435 | BB200: 41687.94893 | BC200: 4.260869565 | BD200: 41687.90999 | BE200: 4.139130435 | BF200: 41687.99722 | BH200: 41688.04931 | BI200: 41688.03889
... 1220 more rows
